﻿OrganisationName,OrganisationalUnit,BeneficiaryName,PaymentDate,Amount,Purpose,CategoryInternal,OrganisationURI
Staffordshire County Council,Meadows School,,01/10/2019,538.91,Personal Travel Budgets,Personal Travel Budgets,http://opendatacommunities.org/id/county-council/staffordshire  
Staffordshire County Council,Stat-OOC transport,24HR WEST SIDE TAXIS,01/10/2019,535.20,Home School Contract Vehicles,Home School Contract Vehicles,http://opendatacommunities.org/id/county-council/staffordshire  
Staffordshire County Council,Through Care Team - Lich/Can,A2B Cars,01/10/2019,758.40,Home School Contract Vehicles,Home School Contract Vehicles,http://opendatacommunities.org/id/county-council/staffordshire  
Staffordshire County Council,Merryfields School,,01/10/2019,572.07,Personal Travel Budgets,Personal Travel Budgets,http://opendatacommunities.org/id/county-council/staffordshire  
Staffordshire County Council,Stat-OOC transport,,01/10/2019,526.47,Personal Travel Budgets,Personal Travel Budgets,http://opendatacommunities.org/id/county-council/staffordshire  
Staffordshire County Council,Stat-OOC transport,,01/10/2019,820.80,Personal Travel Budgets,Personal Travel Budgets,http://opendatacommunities.org/id/county-council/staffordshire  
Staffordshire County Council,1323 Hawthorn House WS13 6EN,B & P DECORATORS LLP,01/10/2019,672.00,Repair and Maint Buildings NPS,Repair and Maint Buildings NPS,http://opendatacommunities.org/id/county-council/staffordshire  
Staffordshire County Council,Stat-OOC transport,,01/10/2019,703.90,Personal Travel Budgets,Personal Travel Budgets,http://opendatacommunities.org/id/county-council/staffordshire  
Staffordshire County Council,Cannock Invoice Led Older Peop,Bluebird Care (Mid Staffs),01/10/2019,511.20,Practical Care,Practical Care,http://opendatacommunities.org/id/county-council/staffordshire  
Staffordshire County Council,1334 Brackenberry St Michael's,BOURNE ELECTRICAL CONTR LTD,01/10/2019,1115.94,Day to Day Electrical Services,Day to Day Electrical Services,http://opendatacommunities.org/id/county-council/staffordshire  
Staffordshire County Council,1556 Leek Hway Depot ST19 5HL,BOURNE ELECTRICAL CONTR LTD,01/10/2019,548.26,Day to Day Electrical Services,Day to Day Electrical Services,http://opendatacommunities.org/id/county-council/staffordshire  
Staffordshire County Council,Saxon Hill School,,01/10/2019,588.65,Personal Travel Budgets,Personal Travel Budgets,http://opendatacommunities.org/id/county-council/staffordshire  
Staffordshire County Council,Springfield School,,01/10/2019,909.09,Personal Travel Budgets,Personal Travel Budgets,http://opendatacommunities.org/id/county-council/staffordshire  
Staffordshire County Council,Stat-OOC transport,,01/10/2019,1831.45,Personal Travel Budgets,Personal Travel Budgets,http://opendatacommunities.org/id/county-council/staffordshire  
Staffordshire County Council,Growing Places Fund,Canalside Farm,01/10/2019,300000.00,Other contribs to provisions,Other contribs to provisions,http://opendatacommunities.org/id/county-council/staffordshire  
Staffordshire County Council,Stat-OOC transport,,01/10/2019,791.78,Personal Travel Budgets,Personal Travel Budgets,http://opendatacommunities.org/id/county-council/staffordshire  
Staffordshire County Council,Cannock Invoice Led Phys Disab,Catherine Care,01/10/2019,1520.00,Practical Care,Practical Care,http://opendatacommunities.org/id/county-council/staffordshire  
Staffordshire County Council,Cannock Invoice Led Phys Disab,Catherine Care Ltd,01/10/2019,1216.00,Practical Care,Practical Care,http://opendatacommunities.org/id/county-council/staffordshire  
Staffordshire County Council,Stat-OOC transport,,01/10/2019,667.42,Personal Travel Budgets,Personal Travel Budgets,http://opendatacommunities.org/id/county-council/staffordshire  
Staffordshire County Council,Culture&Communities Commission,CIPFA Business Ltd,01/10/2019,804.00,Contingency,Contingency,http://opendatacommunities.org/id/county-council/staffordshire  
Staffordshire County Council,2 Contraception,Colliery Practice,01/10/2019,2189.52,other services external,other services external,http://opendatacommunities.org/id/county-council/staffordshire  
Staffordshire County Council,Court & Care Plan-Staff/SouthS,CORKYS CARS MIDLANDS LTD,01/10/2019,2160.00,Public Transport Other,Public Transport Other,http://opendatacommunities.org/id/county-council/staffordshire  
Staffordshire County Council,Stafford Invoice Led Older Peo,CSPC Healthcare Ltd,01/10/2019,1260.00,Practical Care,Practical Care,http://opendatacommunities.org/id/county-council/staffordshire  
Staffordshire County Council,Cannock Invoice Led Phys Disab,CSPC Healthcare Ltd,01/10/2019,598.50,Practical Care,Practical Care,http://opendatacommunities.org/id/county-council/staffordshire  
Staffordshire County Council,Saxon Hill School,,01/10/2019,675.65,Personal Travel Budgets,Personal Travel Budgets,http://opendatacommunities.org/id/county-council/staffordshire  
Staffordshire County Council,Stat-OOC transport,,01/10/2019,1636.95,Personal Travel Budgets,Personal Travel Budgets,http://opendatacommunities.org/id/county-council/staffordshire  
Staffordshire County Council,Domestic Homicide Reviews,E Stobart,01/10/2019,879.96,Grants LAA Allocation,Grants LAA Allocation,http://opendatacommunities.org/id/county-council/staffordshire  
Staffordshire County Council,Saxon Hill School,,01/10/2019,750.33,Personal Travel Budgets,Personal Travel Budgets,http://opendatacommunities.org/id/county-council/staffordshire  
Staffordshire County Council,Social Enterprise - CE,ENGAGING COMMUNITIES STAFFORDSHIRE,01/10/2019,50795.25,General Grants,General Grants,http://opendatacommunities.org/id/county-council/staffordshire  
Staffordshire County Council,Project A - A50 Growth Corrido,FLOGAS UK LTD,01/10/2019,1178.97,Construction Works,Construction Works,http://opendatacommunities.org/id/county-council/staffordshire  
Staffordshire County Council,Cherry Trees School,,01/10/2019,725.45,Personal Travel Budgets,Personal Travel Budgets,http://opendatacommunities.org/id/county-council/staffordshire  
Staffordshire County Council,Saxon Hill School,,01/10/2019,580.36,Personal Travel Budgets,Personal Travel Budgets,http://opendatacommunities.org/id/county-council/staffordshire  
Staffordshire County Council,Moorlands LD Team,HAYFIELD,01/10/2019,2869.23,Supported Group Care,Supported Group Care,http://opendatacommunities.org/id/county-council/staffordshire  
Staffordshire County Council,I54 Enterprise Zone,i54 Management Company Ltd,01/10/2019,4727.25,Maint Property Service,Maint Property Service,http://opendatacommunities.org/id/county-council/staffordshire  
Staffordshire County Council,Highways Laboratory,IMPACT TEST EQUIPMENT LTD,01/10/2019,1087.20,Consumables,Consumables,http://opendatacommunities.org/id/county-council/staffordshire  
Staffordshire County Council,Home to college transport SEN,,01/10/2019,617.67,Personal Travel Budgets,Personal Travel Budgets,http://opendatacommunities.org/id/county-council/staffordshire  
Staffordshire County Council,Home to school transport-main,,01/10/2019,518.18,Personal Travel Budgets,Personal Travel Budgets,http://opendatacommunities.org/id/county-council/staffordshire  
Staffordshire County Council,Stat-OOC transport,,01/10/2019,1152.44,Personal Travel Budgets,Personal Travel Budgets,http://opendatacommunities.org/id/county-council/staffordshire  
Staffordshire County Council,Stat-OOC transport,,01/10/2019,608.97,Personal Travel Budgets,Personal Travel Budgets,http://opendatacommunities.org/id/county-council/staffordshire  
Staffordshire County Council,Stat-OOC transport,,01/10/2019,671.56,Personal Travel Budgets,Personal Travel Budgets,http://opendatacommunities.org/id/county-council/staffordshire  
Staffordshire County Council,Stat-OOC transport,,01/10/2019,1363.85,Personal Travel Budgets,Personal Travel Budgets,http://opendatacommunities.org/id/county-council/staffordshire  
Staffordshire County Council,Stat-OOC transport,,01/10/2019,824.95,Personal Travel Budgets,Personal Travel Budgets,http://opendatacommunities.org/id/county-council/staffordshire  
Staffordshire County Council,Coppice School,,01/10/2019,526.47,Personal Travel Budgets,Personal Travel Budgets,http://opendatacommunities.org/id/county-council/staffordshire  
Staffordshire County Council,Stat-OOC transport,,01/10/2019,1400.82,Personal Travel Budgets,Personal Travel Budgets,http://opendatacommunities.org/id/county-council/staffordshire  
Staffordshire County Council,The King's VA School,LANTERN FIRE & SECURITY LTD,01/10/2019,1050.00,Service/Test Fire Alarms,Service/Test Fire Alarms,http://opendatacommunities.org/id/county-council/staffordshire  
Staffordshire County Council,1323 Hawthorn House WS13 6EN,LANTERN FIRE & SECURITY LTD,01/10/2019,525.00,Service/Test Fire Alarms,Service/Test Fire Alarms,http://opendatacommunities.org/id/county-council/staffordshire  
Staffordshire County Council,Fountains Primary School,,01/10/2019,950.07,Personal Travel Budgets,Personal Travel Budgets,http://opendatacommunities.org/id/county-council/staffordshire  
Staffordshire County Council,Third Car Leasing Scheme,LOOKERS LEASING LTD,01/10/2019,618.64,Car Leasing - Lse Rental Lead,Car Leasing - Lse Rental Lead,http://opendatacommunities.org/id/county-council/staffordshire  
Staffordshire County Council,Third Car Leasing Scheme,LOOKERS LEASING LTD,01/10/2019,519.31,Car Leasing - Lse Rental Lead,Car Leasing - Lse Rental Lead,http://opendatacommunities.org/id/county-council/staffordshire  
Staffordshire County Council,Stat-OOC transport,,01/10/2019,684.00,Personal Travel Budgets,Personal Travel Budgets,http://opendatacommunities.org/id/county-council/staffordshire  
Staffordshire County Council,Paget High Roofs,MAC (ROOFING & CONTRACTING) LTD,01/10/2019,36000.00,Construction Works,Construction Works,http://opendatacommunities.org/id/county-council/staffordshire  
Staffordshire County Council,Beaconside Innovation Centre,Manpower Direct (UK) Ltd,01/10/2019,1388.04,Premises Services,Premises Services,http://opendatacommunities.org/id/county-council/staffordshire  
Staffordshire County Council,Lichfield/Tamworth LDFieldwork,Mr Conrad Hallin,01/10/2019,3000.00,legal services,legal services,http://opendatacommunities.org/id/county-council/staffordshire  
Staffordshire County Council,DIPS,NATIONAL TEACHING ADVISORY SERVI,01/10/2019,1014.00, Alternative Education Schemes, Alternative Education Schemes,http://opendatacommunities.org/id/county-council/staffordshire  
Staffordshire County Council,DIPS,NATIONAL TEACHING ADVISORY SERVI,01/10/2019,2847.00, Alternative Education Schemes, Alternative Education Schemes,http://opendatacommunities.org/id/county-council/staffordshire  
Staffordshire County Council,DIPS,NATIONAL TEACHING ADVISORY SERVI,01/10/2019,2184.00, Alternative Education Schemes, Alternative Education Schemes,http://opendatacommunities.org/id/county-council/staffordshire  
Staffordshire County Council,DIPS,NATIONAL TEACHING ADVISORY SERVI,01/10/2019,2340.00, Alternative Education Schemes, Alternative Education Schemes,http://opendatacommunities.org/id/county-council/staffordshire  
Staffordshire County Council,DIPS,NATIONAL TEACHING ADVISORY SERVI,01/10/2019,780.00, Alternative Education Schemes, Alternative Education Schemes,http://opendatacommunities.org/id/county-council/staffordshire  
Staffordshire County Council,Other NDORS Courses,NDORS,01/10/2019,1764.00,PROFESSIONAL FEES,PROFESSIONAL FEES,http://opendatacommunities.org/id/county-council/staffordshire  
Staffordshire County Council,Speed Awareness,NDORS,01/10/2019,147294.00,PROFESSIONAL FEES,PROFESSIONAL FEES,http://opendatacommunities.org/id/county-council/staffordshire  
Staffordshire County Council,Nexxus,Nexxus Trading Services (t/a Nexxus Care,01/10/2019,83333.33,OTHER HIRED SERVICES,OTHER HIRED SERVICES,http://opendatacommunities.org/id/county-council/staffordshire  
Staffordshire County Council,ASC Funding,NHS Stafford and Surrounds CCG,01/10/2019,126869.50,OTHER HIRED SERVICES,OTHER HIRED SERVICES,http://opendatacommunities.org/id/county-council/staffordshire  
Staffordshire County Council,Newc/Moor Disability Team,NONSTOP CONSULTING LTD,01/10/2019,949.60,AGENCY STAFF,AGENCY STAFF,http://opendatacommunities.org/id/county-council/staffordshire  
Staffordshire County Council,Newc/Moor Disability Team,NONSTOP CONSULTING LTD,01/10/2019,949.60,AGENCY STAFF,AGENCY STAFF,http://opendatacommunities.org/id/county-council/staffordshire  
Staffordshire County Council,Day Services Lichfield Unalloc,PHS GROUP PLC,01/10/2019,572.64,WASTE COLLECTION,WASTE COLLECTION,http://opendatacommunities.org/id/county-council/staffordshire  
Staffordshire County Council,Workforce Wellbeing Strategy,Psylutions Ltd,01/10/2019,915.00,CONSULTANT FEES,CONSULTANT FEES,http://opendatacommunities.org/id/county-council/staffordshire  
Staffordshire County Council,SStaffs Invoice Led Older Peop,QUALITY HOME CARE,01/10/2019,539.76,Practical Care,Practical Care,http://opendatacommunities.org/id/county-council/staffordshire  
Staffordshire County Council,Stat-OOC transport,,01/10/2019,851.24,Personal Travel Budgets,Personal Travel Budgets,http://opendatacommunities.org/id/county-council/staffordshire  
Staffordshire County Council,Stretton Brook School,,01/10/2019,596.95,Personal Travel Budgets,Personal Travel Budgets,http://opendatacommunities.org/id/county-council/staffordshire  
Staffordshire County Council,Stat-OOC transport,,01/10/2019,725.45,Personal Travel Budgets,Personal Travel Budgets,http://opendatacommunities.org/id/county-council/staffordshire  
Staffordshire County Council,Stat-OOC transport,,01/10/2019,1890.32,Personal Travel Budgets,Personal Travel Budgets,http://opendatacommunities.org/id/county-council/staffordshire  
Staffordshire County Council,Newcastle Invoice Led Older Pe,RADIS COMMUNITY CARE,01/10/2019,2704.80,Practical Care,Practical Care,http://opendatacommunities.org/id/county-council/staffordshire  
Staffordshire County Council,DIPS,Reflective School Support,01/10/2019,2088.00, Alternative Education Schemes, Alternative Education Schemes,http://opendatacommunities.org/id/county-council/staffordshire  
Staffordshire County Council,DIPS,Reflective School Support,01/10/2019,2505.60, Alternative Education Schemes, Alternative Education Schemes,http://opendatacommunities.org/id/county-council/staffordshire  
Staffordshire County Council,Chasetown Special School,,01/10/2019,970.04,Personal Travel Budgets,Personal Travel Budgets,http://opendatacommunities.org/id/county-council/staffordshire  
Staffordshire County Council,Home to college transport SEN,,01/10/2019,1193.89,Personal Travel Budgets,Personal Travel Budgets,http://opendatacommunities.org/id/county-council/staffordshire  
Staffordshire County Council,Foster Care Recruitment Team,Schools Publishing Ltd,01/10/2019,630.00,Advertising,Advertising,http://opendatacommunities.org/id/county-council/staffordshire  
Staffordshire County Council,MCA / DoLs / AMHP,Shamrock Care Ltd,01/10/2019,1162.30,Independent Investigations,Independent Investigations,http://opendatacommunities.org/id/county-council/staffordshire  
Staffordshire County Council,Main Trading Standards,SITEON LTD,01/10/2019,720.00,CALL CHARGES,CALL CHARGES,http://opendatacommunities.org/id/county-council/staffordshire  
Staffordshire County Council,"1236 Seabridge Newcastle, ST5 ",STAFFORD BOROUGH COUNCIL,01/10/2019,1200.00,Contract Grounds Maintenance,Contract Grounds Maintenance,http://opendatacommunities.org/id/county-council/staffordshire  
Staffordshire County Council,Stafford North SU19,STAFFORDSHIRE WOMENS AID,01/10/2019,2040.18,S17 - Family Accommodation,S17 - Family Accommodation,http://opendatacommunities.org/id/county-council/staffordshire  
Staffordshire County Council,Operations Delivery,SUEZ RECYCLING & RECOVERY UK LTD,01/10/2019,6489.89,R.Maint-Gully Clean & Jetting,R.Maint-Gully Clean & Jetting,http://opendatacommunities.org/id/county-council/staffordshire  
Staffordshire County Council,Street Sweeping - Newcastle,SUEZ RECYCLING & RECOVERY UK LTD,01/10/2019,7748.95,Waste Treatment,Waste Treatment,http://opendatacommunities.org/id/county-council/staffordshire  
Staffordshire County Council,Street Sweeping - Tamworth,SUEZ RECYCLING & RECOVERY UK LTD,01/10/2019,4021.61,Waste Treatment,Waste Treatment,http://opendatacommunities.org/id/county-council/staffordshire  
Staffordshire County Council,Street Sweeping-Cannock Chase,SUEZ RECYCLING & RECOVERY UK LTD,01/10/2019,3140.42,Waste Treatment,Waste Treatment,http://opendatacommunities.org/id/county-council/staffordshire  
Staffordshire County Council,Street Sweeping - East Staffs,SUEZ RECYCLING & RECOVERY UK LTD,01/10/2019,3891.36,Waste Treatment,Waste Treatment,http://opendatacommunities.org/id/county-council/staffordshire  
Staffordshire County Council,Street Sweeping - Stafford,SUEZ RECYCLING & RECOVERY UK LTD,01/10/2019,2500.44,Waste Treatment,Waste Treatment,http://opendatacommunities.org/id/county-council/staffordshire  
Staffordshire County Council,Street Sweeping - South Staffs,SUEZ RECYCLING & RECOVERY UK LTD,01/10/2019,2586.47,Waste Treatment,Waste Treatment,http://opendatacommunities.org/id/county-council/staffordshire  
Staffordshire County Council,Street Sweeping - Lichfield,SUEZ RECYCLING & RECOVERY UK LTD,01/10/2019,4499.99,Waste Treatment,Waste Treatment,http://opendatacommunities.org/id/county-council/staffordshire  
Staffordshire County Council,Stat-OOC transport,,01/10/2019,936.36,Personal Travel Budgets,Personal Travel Budgets,http://opendatacommunities.org/id/county-council/staffordshire  
Staffordshire County Council,0699 Marmion House Lichfield S,TAMWORTH BOROUGH COUNCIL,01/10/2019,6000.00,Rent / Lease Of Premises,Rent / Lease Of Premises,http://opendatacommunities.org/id/county-council/staffordshire  
Staffordshire County Council,0699 Marmion House Lichfield S,TAMWORTH BOROUGH COUNCIL,01/10/2019,2962.50,Rent / Lease Of Premises,Rent / Lease Of Premises,http://opendatacommunities.org/id/county-council/staffordshire  
Staffordshire County Council,0699 Marmion House Lichfield S,TAMWORTH BOROUGH COUNCIL,01/10/2019,2868.75,Rent / Lease Of Premises,Rent / Lease Of Premises,http://opendatacommunities.org/id/county-council/staffordshire  
Staffordshire County Council,Stafford Invoice Led Older Peo,Tender Lasting Care Services Ltd,01/10/2019,953.65,Practical Care,Practical Care,http://opendatacommunities.org/id/county-council/staffordshire  
Staffordshire County Council,Independent Sch Fees Mainstr'm,The Education Development Service Ltd,01/10/2019,9500.00,Fees to Independent Schools,Fees to Independent Schools,http://opendatacommunities.org/id/county-council/staffordshire  
Staffordshire County Council,Foster Care Recruitment Team,Uttoxeter Leisure & Development,01/10/2019,2550.00,Training Resources,Training Resources,http://opendatacommunities.org/id/county-council/staffordshire  
Staffordshire County Council,Independent School Fee Special,VALUES ACADEMY,01/10/2019,3504.00,Fees to Independent Schools,Fees to Independent Schools,http://opendatacommunities.org/id/county-council/staffordshire  
Staffordshire County Council,Independent School Fee Special,VALUES ACADEMY,01/10/2019,10160.00,Fees to Independent Schools,Fees to Independent Schools,http://opendatacommunities.org/id/county-council/staffordshire  
Staffordshire County Council,Independent School Fee Special,VALUES ACADEMY,01/10/2019,9285.00,Fees to Independent Schools,Fees to Independent Schools,http://opendatacommunities.org/id/county-council/staffordshire  
Staffordshire County Council,Independent School Fee Special,VALUES ACADEMY,01/10/2019,3504.00,Fees to Independent Schools,Fees to Independent Schools,http://opendatacommunities.org/id/county-council/staffordshire  
Staffordshire County Council,Independent School Fee Special,VALUES ACADEMY,01/10/2019,8535.00,Fees to Independent Schools,Fees to Independent Schools,http://opendatacommunities.org/id/county-council/staffordshire  
Staffordshire County Council,Independent School Fee Special,VALUES ACADEMY,01/10/2019,8535.00,Fees to Independent Schools,Fees to Independent Schools,http://opendatacommunities.org/id/county-council/staffordshire  
Staffordshire County Council,Stafford LD Team,Voyage Ltd,01/10/2019,1071.68,Practical Care,Practical Care,http://opendatacommunities.org/id/county-council/staffordshire  
Staffordshire County Council,Stafford LD Team,Voyage Ltd,01/10/2019,992.88,Practical Care,Practical Care,http://opendatacommunities.org/id/county-council/staffordshire  
Staffordshire County Council,Equipment Maintenance SET,WESSEX LIFT CO LTD,01/10/2019,1050.00,Servicing Equipment Purchase,Servicing Equipment Purchase,http://opendatacommunities.org/id/county-council/staffordshire  
Staffordshire County Council,Stafford LD Team,WESTSIDE (STAFFORD) LTD,01/10/2019,1219.20,Rental of Vehicles,Rental of Vehicles,http://opendatacommunities.org/id/county-council/staffordshire  
Staffordshire County Council,Stafford LD Team,WESTSIDE (STAFFORD) LTD,01/10/2019,1219.20,Rental of Vehicles,Rental of Vehicles,http://opendatacommunities.org/id/county-council/staffordshire  
Staffordshire County Council,Stafford LD Team,WESTSIDE (STAFFORD) LTD,01/10/2019,1219.20,Rental of Vehicles,Rental of Vehicles,http://opendatacommunities.org/id/county-council/staffordshire  
Staffordshire County Council,Case Manage Team -Central West,Wilcox Psychological Associates,01/10/2019,4492.80,Prev Supp Legal Costs,Prev Supp Legal Costs,http://opendatacommunities.org/id/county-council/staffordshire  
Staffordshire County Council,Disposal Districts Unallocated,Willshees,01/10/2019,18747.84,WASTE TRANSPORT,WASTE TRANSPORT,http://opendatacommunities.org/id/county-council/staffordshire  
Staffordshire County Council,Through Care -Stafford/SStaffs,Wrixon Care Services,01/10/2019,2490.30,LC Travel Education & Training,LC Travel Education & Training,http://opendatacommunities.org/id/county-council/staffordshire  
Staffordshire County Council,Lichfield Invoice Led Older Pe,Wynters Care Group Limited,01/10/2019,565.80,Practical Care,Practical Care,http://opendatacommunities.org/id/county-council/staffordshire  
Staffordshire County Council,New School - Land At Pye Green,YORKSHIRE PURCHASING ORG,01/10/2019,4319.93,Construction Works,Construction Works,http://opendatacommunities.org/id/county-council/staffordshire  
Staffordshire County Council,New School - Land At Pye Green,YORKSHIRE PURCHASING ORG,01/10/2019,4672.80,Construction Works,Construction Works,http://opendatacommunities.org/id/county-council/staffordshire  
Staffordshire County Council,New School - Land At Pye Green,YORKSHIRE PURCHASING ORG,01/10/2019,6621.57,Construction Works,Construction Works,http://opendatacommunities.org/id/county-council/staffordshire  
Staffordshire County Council,Headquarters - I.S.P,Acorn Children's Home (Burton) Ltd,02/10/2019,15000.00,Specialist Childs Res Services,Specialist Childs Res Services,http://opendatacommunities.org/id/county-council/staffordshire  
Staffordshire County Council,Headquarters - I.S.P,Acorn Homes Group,02/10/2019,16714.29,Specialist Childs Res Services,Specialist Childs Res Services,http://opendatacommunities.org/id/county-council/staffordshire  
Staffordshire County Council,Fuel,ALLSTAR BUSINESS SOLUTIONS LTD,02/10/2019,4401.20,Petrol & Oil,Petrol & Oil,http://opendatacommunities.org/id/county-council/staffordshire  
Staffordshire County Council,Newcastle Invoice Led Older Pe,Alpha Home Assist,02/10/2019,1110.00,Practical Care,Practical Care,http://opendatacommunities.org/id/county-council/staffordshire  
Staffordshire County Council,"Server, Storage and DBA",ANS GROUP PLC,02/10/2019,1500.00,SOFTWARE LICENCES,SOFTWARE LICENCES,http://opendatacommunities.org/id/county-council/staffordshire  
Staffordshire County Council,Independent School Fee Special,Bluebell School Ltd,02/10/2019,16500.00,Fees to Independent Schools,Fees to Independent Schools,http://opendatacommunities.org/id/county-council/staffordshire  
Staffordshire County Council,Independent School Fee Special,Bluebell School Ltd,02/10/2019,16500.00,Fees to Independent Schools,Fees to Independent Schools,http://opendatacommunities.org/id/county-council/staffordshire  
Staffordshire County Council,Independent School Fee Special,Bluebell School Ltd,02/10/2019,16500.00,Fees to Independent Schools,Fees to Independent Schools,http://opendatacommunities.org/id/county-council/staffordshire  
Staffordshire County Council,Independent School Fee Special,Bluebell School Ltd,02/10/2019,16500.00,Fees to Independent Schools,Fees to Independent Schools,http://opendatacommunities.org/id/county-council/staffordshire  
Staffordshire County Council,Independent School Fee Special,Bluebell School Ltd,02/10/2019,24500.00,Fees to Independent Schools,Fees to Independent Schools,http://opendatacommunities.org/id/county-council/staffordshire  
Staffordshire County Council,Independent School Fee Special,Bluebell School Ltd,02/10/2019,16500.00,Fees to Independent Schools,Fees to Independent Schools,http://opendatacommunities.org/id/county-council/staffordshire  
Staffordshire County Council,Independent School Fee Special,Bluebell School Ltd,02/10/2019,16500.00,Fees to Independent Schools,Fees to Independent Schools,http://opendatacommunities.org/id/county-council/staffordshire  
Staffordshire County Council,Independent School Fee Special,Bluebell School Ltd,02/10/2019,16500.00,Fees to Independent Schools,Fees to Independent Schools,http://opendatacommunities.org/id/county-council/staffordshire  
Staffordshire County Council,Independent School Fee Special,Bluebell School Ltd,02/10/2019,18500.00,Fees to Independent Schools,Fees to Independent Schools,http://opendatacommunities.org/id/county-council/staffordshire  
Staffordshire County Council,Independent School Fee Special,Bluebell School Ltd,02/10/2019,18500.00,Fees to Independent Schools,Fees to Independent Schools,http://opendatacommunities.org/id/county-council/staffordshire  
Staffordshire County Council,Independent School Fee Special,Bluebell School Ltd,02/10/2019,18500.00,Fees to Independent Schools,Fees to Independent Schools,http://opendatacommunities.org/id/county-council/staffordshire  
Staffordshire County Council,Independent School Fee Special,Bluebell School Ltd,02/10/2019,16500.00,Fees to Independent Schools,Fees to Independent Schools,http://opendatacommunities.org/id/county-council/staffordshire  
Staffordshire County Council,Independent School Fee Special,Bluebell School Ltd,02/10/2019,16500.00,Fees to Independent Schools,Fees to Independent Schools,http://opendatacommunities.org/id/county-council/staffordshire  
Staffordshire County Council,Independent School Fee Special,Bluebell School Ltd,02/10/2019,16500.00,Fees to Independent Schools,Fees to Independent Schools,http://opendatacommunities.org/id/county-council/staffordshire  
Staffordshire County Council,Independent School Fee Special,Bluebell School Ltd,02/10/2019,16500.00,Fees to Independent Schools,Fees to Independent Schools,http://opendatacommunities.org/id/county-council/staffordshire  
Staffordshire County Council,Independent School Fee Special,Bluebell School Ltd,02/10/2019,18500.00,Fees to Independent Schools,Fees to Independent Schools,http://opendatacommunities.org/id/county-council/staffordshire  
Staffordshire County Council,Independent School Fee Special,Bluebell School Ltd,02/10/2019,16500.00,Fees to Independent Schools,Fees to Independent Schools,http://opendatacommunities.org/id/county-council/staffordshire  
Staffordshire County Council,Independent School Fee Special,Bluebell School Ltd,02/10/2019,18500.00,Fees to Independent Schools,Fees to Independent Schools,http://opendatacommunities.org/id/county-council/staffordshire  
Staffordshire County Council,Headquarters - I.S.P,Care Perspectives Ltd,02/10/2019,21214.29,Specialist Childs Res Services,Specialist Childs Res Services,http://opendatacommunities.org/id/county-council/staffordshire  
Staffordshire County Council,SSS - ASD Enhanc Key Stage 1/2,Childrens Choice Therapy Service,02/10/2019,530.00,PROFESSIONAL FEES,PROFESSIONAL FEES,http://opendatacommunities.org/id/county-council/staffordshire  
Staffordshire County Council,Carematch External,Daily Sparkle,02/10/2019,1400.00,EXTERNAL TRAINING,EXTERNAL TRAINING,http://opendatacommunities.org/id/county-council/staffordshire  
Staffordshire County Council,Manor Hill First Expansion,DMW Environmental Safety Ltd,02/10/2019,3294.00,Construction Works,Construction Works,http://opendatacommunities.org/id/county-council/staffordshire  
Staffordshire County Council,JVCo - Commissioning General,Entrust Support Services Ltd,02/10/2019,2054.00,Partnership - Unallocated,Partnership - Unallocated,http://opendatacommunities.org/id/county-council/staffordshire  
Staffordshire County Council,JVCo - Commissioning General,Entrust Support Services Ltd,02/10/2019,6374.59,Partnership - Unallocated,Partnership - Unallocated,http://opendatacommunities.org/id/county-council/staffordshire  
Staffordshire County Council,PAYG Pass Through to Schools,Entrust Support Services Ltd,02/10/2019,4198.40,Partnership - Unallocated,Partnership - Unallocated,http://opendatacommunities.org/id/county-council/staffordshire  
Staffordshire County Council,Silverdale Enterprise Centre,FORCE ONE SECURITY UK LTD,02/10/2019,1585.22,Premises Services,Premises Services,http://opendatacommunities.org/id/county-council/staffordshire  
Staffordshire County Council,Silverdale Enterprise Centre,FORCE ONE SECURITY UK LTD,02/10/2019,1501.45,Premises Services,Premises Services,http://opendatacommunities.org/id/county-council/staffordshire  
Staffordshire County Council,Lymedale Enterprise Centre,FORCE ONE SECURITY UK LTD,02/10/2019,1501.45,Premises Services,Premises Services,http://opendatacommunities.org/id/county-council/staffordshire  
Staffordshire County Council,"0816 County building,Martin St",G EVANS (SERVICES) LTD,02/10/2019,5997.96,Day to Day Electrical Services,Day to Day Electrical Services,http://opendatacommunities.org/id/county-council/staffordshire  
Staffordshire County Council,"0818 Shire Hall, Market St, ST",G EVANS (SERVICES) LTD,02/10/2019,1672.44,Day to Day Other,Day to Day Other,http://opendatacommunities.org/id/county-council/staffordshire  
Staffordshire County Council,1136 Bilbrook House 10Carter A,G EVANS (SERVICES) LTD,02/10/2019,826.20,Day to Day Mechanical Services,Day to Day Mechanical Services,http://opendatacommunities.org/id/county-council/staffordshire  
Staffordshire County Council,0952 Tamworth Lib CorporationS,G EVANS (SERVICES) LTD,02/10/2019,5005.20,Planned Mechanical Services,Planned Mechanical Services,http://opendatacommunities.org/id/county-council/staffordshire  
Staffordshire County Council,CM2000 System,HAS Technology Ltd,02/10/2019,24478.36,Practical Care,Practical Care,http://opendatacommunities.org/id/county-council/staffordshire  
Staffordshire County Council,Moorlands LD Team,HAYFIELD,02/10/2019,2776.67,Supported Group Care,Supported Group Care,http://opendatacommunities.org/id/county-council/staffordshire  
Staffordshire County Council,Moorlands LD Team,HAYFIELD,02/10/2019,1346.02,Day Care,Day Care,http://opendatacommunities.org/id/county-council/staffordshire  
Staffordshire County Council,Independent School Fee Special,Hopedale Children & Families Services,02/10/2019,9613.33,Fees to Independent Schools,Fees to Independent Schools,http://opendatacommunities.org/id/county-council/staffordshire  
Staffordshire County Council,Independent School Fee Special,Hopedale Children & Families Services,02/10/2019,9613.33,Fees to Independent Schools,Fees to Independent Schools,http://opendatacommunities.org/id/county-council/staffordshire  
Staffordshire County Council,Independent School Fee Special,Hopedale Children & Families Services,02/10/2019,11659.26,Fees to Independent Schools,Fees to Independent Schools,http://opendatacommunities.org/id/county-council/staffordshire  
Staffordshire County Council,Independent School Fee Special,Hopedale Children & Families Services,02/10/2019,9613.33,Fees to Independent Schools,Fees to Independent Schools,http://opendatacommunities.org/id/county-council/staffordshire  
Staffordshire County Council,Independent School Fee Special,Hopedale Children & Families Services,02/10/2019,11659.26,Fees to Independent Schools,Fees to Independent Schools,http://opendatacommunities.org/id/county-council/staffordshire  
Staffordshire County Council,Independent School Fee Special,Hopedale Children & Families Services,02/10/2019,11659.26,Fees to Independent Schools,Fees to Independent Schools,http://opendatacommunities.org/id/county-council/staffordshire  
Staffordshire County Council,Independent School Fee Special,Hopedale Children & Families Services,02/10/2019,11319.67,Fees to Independent Schools,Fees to Independent Schools,http://opendatacommunities.org/id/county-council/staffordshire  
Staffordshire County Council,Independent School Fee Special,Hopedale Children & Families Services,02/10/2019,11319.67,Fees to Independent Schools,Fees to Independent Schools,http://opendatacommunities.org/id/county-council/staffordshire  
Staffordshire County Council,Independent School Fee Special,Hopedale Children & Families Services,02/10/2019,16325.41,Fees to Independent Schools,Fees to Independent Schools,http://opendatacommunities.org/id/county-council/staffordshire  
Staffordshire County Council,Independent School Fee Special,Hopedale Children & Families Services,02/10/2019,11319.67,Fees to Independent Schools,Fees to Independent Schools,http://opendatacommunities.org/id/county-council/staffordshire  
Staffordshire County Council,Highways,Information Security Advice Limited,02/10/2019,1709.70,AGENCY STAFF,AGENCY STAFF,http://opendatacommunities.org/id/county-council/staffordshire  
Staffordshire County Council,Newcastle Invoice Led Physical,Jump 2 Independence Ltd,02/10/2019,869.79,Supported Group Care,Supported Group Care,http://opendatacommunities.org/id/county-council/staffordshire  
Staffordshire County Council,Newcastle MH Team U65,Jump 2 Independence Ltd,02/10/2019,520.57,Supported Group Care,Supported Group Care,http://opendatacommunities.org/id/county-council/staffordshire  
Staffordshire County Council,Newcastle Invoice Led Physical,Jump 2 Independence Ltd,02/10/2019,564.36,Supported Group Care,Supported Group Care,http://opendatacommunities.org/id/county-council/staffordshire  
Staffordshire County Council,KCOM - Core Network,KCom Group PLC,02/10/2019,11684.40,HARDWARE MAINTENANCE,HARDWARE MAINTENANCE,http://opendatacommunities.org/id/county-council/staffordshire  
Staffordshire County Council,Family and Friends Team,Kinship Matters Ltd,02/10/2019,1846.80,AGENCY STAFF,AGENCY STAFF,http://opendatacommunities.org/id/county-council/staffordshire  
Staffordshire County Council,HR System & Payroll,Liberata,02/10/2019,18333.97,OTHER HIRED SERVICES,OTHER HIRED SERVICES,http://opendatacommunities.org/id/county-council/staffordshire  
Staffordshire County Council,Leasing,LOGOTECH SYSTEMS,02/10/2019,1800.00,SOFTWARE LICENCES,SOFTWARE LICENCES,http://opendatacommunities.org/id/county-council/staffordshire  
Staffordshire County Council,Home to school transport-main,Milestone Minibuses,02/10/2019,1312.50,Home School Contract Vehicles,Home School Contract Vehicles,http://opendatacommunities.org/id/county-council/staffordshire  
Staffordshire County Council,Cannock Chase,NHBS,02/10/2019,1110.01,General Equipment Purchase,General Equipment Purchase,http://opendatacommunities.org/id/county-council/staffordshire  
Staffordshire County Council,Foster Care Recruitment Team,NSPCC,02/10/2019,500.00,Training Resources,Training Resources,http://opendatacommunities.org/id/county-council/staffordshire  
Staffordshire County Council,Case Manage Team -Central West,Pickerings Solicitors,02/10/2019,1401.36,Prev Supp Legal Costs,Prev Supp Legal Costs,http://opendatacommunities.org/id/county-council/staffordshire  
Staffordshire County Council,Headquarters - I.S.P,PINE FOREST HOMES LTD,02/10/2019,14571.43,Specialist Childs Res Services,Specialist Childs Res Services,http://opendatacommunities.org/id/county-council/staffordshire  
Staffordshire County Council,Headquarters - I.S.P,PINE FOREST HOMES LTD,02/10/2019,2285.71,Specialist Childs Res Services,Specialist Childs Res Services,http://opendatacommunities.org/id/county-council/staffordshire  
Staffordshire County Council,Moorlands Invoice Led Older Pe,RLS Care Services LTD,02/10/2019,510.30,Practical Care,Practical Care,http://opendatacommunities.org/id/county-council/staffordshire  
Staffordshire County Council,Newcastle Invoice Led Older Pe,RLS Care Services LTD,02/10/2019,510.30,Practical Care,Practical Care,http://opendatacommunities.org/id/county-council/staffordshire  
Staffordshire County Council,Moorlands Invoice Led Older Pe,RLS Care Services LTD,02/10/2019,510.30,Practical Care,Practical Care,http://opendatacommunities.org/id/county-council/staffordshire  
Staffordshire County Council,Moorlands Invoice Led Older Pe,RLS Care Services LTD,02/10/2019,510.30,Practical Care,Practical Care,http://opendatacommunities.org/id/county-council/staffordshire  
Staffordshire County Council,Moorlands Invoice Led Older Pe,RLS Care Services LTD,02/10/2019,510.30,Practical Care,Practical Care,http://opendatacommunities.org/id/county-council/staffordshire  
Staffordshire County Council,Newcastle Invoice Led Older Pe,RLS Care Services LTD,02/10/2019,554.85,Practical Care,Practical Care,http://opendatacommunities.org/id/county-council/staffordshire  
Staffordshire County Council,Newcastle Invoice Led Older Pe,RLS Care Services LTD,02/10/2019,554.84,Practical Care,Practical Care,http://opendatacommunities.org/id/county-council/staffordshire  
Staffordshire County Council,Newcastle Invoice Led Older Pe,RLS Care Services LTD,02/10/2019,554.85,Practical Care,Practical Care,http://opendatacommunities.org/id/county-council/staffordshire  
Staffordshire County Council,Newcastle Invoice Led Older Pe,RLS Care Services LTD,02/10/2019,554.85,Practical Care,Practical Care,http://opendatacommunities.org/id/county-council/staffordshire  
Staffordshire County Council,ICT Service Management,Specialist Computer Centres Ltd,02/10/2019,3288.00,AGENCY STAFF,AGENCY STAFF,http://opendatacommunities.org/id/county-council/staffordshire  
Staffordshire County Council,Technical Design Architecture,Specialist Computer Centres Ltd,02/10/2019,1620.00,AGENCY STAFF,AGENCY STAFF,http://opendatacommunities.org/id/county-council/staffordshire  
Staffordshire County Council,Transport for Excluded Pupils,Tamworth Amateur Boxing Club,02/10/2019,4025.00,Home School Contract Vehicles,Home School Contract Vehicles,http://opendatacommunities.org/id/county-council/staffordshire  
Staffordshire County Council,DIPS,Tamworth Amateur Boxing Club,02/10/2019,1490.00, Alternative Education Schemes, Alternative Education Schemes,http://opendatacommunities.org/id/county-council/staffordshire  
Staffordshire County Council,Local Members Initiatives,TURN Education,02/10/2019,500.00,Local Member Initiative Scheme,Local Member Initiative Scheme,http://opendatacommunities.org/id/county-council/staffordshire  
Staffordshire County Council,NHS Campus Reprov. Phase 1,Turning Point Service Limited,02/10/2019,119930.60,Supported Group Care,Supported Group Care,http://opendatacommunities.org/id/county-council/staffordshire  
Staffordshire County Council,1 STI Test & Treat,University Hospitals B'ham NHS FT,02/10/2019,1335.76,other services internal,other services internal,http://opendatacommunities.org/id/county-council/staffordshire  
Staffordshire County Council,MCA / DoLs / AMHP,Warburton-Scott Ltd,02/10/2019,725.25,Independent Investigations,Independent Investigations,http://opendatacommunities.org/id/county-council/staffordshire  
Staffordshire County Council,Knutton Enterprise Centre,WATER PLUS,02/10/2019,1679.54,Water & Sewerage,Water & Sewerage,http://opendatacommunities.org/id/county-council/staffordshire  
Staffordshire County Council,Central Winter Maintenance Wor,WINTER SERVICE SOLUTIONS LTD,02/10/2019,4527.60,Winter Maint - Prec Salting,Winter Maint - Prec Salting,http://opendatacommunities.org/id/county-council/staffordshire  
Staffordshire County Council,12 Drug Misuse - A,Addiction Dependency Solutions,03/10/2019,395008.34,OTHER HIRED SERVICES,OTHER HIRED SERVICES,http://opendatacommunities.org/id/county-council/staffordshire  
Staffordshire County Council,Stafford Invoice Led Older Peo,AMG NURSING & CARE SERVICES,03/10/2019,974.96,Practical Care,Practical Care,http://opendatacommunities.org/id/county-council/staffordshire  
Staffordshire County Council,Moorlands Invoice Led Older Pe,AMG NURSING & CARE SERVICES,03/10/2019,887.39,Practical Care,Practical Care,http://opendatacommunities.org/id/county-council/staffordshire  
Staffordshire County Council,East Staffs Invoice Led Older ,AMG NURSING & CARE SERVICES,03/10/2019,974.96,Practical Care,Practical Care,http://opendatacommunities.org/id/county-council/staffordshire  
Staffordshire County Council,East Staffs Invoice Led Older ,AMG NURSING & CARE SERVICES,03/10/2019,974.96,Practical Care,Practical Care,http://opendatacommunities.org/id/county-council/staffordshire  
Staffordshire County Council,East Staffs Invoice Led Older ,AMG NURSING & CARE SERVICES,03/10/2019,974.96,Practical Care,Practical Care,http://opendatacommunities.org/id/county-council/staffordshire  
Staffordshire County Council,Stafford Invoice Led Older Peo,AMG NURSING & CARE SERVICES,03/10/2019,974.96,Practical Care,Practical Care,http://opendatacommunities.org/id/county-council/staffordshire  
Staffordshire County Council,Stafford Invoice Led Older Peo,AMG NURSING & CARE SERVICES,03/10/2019,974.96,Practical Care,Practical Care,http://opendatacommunities.org/id/county-council/staffordshire  
Staffordshire County Council,Stafford Invoice Led Older Peo,AMG NURSING & CARE SERVICES,03/10/2019,974.96,Practical Care,Practical Care,http://opendatacommunities.org/id/county-council/staffordshire  
Staffordshire County Council,Stafford Invoice Led Older Peo,AMG NURSING & CARE SERVICES,03/10/2019,974.96,Practical Care,Practical Care,http://opendatacommunities.org/id/county-council/staffordshire  
Staffordshire County Council,Stafford Invoice Led Older Peo,AMG NURSING & CARE SERVICES,03/10/2019,974.96,Practical Care,Practical Care,http://opendatacommunities.org/id/county-council/staffordshire  
Staffordshire County Council,Stafford Invoice Led Older Peo,AMG NURSING & CARE SERVICES,03/10/2019,974.96,Practical Care,Practical Care,http://opendatacommunities.org/id/county-council/staffordshire  
Staffordshire County Council,Stafford Invoice Led Older Peo,AMG NURSING & CARE SERVICES,03/10/2019,974.96,Practical Care,Practical Care,http://opendatacommunities.org/id/county-council/staffordshire  
Staffordshire County Council,Independent School Fee Special,Aurora ASD Ltd T/A Aurora Hanley Sch,03/10/2019,17258.67,Fees to Independent Schools,Fees to Independent Schools,http://opendatacommunities.org/id/county-council/staffordshire  
Staffordshire County Council,Forsbrook CE(C) Primary School,BID,03/10/2019,540.00,Service/Test Controlled Access,Service/Test Controlled Access,http://opendatacommunities.org/id/county-council/staffordshire  
Staffordshire County Council,East Staffs Invoice Led Older ,Bluebird Care (East Staffs),03/10/2019,1412.00,Practical Care,Practical Care,http://opendatacommunities.org/id/county-council/staffordshire  
Staffordshire County Council,East Staffs Invoice Led Older ,Bluebird Care (East Staffs),03/10/2019,1632.80,Practical Care,Practical Care,http://opendatacommunities.org/id/county-council/staffordshire  
Staffordshire County Council,Stafford Invoice Led Phys Disa,Bluebird Care (Mid Staffs),03/10/2019,607.50,Practical Care,Practical Care,http://opendatacommunities.org/id/county-council/staffordshire  
Staffordshire County Council,Stafford Invoice Led Phys Disa,Bluebird Care (Mid Staffs),03/10/2019,1287.00,Practical Care,Practical Care,http://opendatacommunities.org/id/county-council/staffordshire  
Staffordshire County Council,Stafford Invoice Led Phys Disa,Bluebird Care (Mid Staffs),03/10/2019,1287.00,Practical Care,Practical Care,http://opendatacommunities.org/id/county-council/staffordshire  
Staffordshire County Council,Stafford Invoice Led Phys Disa,Bluebird Care (Mid Staffs),03/10/2019,1287.00,Practical Care,Practical Care,http://opendatacommunities.org/id/county-council/staffordshire  
Staffordshire County Council,Stafford Invoice Led Phys Disa,Bluebird Care (Mid Staffs),03/10/2019,1287.00,Practical Care,Practical Care,http://opendatacommunities.org/id/county-council/staffordshire  
Staffordshire County Council,Stafford Invoice Led Phys Disa,Bluebird Care (Mid Staffs),03/10/2019,1287.00,Practical Care,Practical Care,http://opendatacommunities.org/id/county-council/staffordshire  
Staffordshire County Council,Income and Debt,BOTTOMLINE TECHNOLOGIES,03/10/2019,705.60,Printing General,Printing General,http://opendatacommunities.org/id/county-council/staffordshire  
Staffordshire County Council,Moorlands Invoice Led Phys Dis,Crossroads (Staffs)Carng for Carers,03/10/2019,1278.75,Practical Care,Practical Care,http://opendatacommunities.org/id/county-council/staffordshire  
Staffordshire County Council,Moorlands Invoice Led Phys Dis,Crossroads (Staffs)Carng for Carers,03/10/2019,701.25,Practical Care,Practical Care,http://opendatacommunities.org/id/county-council/staffordshire  
Staffordshire County Council,KEVI Lichfield 2FE Expansion,DAWKES & CO LTD,03/10/2019,774.00,Construction Works,Construction Works,http://opendatacommunities.org/id/county-council/staffordshire  
Staffordshire County Council,Local Members Initiatives,Denstone Voluntary Car Scheme,03/10/2019,500.00,Local Member Initiative Scheme,Local Member Initiative Scheme,http://opendatacommunities.org/id/county-council/staffordshire  
Staffordshire County Council,Case Manage Team -Central West,Disklabs Ltd,03/10/2019,1728.00,Prev Supp Legal Costs,Prev Supp Legal Costs,http://opendatacommunities.org/id/county-council/staffordshire  
Staffordshire County Council,Concessionary Fare Schemes,E S P SYSTEX LTD,03/10/2019,2973.30,Printing General,Printing General,http://opendatacommunities.org/id/county-council/staffordshire  
Staffordshire County Council,Stafford Invoice Led Older Peo,Embrace Quality Care,03/10/2019,680.50,Practical Care,Practical Care,http://opendatacommunities.org/id/county-council/staffordshire  
Staffordshire County Council,Stafford Invoice Led Phys Disa,Embrace Quality Care,03/10/2019,527.00,Practical Care,Practical Care,http://opendatacommunities.org/id/county-council/staffordshire  
Staffordshire County Council,Lymedale Enterprise Centre,FORCE ONE SECURITY UK LTD,03/10/2019,1585.22,Premises Services,Premises Services,http://opendatacommunities.org/id/county-council/staffordshire  
Staffordshire County Council,Recoupment Academy- Mainstream,Haberdashers Adams,03/10/2019,4565.69,Extra District Charges Other,Extra District Charges Other,http://opendatacommunities.org/id/county-council/staffordshire  
Staffordshire County Council,Tithe Map Digitisation Project,ICAM Archive Systems Limited,03/10/2019,16410.00,OTHER HIRED SERVICES,OTHER HIRED SERVICES,http://opendatacommunities.org/id/county-council/staffordshire  
Staffordshire County Council,Walton Priory Middle School,INTEGRATED WATER SERVICES,03/10/2019,974.45,Special Water Hygiene Service,Special Water Hygiene Service,http://opendatacommunities.org/id/county-council/staffordshire  
Staffordshire County Council,1331 114 Douglas Rd Newcastle ,INTEGRATED WATER SERVICES,03/10/2019,525.80,Special Water Hygiene Service,Special Water Hygiene Service,http://opendatacommunities.org/id/county-council/staffordshire  
Staffordshire County Council,1323 Hawthorn House WS13 6EN,JLA LTD,03/10/2019,1421.04,General Equipment Repair/Maint,General Equipment Repair/Maint,http://opendatacommunities.org/id/county-council/staffordshire  
Staffordshire County Council,Doxey Road Car Park,Jonathan Lloyd Developments Limited,03/10/2019,1800.00,OTHER HIRED SERVICES,OTHER HIRED SERVICES,http://opendatacommunities.org/id/county-council/staffordshire  
Staffordshire County Council,Stafford Invoice Led Phys Disa,K and S Care Solutions Ltd,03/10/2019,1072.58,Practical Care,Practical Care,http://opendatacommunities.org/id/county-council/staffordshire  
Staffordshire County Council,Local Members Initiatives,LICHFIELD & DIST LIVE AT HOME SCHM,03/10/2019,520.00,Local Member Initiative Scheme,Local Member Initiative Scheme,http://opendatacommunities.org/id/county-council/staffordshire  
Staffordshire County Council,Cannock Chase LD Team,Lifestyle Sup Ltd T/A Bluebird Care,03/10/2019,4098.06,Practical Care,Practical Care,http://opendatacommunities.org/id/county-council/staffordshire  
Staffordshire County Council,2 Contraception,LLOYDS PHARMACY LTD,03/10/2019,8518.40,OTHER HIRED SERVICES,OTHER HIRED SERVICES,http://opendatacommunities.org/id/county-council/staffordshire  
Staffordshire County Council,Third Car Leasing Scheme,LOOKERS LEASING LTD,03/10/2019,644.63,Staff Car Leasing Recharge,Staff Car Leasing Recharge,http://opendatacommunities.org/id/county-council/staffordshire  
Staffordshire County Council,Third Car Leasing Scheme,LOOKERS LEASING LTD,03/10/2019,1864.08,Staff Car Leasing Recharge,Staff Car Leasing Recharge,http://opendatacommunities.org/id/county-council/staffordshire  
Staffordshire County Council,Stafford Invoice Led Phys Disa,LSC Nursing and Care Services Ltd,03/10/2019,2255.15,Practical Care,Practical Care,http://opendatacommunities.org/id/county-council/staffordshire  
Staffordshire County Council,B.R.F.C - Tamworth EA,Malachi Specialist Family Support Serv,03/10/2019,8623.80,other services external,other services external,http://opendatacommunities.org/id/county-council/staffordshire  
Staffordshire County Council,B.R.F.C - Cannock EA,Malachi Specialist Family Support Serv,03/10/2019,13027.50,other services external,other services external,http://opendatacommunities.org/id/county-council/staffordshire  
Staffordshire County Council,B.R.F.C - Lichfield EA,Malachi Specialist Family Support Serv,03/10/2019,11400.00,other services external,other services external,http://opendatacommunities.org/id/county-council/staffordshire  
Staffordshire County Council,Stafford Invoice Led Phys Disa,Midway Support Services,03/10/2019,1391.79,Practical Care,Practical Care,http://opendatacommunities.org/id/county-council/staffordshire  
Staffordshire County Council,RK24 Security-Server Support,N T A Monitor Ltd,03/10/2019,1122.53,PROFESSIONAL FEES,PROFESSIONAL FEES,http://opendatacommunities.org/id/county-council/staffordshire  
Staffordshire County Council,Local Members Initiatives,NATIONAL TRUST,03/10/2019,500.00,Local Member Initiative Scheme,Local Member Initiative Scheme,http://opendatacommunities.org/id/county-council/staffordshire  
Staffordshire County Council,Sir John Offley Toilet Refurbs,NOVUS PROPERTY SOLS LTD,03/10/2019,11636.51,Construction Works,Construction Works,http://opendatacommunities.org/id/county-council/staffordshire  
Staffordshire County Council,0009 Tamworth Childrens Cent B,NPOWER,03/10/2019,2538.00,Electricity,Electricity,http://opendatacommunities.org/id/county-council/staffordshire  
Staffordshire County Council,Other NDORS Courses,P Law,03/10/2019,520.00,DRIVING INSTRUCTION,DRIVING INSTRUCTION,http://opendatacommunities.org/id/county-council/staffordshire  
Staffordshire County Council,MCA / DoLs / AMHP,P Mushonga Social Care Ltd,03/10/2019,750.00,Independent Investigations,Independent Investigations,http://opendatacommunities.org/id/county-council/staffordshire  
Staffordshire County Council,MCA / DoLs / AMHP,P Mushonga Social Care Ltd,03/10/2019,750.00,Independent Investigations,Independent Investigations,http://opendatacommunities.org/id/county-council/staffordshire  
Staffordshire County Council,MCA / DoLs / AMHP,P Mushonga Social Care Ltd,03/10/2019,1000.00,Independent Investigations,Independent Investigations,http://opendatacommunities.org/id/county-council/staffordshire  
Staffordshire County Council,Local Members Initiatives,Parkrun Ltd,03/10/2019,2500.00,Local Member Initiative Scheme,Local Member Initiative Scheme,http://opendatacommunities.org/id/county-council/staffordshire  
Staffordshire County Council,Foster Care Recruitment Team,PRIMESIGHT LTD,03/10/2019,811.03,Advertising,Advertising,http://opendatacommunities.org/id/county-council/staffordshire  
Staffordshire County Council,Newcastle Invoice Led Older Pe,RADIS COMMUNITY CARE,03/10/2019,2704.80,Practical Care,Practical Care,http://opendatacommunities.org/id/county-council/staffordshire  
Staffordshire County Council,Further Education Placements,REASEHEATH COLLEGE,03/10/2019,30000.00,Events and Competitions,Events and Competitions,http://opendatacommunities.org/id/county-council/staffordshire  
Staffordshire County Council,Stafford LD Team,Sandwell Community Caring Trust,03/10/2019,6953.08,Supported Group Care,Supported Group Care,http://opendatacommunities.org/id/county-council/staffordshire  
Staffordshire County Council,Prevention and Placement,T Hall Consultancy,03/10/2019,700.00,CONSULTANT FEES,CONSULTANT FEES,http://opendatacommunities.org/id/county-council/staffordshire  
Staffordshire County Council,SEN Direct Payments,,03/10/2019,4430.00,Direct Payments Other,Direct Payments Other,http://opendatacommunities.org/id/county-council/staffordshire  
Staffordshire County Council,NHS Campus Reprov. Phase 1,Turning Point Service Limited,03/10/2019,12983.37,Supported Group Care,Supported Group Care,http://opendatacommunities.org/id/county-council/staffordshire  
Staffordshire County Council,1 STI Test & Treat,University Hospitals B'ham NHS FT,03/10/2019,992.72,other services internal,other services internal,http://opendatacommunities.org/id/county-council/staffordshire  
Staffordshire County Council,1 STI Test & Treat,University Hospitals B'ham NHS FT,03/10/2019,649.69,other services internal,other services internal,http://opendatacommunities.org/id/county-council/staffordshire  
Staffordshire County Council,1 STI Test & Treat,University Hospitals B'ham NHS FT,03/10/2019,1871.10,other services internal,other services internal,http://opendatacommunities.org/id/county-council/staffordshire  
Staffordshire County Council,1 STI Test & Treat,University Hospitals B'ham NHS FT,03/10/2019,1117.46,other services internal,other services internal,http://opendatacommunities.org/id/county-council/staffordshire  
Staffordshire County Council,1 STI Test & Treat,University Hospitals B'ham NHS FT,03/10/2019,1876.30,other services internal,other services internal,http://opendatacommunities.org/id/county-council/staffordshire  
Staffordshire County Council,Tamworth Invoice Led Phy Disab,Voyage Care Ltd,03/10/2019,1343.25,Supported Group Care,Supported Group Care,http://opendatacommunities.org/id/county-council/staffordshire  
Staffordshire County Council,Governance & Improvement,Waterman Aspen Ltd,03/10/2019,5913.60,CONSULTANT FEES,CONSULTANT FEES,http://opendatacommunities.org/id/county-council/staffordshire  
Staffordshire County Council,Disability Occup TherapistTeam,WESSEX LIFT CO LTD,03/10/2019,900.00,General Equipment Purchase,General Equipment Purchase,http://opendatacommunities.org/id/county-council/staffordshire  
Staffordshire County Council,Equipment Maintenance SET,WESSEX LIFT CO LTD,03/10/2019,1800.00,Servicing Equipment Purchase,Servicing Equipment Purchase,http://opendatacommunities.org/id/county-council/staffordshire  
Staffordshire County Council,Stafford Invoice Led Phys Disa,Affexa Care Services,04/10/2019,715.45,Practical Care,Practical Care,http://opendatacommunities.org/id/county-council/staffordshire  
Staffordshire County Council,South Staffs Coroner,Alere Toxicology PLC,04/10/2019,594.00,INQ EXPS S STAFFS,INQ EXPS S STAFFS,http://opendatacommunities.org/id/county-council/staffordshire  
Staffordshire County Council,East Staffs Invoice Led Older ,AMG NURSING & CARE SERVICES,04/10/2019,731.22,Practical Care,Practical Care,http://opendatacommunities.org/id/county-council/staffordshire  
Staffordshire County Council,East Staffs Invoice Led Older ,AMG NURSING & CARE SERVICES,04/10/2019,731.22,Practical Care,Practical Care,http://opendatacommunities.org/id/county-council/staffordshire  
Staffordshire County Council,East Staffs Invoice Led Older ,AMG NURSING & CARE SERVICES,04/10/2019,731.22,Practical Care,Practical Care,http://opendatacommunities.org/id/county-council/staffordshire  
Staffordshire County Council,Moorlands Invoice Led Older Pe,AMG NURSING & CARE SERVICES,04/10/2019,887.39,Practical Care,Practical Care,http://opendatacommunities.org/id/county-council/staffordshire  
Staffordshire County Council,Moorlands Invoice Led Older Pe,AMG NURSING & CARE SERVICES,04/10/2019,974.96,Practical Care,Practical Care,http://opendatacommunities.org/id/county-council/staffordshire  
Staffordshire County Council,Moorlands Invoice Led Older Pe,AMG NURSING & CARE SERVICES,04/10/2019,974.96,Practical Care,Practical Care,http://opendatacommunities.org/id/county-council/staffordshire  
Staffordshire County Council,Moorlands Invoice Led Older Pe,AMG NURSING & CARE SERVICES,04/10/2019,974.96,Practical Care,Practical Care,http://opendatacommunities.org/id/county-council/staffordshire  
Staffordshire County Council,Moorlands Invoice Led Older Pe,AMG NURSING & CARE SERVICES,04/10/2019,1014.16,Practical Care,Practical Care,http://opendatacommunities.org/id/county-council/staffordshire  
Staffordshire County Council,Moorlands Invoice Led Older Pe,AMG NURSING & CARE SERVICES,04/10/2019,1014.16,Practical Care,Practical Care,http://opendatacommunities.org/id/county-council/staffordshire  
Staffordshire County Council,Moorlands Invoice Led Older Pe,AMG NURSING & CARE SERVICES,04/10/2019,1014.16,Practical Care,Practical Care,http://opendatacommunities.org/id/county-council/staffordshire  
Staffordshire County Council,Moorlands Invoice Led Older Pe,AMG NURSING & CARE SERVICES,04/10/2019,507.08,Practical Care,Practical Care,http://opendatacommunities.org/id/county-council/staffordshire  
Staffordshire County Council,Moorlands Invoice Led Older Pe,AMG NURSING & CARE SERVICES,04/10/2019,507.08,Practical Care,Practical Care,http://opendatacommunities.org/id/county-council/staffordshire  
Staffordshire County Council,Moorlands Invoice Led Older Pe,AMG NURSING & CARE SERVICES,04/10/2019,507.08,Practical Care,Practical Care,http://opendatacommunities.org/id/county-council/staffordshire  
Staffordshire County Council,Newcastle Invoice Led Physical,AMG NURSING & CARE SERVICES,04/10/2019,507.08,Practical Care,Practical Care,http://opendatacommunities.org/id/county-council/staffordshire  
Staffordshire County Council,Moorlands Invoice Led Older Pe,AMG NURSING & CARE SERVICES,04/10/2019,974.96,Practical Care,Practical Care,http://opendatacommunities.org/id/county-council/staffordshire  
Staffordshire County Council,Moorlands Invoice Led Older Pe,AMG NURSING & CARE SERVICES,04/10/2019,974.96,Practical Care,Practical Care,http://opendatacommunities.org/id/county-council/staffordshire  
Staffordshire County Council,Moorlands Invoice Led Older Pe,AMG NURSING & CARE SERVICES,04/10/2019,974.96,Practical Care,Practical Care,http://opendatacommunities.org/id/county-council/staffordshire  
Staffordshire County Council,Moorlands Invoice Led Older Pe,AMG NURSING & CARE SERVICES,04/10/2019,731.22,Practical Care,Practical Care,http://opendatacommunities.org/id/county-council/staffordshire  
Staffordshire County Council,Moorlands Invoice Led Older Pe,AMG NURSING & CARE SERVICES,04/10/2019,731.22,Practical Care,Practical Care,http://opendatacommunities.org/id/county-council/staffordshire  
Staffordshire County Council,Moorlands Invoice Led Older Pe,AMG NURSING & CARE SERVICES,04/10/2019,731.22,Practical Care,Practical Care,http://opendatacommunities.org/id/county-council/staffordshire  
Staffordshire County Council,Moorlands Invoice Led Older Pe,AMG NURSING & CARE SERVICES,04/10/2019,974.96,Practical Care,Practical Care,http://opendatacommunities.org/id/county-council/staffordshire  
Staffordshire County Council,Moorlands Invoice Led Older Pe,AMG NURSING & CARE SERVICES,04/10/2019,974.96,Practical Care,Practical Care,http://opendatacommunities.org/id/county-council/staffordshire  
Staffordshire County Council,Moorlands Invoice Led Older Pe,AMG NURSING & CARE SERVICES,04/10/2019,974.96,Practical Care,Practical Care,http://opendatacommunities.org/id/county-council/staffordshire  
Staffordshire County Council,Stafford Invoice Led Older Peo,Aston Home Care Limited,04/10/2019,1114.60,Practical Care,Practical Care,http://opendatacommunities.org/id/county-council/staffordshire  
Staffordshire County Council,Stafford Invoice Led Older Peo,Aston Home Care Limited,04/10/2019,665.60,Practical Care,Practical Care,http://opendatacommunities.org/id/county-council/staffordshire  
Staffordshire County Council,Stafford Invoice Led Older Peo,Aston Home Care Limited,04/10/2019,1187.40,Practical Care,Practical Care,http://opendatacommunities.org/id/county-council/staffordshire  
Staffordshire County Council,Stafford Invoice Led Phys Disa,Aston Home Care Limited,04/10/2019,1060.60,Practical Care,Practical Care,http://opendatacommunities.org/id/county-council/staffordshire  
Staffordshire County Council,2 Contraception,Audley Health Centre,04/10/2019,710.00,other services external,other services external,http://opendatacommunities.org/id/county-council/staffordshire  
Staffordshire County Council,Stat-OOC transport,,04/10/2019,790.70,Personal Travel Budgets,Personal Travel Budgets,http://opendatacommunities.org/id/county-council/staffordshire  
Staffordshire County Council,Virtual School - Pupil Premium,BESTuition,04/10/2019,1000.00,OTHER ALLOWANCES,OTHER ALLOWANCES,http://opendatacommunities.org/id/county-council/staffordshire  
Staffordshire County Council,5438 Staffs Place 1&2Tipping S,BID,04/10/2019,20488.80,Day to Day Electrical Services,Day to Day Electrical Services,http://opendatacommunities.org/id/county-council/staffordshire  
Staffordshire County Council,Speech and Language/O Therapy,Childrens Choice Therapy Srvice Ltd,04/10/2019,2242.80,OTHER HIRED SERVICES,OTHER HIRED SERVICES,http://opendatacommunities.org/id/county-council/staffordshire  
Staffordshire County Council,SWS MH Team U65,Craegmoor Priory Group,04/10/2019,2100.00,Supported Group Care,Supported Group Care,http://opendatacommunities.org/id/county-council/staffordshire  
Staffordshire County Council,Endon External Tennis Court,DAWKES & CO LTD,04/10/2019,62957.46,Construction Works,Construction Works,http://opendatacommunities.org/id/county-council/staffordshire  
Staffordshire County Council,Berkswich Primary Playground s,DAWKES & CO LTD,04/10/2019,55217.08,Construction Works,Construction Works,http://opendatacommunities.org/id/county-council/staffordshire  
Staffordshire County Council,Springcroft Primary Playground,DAWKES & CO LTD,04/10/2019,71148.60,Construction Works,Construction Works,http://opendatacommunities.org/id/county-council/staffordshire  
Staffordshire County Council,Main Trading Standards,Disklabs Ltd,04/10/2019,1260.00,OTHER HIRED SERVICES,OTHER HIRED SERVICES,http://opendatacommunities.org/id/county-council/staffordshire  
Staffordshire County Council,Security Print,Elliott Baxter & Company Ltd,04/10/2019,846.54,General Equipment Repair/Maint,General Equipment Repair/Maint,http://opendatacommunities.org/id/county-council/staffordshire  
Staffordshire County Council,Lichfield LD Team,Empowering U Care Ltd,04/10/2019,2006.20,Day Care,Day Care,http://opendatacommunities.org/id/county-council/staffordshire  
Staffordshire County Council,Carematch External,Fairway Training (Healthcare) Ltd,04/10/2019,540.00,EXTERNAL TRAINING,EXTERNAL TRAINING,http://opendatacommunities.org/id/county-council/staffordshire  
Staffordshire County Council,County,Fleet Factors Ltd,04/10/2019,2595.20,CFC Purchase of Stock,CFC Purchase of Stock,http://opendatacommunities.org/id/county-council/staffordshire  
Staffordshire County Council,Thomas Russell Junior  - Teach,FORDS OF BLYTHE BRIDGE LTD,04/10/2019,3515.68,Construction Works,Construction Works,http://opendatacommunities.org/id/county-council/staffordshire  
Staffordshire County Council,5438 Staffs Place 1&2Tipping S,HEATELECT LIMITED,04/10/2019,4203.81,Day to Day Mechanical Services,Day to Day Mechanical Services,http://opendatacommunities.org/id/county-council/staffordshire  
Staffordshire County Council,Tamworth LD Team,Helping Hands,04/10/2019,3828.00,Supported Group Care,Supported Group Care,http://opendatacommunities.org/id/county-council/staffordshire  
Staffordshire County Council,Independent School Fee Special,Horizon Care Ltd,04/10/2019,3150.00,Fees to Independent Schools,Fees to Independent Schools,http://opendatacommunities.org/id/county-council/staffordshire  
Staffordshire County Council,Independent Fees -Hospital Edu,Huntercombe Hospital Stafford,04/10/2019,3150.00,Fees to Independent Schools,Fees to Independent Schools,http://opendatacommunities.org/id/county-council/staffordshire  
Staffordshire County Council,Independent Fees -Hospital Edu,Huntercombe Hospital Stafford,04/10/2019,4200.00,Fees to Independent Schools,Fees to Independent Schools,http://opendatacommunities.org/id/county-council/staffordshire  
Staffordshire County Council,Waterside Community Junior Sch,INTEGRATED WATER SERVICES,04/10/2019,556.46,Special Water Hygiene Service,Special Water Hygiene Service,http://opendatacommunities.org/id/county-council/staffordshire  
Staffordshire County Council,Marshlands School,INTEGRATED WATER SERVICES,04/10/2019,544.90,Special Water Hygiene Service,Special Water Hygiene Service,http://opendatacommunities.org/id/county-council/staffordshire  
Staffordshire County Council,7195 Building G Beacon Bus Par,ISE Estates Ltd,04/10/2019,10840.80,Rent / Lease Of Premises,Rent / Lease Of Premises,http://opendatacommunities.org/id/county-council/staffordshire  
Staffordshire County Council,"7232 Unit QB, Beaconside ST18 ",ISE Estates Ltd,04/10/2019,30699.83,Rent / Lease Of Premises,Rent / Lease Of Premises,http://opendatacommunities.org/id/county-council/staffordshire  
Staffordshire County Council,7417 Unit V Bus Park,ISE Estates Ltd,04/10/2019,7301.74,Rent / Lease Of Premises,Rent / Lease Of Premises,http://opendatacommunities.org/id/county-council/staffordshire  
Staffordshire County Council,7115 Unit Qa Beacon Business P,ISE Estates Ltd,04/10/2019,50892.22,Rent / Lease Of Premises,Rent / Lease Of Premises,http://opendatacommunities.org/id/county-council/staffordshire  
Staffordshire County Council,7115 Unit Qa Beacon Business P,ISE Estates Ltd,04/10/2019,14498.63,Rent / Lease Of Premises,Rent / Lease Of Premises,http://opendatacommunities.org/id/county-council/staffordshire  
Staffordshire County Council,Speed Awareness,J Vincent,04/10/2019,1040.00,DRIVING INSTRUCTION,DRIVING INSTRUCTION,http://opendatacommunities.org/id/county-council/staffordshire  
Staffordshire County Council,Cent Cty Psychol Service HQ,Karen Stockton,04/10/2019,900.00,PROFESSIONAL FEES,PROFESSIONAL FEES,http://opendatacommunities.org/id/county-council/staffordshire  
Staffordshire County Council,Cent Cty Psychol Service HQ,Karen Stockton,04/10/2019,900.00,PROFESSIONAL FEES,PROFESSIONAL FEES,http://opendatacommunities.org/id/county-council/staffordshire  
Staffordshire County Council,Highways Laboratory,KILN MAINTENANCE LTD,04/10/2019,837.60,General Equipment Repair/Maint,General Equipment Repair/Maint,http://opendatacommunities.org/id/county-council/staffordshire  
Staffordshire County Council,2 Contraception,LAUREL HOUSE SURGERY,04/10/2019,2249.52,other services external,other services external,http://opendatacommunities.org/id/county-council/staffordshire  
Staffordshire County Council,Stafford Invoice Led Phys Disa,Lifeways Community Care Ltd,04/10/2019,2811.00,Practical Care,Practical Care,http://opendatacommunities.org/id/county-council/staffordshire  
Staffordshire County Council,"1378 Old House Lichfield, WS13",M W CRIPWELL LTD,04/10/2019,678.00,Day to Day Electrical Services,Day to Day Electrical Services,http://opendatacommunities.org/id/county-council/staffordshire  
Staffordshire County Council,S Staffs LD Team,Mencap,04/10/2019,6120.00,Supported Group Care,Supported Group Care,http://opendatacommunities.org/id/county-council/staffordshire  
Staffordshire County Council,S Staffs LD Team,Mencap,04/10/2019,4984.00,Supported Group Care,Supported Group Care,http://opendatacommunities.org/id/county-council/staffordshire  
Staffordshire County Council,S Staffs LD Team,Mencap,04/10/2019,6120.00,Supported Group Care,Supported Group Care,http://opendatacommunities.org/id/county-council/staffordshire  
Staffordshire County Council,Registration Service - Unalloc,Microform Imaging Limited,04/10/2019,2066.40,SOFTWARE LICENCES,SOFTWARE LICENCES,http://opendatacommunities.org/id/county-council/staffordshire  
Staffordshire County Council,1 STI Test & Treat,Midlands Part NHS FT,04/10/2019,115411.33,OUTWARD PORTABILITY,OUTWARD PORTABILITY,http://opendatacommunities.org/id/county-council/staffordshire  
Staffordshire County Council,Family Group Conferencing,N Khanom,04/10/2019,575.00,AGENCY STAFF,AGENCY STAFF,http://opendatacommunities.org/id/county-council/staffordshire  
Staffordshire County Council,Lymedale West Business Centre,NEWCASTLE U LYME BOROUGH COUNCIL,04/10/2019,725.69,Business Rates,Business Rates,http://opendatacommunities.org/id/county-council/staffordshire  
Staffordshire County Council,Destination Management Partner,Not1Regret Ltd,04/10/2019,525.00,Hospitality General Expenses,Hospitality General Expenses,http://opendatacommunities.org/id/county-council/staffordshire  
Staffordshire County Council,2 Contraception,P J LIGHTFOOT & PARTNERS,04/10/2019,1330.60,other services external,other services external,http://opendatacommunities.org/id/county-council/staffordshire  
Staffordshire County Council,Speed Awareness,PBM INSPECTION SERVICES LTD,04/10/2019,1974.17,Premises Services,Premises Services,http://opendatacommunities.org/id/county-council/staffordshire  
Staffordshire County Council,Network Management Team,Penna Plc,04/10/2019,546.21,Advertising,Advertising,http://opendatacommunities.org/id/county-council/staffordshire  
Staffordshire County Council,Health & Safety,Penna Plc,04/10/2019,1542.36,other services external,other services external,http://opendatacommunities.org/id/county-council/staffordshire  
Staffordshire County Council,Improving Practice,Permanent Futures Ltd,04/10/2019,4998.00,CONSULTANT FEES,CONSULTANT FEES,http://opendatacommunities.org/id/county-council/staffordshire  
Staffordshire County Council,County,POST OFFICE LTD,04/10/2019,3585.00,Excise Licence,Excise Licence,http://opendatacommunities.org/id/county-council/staffordshire  
Staffordshire County Council,SP1 2 Office Move,R A EDWARDS & PARTNERS LTD,04/10/2019,3586.81,Construction Works,Construction Works,http://opendatacommunities.org/id/county-council/staffordshire  
Staffordshire County Council,Destination Management Partner,R H Advertising Ltd,04/10/2019,674.40,Advertising,Advertising,http://opendatacommunities.org/id/county-council/staffordshire  
Staffordshire County Council,Court & Care Plan-Staff/SouthS,Ros Davies Counselling,04/10/2019,800.00,S17-SUPP TO RELATIVE,S17-SUPP TO RELATIVE,http://opendatacommunities.org/id/county-council/staffordshire  
Staffordshire County Council,Pupil Support Unit:Alloc,School Guide UK Ltd,04/10/2019,1440.00,Printing General,Printing General,http://opendatacommunities.org/id/county-council/staffordshire  
Staffordshire County Council,HS2,Sharpe Pritchard,04/10/2019,556.80,PROFESSIONAL FEES,PROFESSIONAL FEES,http://opendatacommunities.org/id/county-council/staffordshire  
Staffordshire County Council,HS2,Sharpe Pritchard,04/10/2019,1267.20,PROFESSIONAL FEES,PROFESSIONAL FEES,http://opendatacommunities.org/id/county-council/staffordshire  
Staffordshire County Council,Adoption Agency Panel Team,Social Care Assessment Services Ltd,04/10/2019,960.00,AGENCY STAFF,AGENCY STAFF,http://opendatacommunities.org/id/county-council/staffordshire  
Staffordshire County Council,0927 Burton Library Riverside ,South Staffs Water Business,04/10/2019,810.46,Water Charges Metered,Water Charges Metered,http://opendatacommunities.org/id/county-council/staffordshire  
Staffordshire County Council,Independent Sch Fees Mainstr'm,SPORTING STARS COMM INTEREST CO,04/10/2019,7117.50,Fees to Independent Schools,Fees to Independent Schools,http://opendatacommunities.org/id/county-council/staffordshire  
Staffordshire County Council,Independent Sch Fees Mainstr'm,SPORTING STARS COMM INTEREST CO,04/10/2019,5667.50,Fees to Independent Schools,Fees to Independent Schools,http://opendatacommunities.org/id/county-council/staffordshire  
Staffordshire County Council,Independent Sch Fees Mainstr'm,SPORTING STARS COMM INTEREST CO,04/10/2019,5765.00,Fees to Independent Schools,Fees to Independent Schools,http://opendatacommunities.org/id/county-council/staffordshire  
Staffordshire County Council,Independent Sch Fees Mainstr'm,SPORTING STARS COMM INTEREST CO,04/10/2019,6142.50,Fees to Independent Schools,Fees to Independent Schools,http://opendatacommunities.org/id/county-council/staffordshire  
Staffordshire County Council,Independent Sch Fees Mainstr'm,SPORTING STARS COMM INTEREST CO,04/10/2019,7247.50,Fees to Independent Schools,Fees to Independent Schools,http://opendatacommunities.org/id/county-council/staffordshire  
Staffordshire County Council,Independent Sch Fees Mainstr'm,SPORTING STARS COMM INTEREST CO,04/10/2019,6389.00,Fees to Independent Schools,Fees to Independent Schools,http://opendatacommunities.org/id/county-council/staffordshire  
Staffordshire County Council,Independent Sch Fees Mainstr'm,SPORTING STARS COMM INTEREST CO,04/10/2019,6142.50,Fees to Independent Schools,Fees to Independent Schools,http://opendatacommunities.org/id/county-council/staffordshire  
Staffordshire County Council,Independent Sch Fees Mainstr'm,SPORTING STARS COMM INTEREST CO,04/10/2019,5453.00,Fees to Independent Schools,Fees to Independent Schools,http://opendatacommunities.org/id/county-council/staffordshire  
Staffordshire County Council,Independent Sch Fees Mainstr'm,SPORTING STARS COMM INTEREST CO,04/10/2019,7507.50,Fees to Independent Schools,Fees to Independent Schools,http://opendatacommunities.org/id/county-council/staffordshire  
Staffordshire County Council,Independent Sch Fees Mainstr'm,SPORTING STARS COMM INTEREST CO,04/10/2019,5823.50,Fees to Independent Schools,Fees to Independent Schools,http://opendatacommunities.org/id/county-council/staffordshire  
Staffordshire County Council,Home to school transport-main,TAXICO,04/10/2019,3456.00,Home School Tickets,Home School Tickets,http://opendatacommunities.org/id/county-council/staffordshire  
Staffordshire County Council,Cent Cty Psychol Service HQ,THE UNIVERSITY OF BIRMINGHAM,04/10/2019,17100.00,CAT1 COURSE FEES,CAT1 COURSE FEES,http://opendatacommunities.org/id/county-council/staffordshire  
Staffordshire County Council,Stock Management,ULVERSCROFT LARGE PR BOOKS LTD,04/10/2019,813.30,Books,Books,http://opendatacommunities.org/id/county-council/staffordshire  
Staffordshire County Council,Stock Management,ULVERSCROFT LARGE PR BOOKS LTD,04/10/2019,813.30,Books,Books,http://opendatacommunities.org/id/county-council/staffordshire  
Staffordshire County Council,Stock Management,ULVERSCROFT LARGE PR BOOKS LTD,04/10/2019,1111.18,Books,Books,http://opendatacommunities.org/id/county-council/staffordshire  
Staffordshire County Council,Advocacy,VoiceAbility Advocacy,04/10/2019,41998.25,OTHER HIRED SERVICES,OTHER HIRED SERVICES,http://opendatacommunities.org/id/county-council/staffordshire  
Staffordshire County Council,Tamworth Invoice Led Phy Disab,Voyage Ltd,04/10/2019,1660.50,Supported Group Care,Supported Group Care,http://opendatacommunities.org/id/county-council/staffordshire  
Staffordshire County Council,Tamworth Invoice Led Phy Disab,Voyage Ltd,04/10/2019,1660.50,Supported Group Care,Supported Group Care,http://opendatacommunities.org/id/county-council/staffordshire  
Staffordshire County Council,Cannock Invoice Led Phys Disab,Voyage Ltd,04/10/2019,1720.02,Supported Group Care,Supported Group Care,http://opendatacommunities.org/id/county-council/staffordshire  
Staffordshire County Council,HR General,Weightmans LLP,04/10/2019,504.00,Legal Costs and Stamp Duty,Legal Costs and Stamp Duty,http://opendatacommunities.org/id/county-council/staffordshire  
Staffordshire County Council,Disability Occup TherapistTeam,WESSEX LIFT CO LTD,04/10/2019,1056.00,Servicing Equipment Purchase,Servicing Equipment Purchase,http://opendatacommunities.org/id/county-council/staffordshire  
Staffordshire County Council,Equipment Maintenance SET,WESSEX LIFT CO LTD,04/10/2019,1440.00,Servicing Equipment Purchase,Servicing Equipment Purchase,http://opendatacommunities.org/id/county-council/staffordshire  
Staffordshire County Council,Stafford Children's Centres,YMCA North Staffordshire,04/10/2019,17890.00,Grants Other,Grants Other,http://opendatacommunities.org/id/county-council/staffordshire  
Staffordshire County Council,Various,COMENSURA,04/10/2019,162107.37,AGENCY STAFF,AGENCY STAFF,http://opendatacommunities.org/id/county-council/staffordshire  
Staffordshire County Council,Stafford Invoice Led Phys Disa,5 Care Services Limited,07/10/2019,6174.75,Practical Care,Practical Care,http://opendatacommunities.org/id/county-council/staffordshire  
Staffordshire County Council,Cannock Invoice Led Phys Disab,Active Assistance Ltd,07/10/2019,1176.56,Practical Care,Practical Care,http://opendatacommunities.org/id/county-council/staffordshire  
Staffordshire County Council,Cannock Invoice Led Older Peop,ADVANCE HEALTHCARE UK LTD,07/10/2019,2315.55,Practical Care,Practical Care,http://opendatacommunities.org/id/county-council/staffordshire  
Staffordshire County Council,Transport Planning,ATKINS TRANSPORT PLANNING,07/10/2019,23400.00,CONSULTANT FEES,CONSULTANT FEES,http://opendatacommunities.org/id/county-council/staffordshire  
Staffordshire County Council,Independent Sch Fees Mainstr'm,Beech Hall School Ltd,07/10/2019,3420.00,Fees to Independent Schools,Fees to Independent Schools,http://opendatacommunities.org/id/county-council/staffordshire  
Staffordshire County Council,Headquarters - I.S.P,Benjamin UK,07/10/2019,5323.92,Specialist Childs Res Services,Specialist Childs Res Services,http://opendatacommunities.org/id/county-council/staffordshire  
Staffordshire County Council,Blythe Bridge High ACM removal,BURTON ENVIRONMENTAL SERVS LTD,07/10/2019,3024.00,Construction Works,Construction Works,http://opendatacommunities.org/id/county-council/staffordshire  
Staffordshire County Council,S Staffs LD Team,Care Plus (Staffordshire) Ltd,07/10/2019,1135.70,Supported Group Care,Supported Group Care,http://opendatacommunities.org/id/county-council/staffordshire  
Staffordshire County Council,Lichfield LD Team,Care World Wide,07/10/2019,3840.00,Supported Group Care,Supported Group Care,http://opendatacommunities.org/id/county-council/staffordshire  
Staffordshire County Council,Independent Sch Fees Mainstr'm,Chase Grammar School,07/10/2019,5037.50,Fees to Independent Schools,Fees to Independent Schools,http://opendatacommunities.org/id/county-council/staffordshire  
Staffordshire County Council,Rising Brook High School,CHUBB FIRE & SECURITY LTD,07/10/2019,702.00,Service/Test Intruder Alarms,Service/Test Intruder Alarms,http://opendatacommunities.org/id/county-council/staffordshire  
Staffordshire County Council,Newc/Moor Disability Team,CITY CENTRE CENTRAL,07/10/2019,1134.00,S17 TRANSPORT,S17 TRANSPORT,http://opendatacommunities.org/id/county-council/staffordshire  
Staffordshire County Council,E Staffs LD Team,CJB Care Ltd,07/10/2019,1080.00,Practical Care,Practical Care,http://opendatacommunities.org/id/county-council/staffordshire  
Staffordshire County Council,Newcastle Invoice Led Older Pe,Community Care Worker,07/10/2019,728.28,Practical Care,Practical Care,http://opendatacommunities.org/id/county-council/staffordshire  
Staffordshire County Council,Newcastle Invoice Led Older Pe,Community Care Worker,07/10/2019,516.60,Practical Care,Practical Care,http://opendatacommunities.org/id/county-council/staffordshire  
Staffordshire County Council,MCA / DoLs / AMHP,Complete Social Work Ltd,07/10/2019,1040.05,Independent Investigations,Independent Investigations,http://opendatacommunities.org/id/county-council/staffordshire  
Staffordshire County Council,Headquarters - I.S.P,Cora Foundation,07/10/2019,38481.37,Specialist Childs Res Services,Specialist Childs Res Services,http://opendatacommunities.org/id/county-council/staffordshire  
Staffordshire County Council,Foster Care Recruitment Team,Core Publishing Ltd,07/10/2019,672.00,Advertising,Advertising,http://opendatacommunities.org/id/county-council/staffordshire  
Staffordshire County Council,Cannock Invoice Led Phys Disab,CSPC Healthcare Ltd,07/10/2019,598.50,Practical Care,Practical Care,http://opendatacommunities.org/id/county-council/staffordshire  
Staffordshire County Council,Stafford Invoice Led Older Peo,CSPC Healthcare Ltd,07/10/2019,1260.00,Practical Care,Practical Care,http://opendatacommunities.org/id/county-council/staffordshire  
Staffordshire County Council,Care Proceedings team (East),,07/10/2019,557.48,S17 FAMILY SUPPORT,S17 FAMILY SUPPORT,http://opendatacommunities.org/id/county-council/staffordshire  
Staffordshire County Council,Independent School Fee Special,DAVID LEWIS CENTRE FOR EPILEPSY,07/10/2019,71337.50,Fees to Independent Schools,Fees to Independent Schools,http://opendatacommunities.org/id/county-council/staffordshire  
Staffordshire County Council,Lighting & Signals Works,E ON UK ENERGY SERVICES LTD,07/10/2019,747.82,Street Lighting Improvements,Street Lighting Improvements,http://opendatacommunities.org/id/county-council/staffordshire  
Staffordshire County Council,I54 Extension,E ON UK ENERGY SERVICES LTD,07/10/2019,2040.00,Ext Fees Construction,Ext Fees Construction,http://opendatacommunities.org/id/county-council/staffordshire  
Staffordshire County Council,Operational Budget,EMOS INFORMATION SYSTEMS LTD,07/10/2019,1178.50,PHOTOCOPIER RENTAL,PHOTOCOPIER RENTAL,http://opendatacommunities.org/id/county-council/staffordshire  
Staffordshire County Council,Moorlands Invoice Led Older Pe,Essential Health Limited,07/10/2019,882.00,Practical Care,Practical Care,http://opendatacommunities.org/id/county-council/staffordshire  
Staffordshire County Council,Highways,F A Sawford,07/10/2019,1143.00,AGENCY STAFF,AGENCY STAFF,http://opendatacommunities.org/id/county-council/staffordshire  
Staffordshire County Council,Knutton Enterprise Centre,FORCE ONE SECURITY UK LTD,07/10/2019,1501.45,Premises Services,Premises Services,http://opendatacommunities.org/id/county-council/staffordshire  
Staffordshire County Council,Richard Heathcote Roofing,G EVANS (SERVICES) LTD,07/10/2019,16217.37,Construction Works,Construction Works,http://opendatacommunities.org/id/county-council/staffordshire  
Staffordshire County Council,Ravensmead Classroom Refurb,G EVANS (SERVICES) LTD,07/10/2019,27600.00,Construction Works,Construction Works,http://opendatacommunities.org/id/county-council/staffordshire  
Staffordshire County Council,Staffordshire Wood Fuel,GF & VJ WHIRLEDGE,07/10/2019,2000.00,Rent / Lease Of Premises,Rent / Lease Of Premises,http://opendatacommunities.org/id/county-council/staffordshire  
Staffordshire County Council,Newcastle LD Team,In Out and About Ltd,07/10/2019,1633.60,Day Care,Day Care,http://opendatacommunities.org/id/county-council/staffordshire  
Staffordshire County Council,Foster Care Recruitment Team,Indalo Marquees Ltd,07/10/2019,1680.60,Training Resources,Training Resources,http://opendatacommunities.org/id/county-council/staffordshire  
Staffordshire County Council,Newcastle Invoice Led Older Pe,Jump 2 Independence Ltd,07/10/2019,1456.56,Practical Care,Practical Care,http://opendatacommunities.org/id/county-council/staffordshire  
Staffordshire County Council,Newcastle Invoice Led Older Pe,Jump 2 Independence Ltd,07/10/2019,1456.56,Practical Care,Practical Care,http://opendatacommunities.org/id/county-council/staffordshire  
Staffordshire County Council,Newcastle Invoice Led Older Pe,Jump 2 Independence Ltd,07/10/2019,1456.56,Practical Care,Practical Care,http://opendatacommunities.org/id/county-council/staffordshire  
Staffordshire County Council,Newcastle Invoice Led Older Pe,Jump 2 Independence Ltd,07/10/2019,1456.57,Practical Care,Practical Care,http://opendatacommunities.org/id/county-council/staffordshire  
Staffordshire County Council,East Staffs Invoice Led Phys D,K and S Care Solutions Ltd,07/10/2019,821.80,Practical Care,Practical Care,http://opendatacommunities.org/id/county-council/staffordshire  
Staffordshire County Council,Stafford Invoice Led Older Peo,K and S Care Solutions Ltd,07/10/2019,865.20,Practical Care,Practical Care,http://opendatacommunities.org/id/county-council/staffordshire  
Staffordshire County Council,Stafford Invoice Led Older Peo,K and S Care Solutions Ltd,07/10/2019,578.40,Practical Care,Practical Care,http://opendatacommunities.org/id/county-council/staffordshire  
Staffordshire County Council,Stafford Invoice Led Older Peo,K and S Care Solutions Ltd,07/10/2019,853.65,Practical Care,Practical Care,http://opendatacommunities.org/id/county-council/staffordshire  
Staffordshire County Council,Stafford Invoice Led Older Peo,K and S Care Solutions Ltd,07/10/2019,557.00,Practical Care,Practical Care,http://opendatacommunities.org/id/county-council/staffordshire  
Staffordshire County Council,Stafford Invoice Led Phys Disa,K and S Care Solutions Ltd,07/10/2019,1072.58,Practical Care,Practical Care,http://opendatacommunities.org/id/county-council/staffordshire  
Staffordshire County Council,Moorlands Invoice Led Older Pe,K and S Care Solutions Ltd,07/10/2019,724.50,Practical Care,Practical Care,http://opendatacommunities.org/id/county-council/staffordshire  
Staffordshire County Council,E Staffs LD Team,LINFIELD CARE LIMITED,07/10/2019,18844.80,Supported Group Care,Supported Group Care,http://opendatacommunities.org/id/county-council/staffordshire  
Staffordshire County Council,East Staffs Invoice Led Phys D,MEDILINE NURSES,07/10/2019,5335.68,Practical Care,Practical Care,http://opendatacommunities.org/id/county-council/staffordshire  
Staffordshire County Council,Stafford LD Team,Mencap,07/10/2019,6120.00,Supported Group Care,Supported Group Care,http://opendatacommunities.org/id/county-council/staffordshire  
Staffordshire County Council,2 Contraception,Midlands Part NHS FT,07/10/2019,850.00,OTHER HIRED SERVICES,OTHER HIRED SERVICES,http://opendatacommunities.org/id/county-council/staffordshire  
Staffordshire County Council,1 STI Test & Treat,Midlands Part NHS FT,07/10/2019,761125.75,INWARD PORTABILITY,INWARD PORTABILITY,http://opendatacommunities.org/id/county-council/staffordshire  
Staffordshire County Council,DIPS,NATIONAL TEACHING ADVISORY SERVI,07/10/2019,780.00, Alternative Education Schemes, Alternative Education Schemes,http://opendatacommunities.org/id/county-council/staffordshire  
Staffordshire County Council,DIPS,NATIONAL TEACHING ADVISORY SERVI,07/10/2019,2340.00, Alternative Education Schemes, Alternative Education Schemes,http://opendatacommunities.org/id/county-council/staffordshire  
Staffordshire County Council,Lichfield Invoice Led Older Pe,Nexus Care Services,07/10/2019,763.84,Practical Care,Practical Care,http://opendatacommunities.org/id/county-council/staffordshire  
Staffordshire County Council,Headquarters - I.S.P,Nottinghamshire YMCA,07/10/2019,13285.71,Specialist Childs Res Services,Specialist Childs Res Services,http://opendatacommunities.org/id/county-council/staffordshire  
Staffordshire County Council,Waterside Court Enterprise Cen,Redfern Contract Consultants Ltd,07/10/2019,3916.80,Repair and Maint Buildings NPS,Repair and Maint Buildings NPS,http://opendatacommunities.org/id/county-council/staffordshire  
Staffordshire County Council,East Staffs Invoice Led Older ,RLS Care Services LTD,07/10/2019,510.30,Practical Care,Practical Care,http://opendatacommunities.org/id/county-council/staffordshire  
Staffordshire County Council,East Staffs Invoice Led Older ,RLS Care Services LTD,07/10/2019,510.30,Practical Care,Practical Care,http://opendatacommunities.org/id/county-council/staffordshire  
Staffordshire County Council,East Staffs Invoice Led Older ,RLS Care Services LTD,07/10/2019,510.30,Practical Care,Practical Care,http://opendatacommunities.org/id/county-council/staffordshire  
Staffordshire County Council,East Staffs Invoice Led Older ,RLS Care Services LTD,07/10/2019,510.30,Practical Care,Practical Care,http://opendatacommunities.org/id/county-council/staffordshire  
Staffordshire County Council,East Staffs Invoice Led Older ,RLS Care Services LTD,07/10/2019,907.20,Practical Care,Practical Care,http://opendatacommunities.org/id/county-council/staffordshire  
Staffordshire County Council,Lichfield Invoice Led Physi Di,RLS Care Services LTD,07/10/2019,615.60,Practical Care,Practical Care,http://opendatacommunities.org/id/county-council/staffordshire  
Staffordshire County Council,Lichfield Invoice Led Physi Di,RLS Care Services LTD,07/10/2019,510.30,Practical Care,Practical Care,http://opendatacommunities.org/id/county-council/staffordshire  
Staffordshire County Council,Cannock Invoice Led Older Peop,RLS Care Services LTD,07/10/2019,510.30,Practical Care,Practical Care,http://opendatacommunities.org/id/county-council/staffordshire  
Staffordshire County Council,Cannock Invoice Led Older Peop,RLS Care Services LTD,07/10/2019,623.70,Practical Care,Practical Care,http://opendatacommunities.org/id/county-council/staffordshire  
Staffordshire County Council,Moorlands Invoice Led Older Pe,RLS Care Services LTD,07/10/2019,510.30,Practical Care,Practical Care,http://opendatacommunities.org/id/county-council/staffordshire  
Staffordshire County Council,Newcastle Invoice Led Older Pe,RLS Care Services LTD,07/10/2019,510.30,Practical Care,Practical Care,http://opendatacommunities.org/id/county-council/staffordshire  
Staffordshire County Council,Family and Friends Team,ROOSTER'S DAY NURSERY,07/10/2019,678.00,Fostering Discretionary Paymts,Fostering Discretionary Paymts,http://opendatacommunities.org/id/county-council/staffordshire  
Staffordshire County Council,Family and Friends Team,ROOSTER'S DAY NURSERY,07/10/2019,585.00,Fostering Discretionary Paymts,Fostering Discretionary Paymts,http://opendatacommunities.org/id/county-council/staffordshire  
Staffordshire County Council,7110 Unit 6 Anson Court Burton,Rushton Hickman Prop Cons Rent,07/10/2019,9407.00,Rent / Lease Of Premises,Rent / Lease Of Premises,http://opendatacommunities.org/id/county-council/staffordshire  
Staffordshire County Council,Cannock Invoice Led Older Peop,Sahara Day Centre,07/10/2019,875.00,Practical Care,Practical Care,http://opendatacommunities.org/id/county-council/staffordshire  
Staffordshire County Council,Finance & Resources Management,SCC Sundry BACS  1 Company,07/10/2019,500.00,Ex Gratia Payments,Ex Gratia Payments,http://opendatacommunities.org/id/county-council/staffordshire  
Staffordshire County Council,Independent School Fee Special,Senad Limited,07/10/2019,80158.00,Fees to Independent Schools,Fees to Independent Schools,http://opendatacommunities.org/id/county-council/staffordshire  
Staffordshire County Council,Independent School Fee Special,Senad Limited,07/10/2019,31532.11,Fees to Independent Schools,Fees to Independent Schools,http://opendatacommunities.org/id/county-council/staffordshire  
Staffordshire County Council,Independent School Fee Special,Senad Limited,07/10/2019,33100.00,Fees to Independent Schools,Fees to Independent Schools,http://opendatacommunities.org/id/county-council/staffordshire  
Staffordshire County Council,Family Group Conferencing,SGCE LTD,07/10/2019,690.00,AGENCY STAFF,AGENCY STAFF,http://opendatacommunities.org/id/county-council/staffordshire  
Staffordshire County Council,E Staffs LD Team,SHERRATTS WOOD CIC,07/10/2019,1016.60,Day Care,Day Care,http://opendatacommunities.org/id/county-council/staffordshire  
Staffordshire County Council,Family Group Conferencing,Simply Tailored Solutions,07/10/2019,575.00,AGENCY STAFF,AGENCY STAFF,http://opendatacommunities.org/id/county-council/staffordshire  
Staffordshire County Council,Operations Delivery,Specialist Computer Centres Ltd,07/10/2019,1710.28,Purchase of Hardware,Purchase of Hardware,http://opendatacommunities.org/id/county-council/staffordshire  
Staffordshire County Council,Training,STAFFORD BOROUGH COUNCIL,07/10/2019,1920.00,Other Travel,Other Travel,http://opendatacommunities.org/id/county-council/staffordshire  
Staffordshire County Council,Physical Regeneration,Staffordshire Pest Control Ltd,07/10/2019,2556.00,Contract Grounds Maintenance,Contract Grounds Maintenance,http://opendatacommunities.org/id/county-council/staffordshire  
Staffordshire County Council,Physical Regeneration,Staffordshire Pest Control Ltd,07/10/2019,1836.00,Contract Grounds Maintenance,Contract Grounds Maintenance,http://opendatacommunities.org/id/county-council/staffordshire  
Staffordshire County Council,Stafford Invoice Led Older Peo,Sunshine Care  TA Fuchsia Homecar,07/10/2019,697.00,Practical Care,Practical Care,http://opendatacommunities.org/id/county-council/staffordshire  
Staffordshire County Council,Stafford Invoice Led Older Peo,Sunshine Care  TA Fuchsia Homecar,07/10/2019,738.00,Practical Care,Practical Care,http://opendatacommunities.org/id/county-council/staffordshire  
Staffordshire County Council,SWS MH Team U65,Supported Homes Ltd,07/10/2019,2970.00,Supported Group Care,Supported Group Care,http://opendatacommunities.org/id/county-council/staffordshire  
Staffordshire County Council,DIPS,Tamworth Amateur Boxing Club,07/10/2019,53333.00, Alternative Education Schemes, Alternative Education Schemes,http://opendatacommunities.org/id/county-council/staffordshire  
Staffordshire County Council,Main Trading Standards,The Surveillance Group Limited,07/10/2019,2503.17,OTHER HIRED SERVICES,OTHER HIRED SERVICES,http://opendatacommunities.org/id/county-council/staffordshire  
Staffordshire County Council,East Staffs Invoice Led Older ,TLC Homecare Services,07/10/2019,731.50,Practical Care,Practical Care,http://opendatacommunities.org/id/county-council/staffordshire  
Staffordshire County Council,Oakdene & Burntwood Offices,Tree Heritage Ltd,07/10/2019,870.00,Day to Day External Areas,Day to Day External Areas,http://opendatacommunities.org/id/county-council/staffordshire  
Staffordshire County Council,BRFC - Central,Triangle Consulting Soc Ent Ltd,07/10/2019,19440.00,SOFTWARE LICENCES,SOFTWARE LICENCES,http://opendatacommunities.org/id/county-council/staffordshire  
Staffordshire County Council,Stafford Invoice Led Older Peo,Triband Recruit Ltd t/a Triband HomeCare,07/10/2019,504.00,Practical Care,Practical Care,http://opendatacommunities.org/id/county-council/staffordshire  
Staffordshire County Council,Stafford Invoice Led Older Peo,Triband Recruit Ltd t/a Triband HomeCare,07/10/2019,784.00,Practical Care,Practical Care,http://opendatacommunities.org/id/county-council/staffordshire  
Staffordshire County Council,Stafford Invoice Led Older Peo,Triband Recruit Ltd t/a Triband HomeCare,07/10/2019,567.00,Practical Care,Practical Care,http://opendatacommunities.org/id/county-council/staffordshire  
Staffordshire County Council,Stafford Invoice Led Older Peo,Triband Recruit Ltd t/a Triband HomeCare,07/10/2019,742.00,Practical Care,Practical Care,http://opendatacommunities.org/id/county-council/staffordshire  
Staffordshire County Council,Stafford Invoice Led Phys Disa,Triband Recruit Ltd t/a Triband HomeCare,07/10/2019,504.00,Practical Care,Practical Care,http://opendatacommunities.org/id/county-council/staffordshire  
Staffordshire County Council,Moorlands Invoice Led Older Pe,Triband Recruit Ltd t/a Triband HomeCare,07/10/2019,630.00,Practical Care,Practical Care,http://opendatacommunities.org/id/county-council/staffordshire  
Staffordshire County Council,Moorlands Invoice Led Older Pe,Triband Recruit Ltd t/a Triband HomeCare,07/10/2019,567.00,Practical Care,Practical Care,http://opendatacommunities.org/id/county-council/staffordshire  
Staffordshire County Council,Moorlands Invoice Led Phys Dis,Triband Recruit Ltd t/a Triband HomeCare,07/10/2019,567.00,Practical Care,Practical Care,http://opendatacommunities.org/id/county-council/staffordshire  
Staffordshire County Council,Headquarters - I.S.P,Unity Residential Care Services,07/10/2019,60499.99,Specialist Childs Res Services,Specialist Childs Res Services,http://opendatacommunities.org/id/county-council/staffordshire  
Staffordshire County Council,7423 Kidsgrove SC,VPS (UK) LTD,07/10/2019,4100.40,Premises Services,Premises Services,http://opendatacommunities.org/id/county-council/staffordshire  
Staffordshire County Council,Care Proceedings team (East),Ward Andrews Ltd,07/10/2019,676.00,S17 CONTACT,S17 CONTACT,http://opendatacommunities.org/id/county-council/staffordshire  
Staffordshire County Council,7334 Northfields Ctr,WREKIN HOUSING GROUP LTD,07/10/2019,1426.00,Rent / Lease Of Premises,Rent / Lease Of Premises,http://opendatacommunities.org/id/county-council/staffordshire  
Staffordshire County Council,12 Drug Misuse - A,Addiction Dependency Solutions,08/10/2019,69800.00,OTHER HIRED SERVICES,OTHER HIRED SERVICES,http://opendatacommunities.org/id/county-council/staffordshire  
Staffordshire County Council,Case Manage Team -Central West,ADVANCED CHILD CARE ASSESSMENTS LTD,08/10/2019,504.12,Prev Supp Legal Costs,Prev Supp Legal Costs,http://opendatacommunities.org/id/county-council/staffordshire  
Staffordshire County Council,Hugo Meynell Primary,AMP Clean Energy,08/10/2019,1687.56,Wood Chip,Wood Chip,http://opendatacommunities.org/id/county-council/staffordshire  
Staffordshire County Council,5438 Staffs Place 1&2Tipping S,Arco Professional Safety Services Ltd,08/10/2019,834.00,Day to Day External Areas,Day to Day External Areas,http://opendatacommunities.org/id/county-council/staffordshire  
Staffordshire County Council,Workforce Wellbeing Strategy,BURTON  & DISTRICT MIND,08/10/2019,1020.00,CONSULTANT FEES,CONSULTANT FEES,http://opendatacommunities.org/id/county-council/staffordshire  
Staffordshire County Council,Statutory Recycling Credits,CANNOCK CHASE COUNCIL,08/10/2019,73849.00,Recycling Credits,Recycling Credits,http://opendatacommunities.org/id/county-council/staffordshire  
Staffordshire County Council,Stafford Invoice Led Phys Disa,Complete Care Holdings Ltd,08/10/2019,5178.24,Practical Care,Practical Care,http://opendatacommunities.org/id/county-council/staffordshire  
Staffordshire County Council,Stafford Invoice Led Phys Disa,Complete Care Holdings Ltd,08/10/2019,5178.24,Practical Care,Practical Care,http://opendatacommunities.org/id/county-council/staffordshire  
Staffordshire County Council,"0041 Springvale, Walhouse St, ",Concept Elevators (UK) Ltd,08/10/2019,561.60,Service/Test Passenger Lifts,Service/Test Passenger Lifts,http://opendatacommunities.org/id/county-council/staffordshire  
Staffordshire County Council,Improvements Contracts,Corporate Project Solutions Ltd,08/10/2019,10638.00,SOFTWARE LICENCES,SOFTWARE LICENCES,http://opendatacommunities.org/id/county-council/staffordshire  
Staffordshire County Council,Improvements Contracts,Corporate Project Solutions Ltd,08/10/2019,9072.00,SOFTWARE LICENCES,SOFTWARE LICENCES,http://opendatacommunities.org/id/county-council/staffordshire  
Staffordshire County Council,Improvements Contracts,Corporate Project Solutions Ltd,08/10/2019,5616.00,SOFTWARE LICENCES,SOFTWARE LICENCES,http://opendatacommunities.org/id/county-council/staffordshire  
Staffordshire County Council,Improvements Contracts,Corporate Project Solutions Ltd,08/10/2019,1692.00,SOFTWARE LICENCES,SOFTWARE LICENCES,http://opendatacommunities.org/id/county-council/staffordshire  
Staffordshire County Council,Improvements Contracts,Corporate Project Solutions Ltd,08/10/2019,1116.00,SOFTWARE LICENCES,SOFTWARE LICENCES,http://opendatacommunities.org/id/county-council/staffordshire  
Staffordshire County Council,1 STI Test & Treat,EAST CHESHIRE NHS TRUST,08/10/2019,4432.44,other services internal,other services internal,http://opendatacommunities.org/id/county-council/staffordshire  
Staffordshire County Council,Statutory Recycling Credits,EAST STAFFS BOROUGH COUNCIL,08/10/2019,90476.00,Recycling Credits,Recycling Credits,http://opendatacommunities.org/id/county-council/staffordshire  
Staffordshire County Council,7423 Kidsgrove SC,FORCE ONE SECURITY UK LTD,08/10/2019,1324.80,Premises Services,Premises Services,http://opendatacommunities.org/id/county-council/staffordshire  
Staffordshire County Council,Anker Valley New 1FE Prim sch,GRM DEVELOPMENTS SOLS LTD,08/10/2019,2262.00,Construction Works,Construction Works,http://opendatacommunities.org/id/county-council/staffordshire  
Staffordshire County Council,E Staffs LD Team,HILL LODGE,08/10/2019,2600.00,Supported Group Care,Supported Group Care,http://opendatacommunities.org/id/county-council/staffordshire  
Staffordshire County Council,Improvements Contracts,Hydra Management Ltd,08/10/2019,3000.00,SOFTWARE LICENCES,SOFTWARE LICENCES,http://opendatacommunities.org/id/county-council/staffordshire  
Staffordshire County Council,SEN Direct Payments,,08/10/2019,1078.00,Direct Payments Other,Direct Payments Other,http://opendatacommunities.org/id/county-council/staffordshire  
Staffordshire County Council,Newcastle Invoice Led Physical,Jump 2 Independence Ltd,08/10/2019,869.79,Supported Group Care,Supported Group Care,http://opendatacommunities.org/id/county-council/staffordshire  
Staffordshire County Council,Cent Cty Psychol Service HQ,Karen Stockton,08/10/2019,900.00,PROFESSIONAL FEES,PROFESSIONAL FEES,http://opendatacommunities.org/id/county-council/staffordshire  
Staffordshire County Council,Strategic Property,KEYSOFT SOLUTIONS LTD,08/10/2019,1800.00,COMPUTING OTHER,COMPUTING OTHER,http://opendatacommunities.org/id/county-council/staffordshire  
Staffordshire County Council,Statutory Recycling Credits,LICHFIELD DISTRICT COUNCIL,08/10/2019,82656.00,Recycling Credits,Recycling Credits,http://opendatacommunities.org/id/county-council/staffordshire  
Staffordshire County Council,ERDF Low Carbon Bus Evol Prog,Lichfield Garrick Theatre,08/10/2019,20000.00,Grants to third parties,Grants to third parties,http://opendatacommunities.org/id/county-council/staffordshire  
Staffordshire County Council,Cannock Chase LD Team,Lifestyle Sup Ltd T/A Bluebird Care,08/10/2019,4010.60,Practical Care,Practical Care,http://opendatacommunities.org/id/county-council/staffordshire  
Staffordshire County Council,S Staffs LD Team,Lifeways Community Care Ltd,08/10/2019,2166.52,Supported Group Care,Supported Group Care,http://opendatacommunities.org/id/county-council/staffordshire  
Staffordshire County Council,S Staffs LD Team,Lifeways Community Care Ltd,08/10/2019,1083.26,Supported Group Care,Supported Group Care,http://opendatacommunities.org/id/county-council/staffordshire  
Staffordshire County Council,S Staffs LD Team,Lifeways Community Care Ltd,08/10/2019,2166.52,Supported Group Care,Supported Group Care,http://opendatacommunities.org/id/county-council/staffordshire  
Staffordshire County Council,Street Lighting PFI Scheme,LIGHTING FOR STAFFORDSHIRE LTD,08/10/2019,1194285.59,PFI - Street Lighting,PFI - Street Lighting,http://opendatacommunities.org/id/county-council/staffordshire  
Staffordshire County Council,East Staffs Invoice Led Phys D,MEDILINE NURSES,08/10/2019,5080.32,Practical Care,Practical Care,http://opendatacommunities.org/id/county-council/staffordshire  
Staffordshire County Council,KCOM - Telephone Network,Midlands Part NHS FT,08/10/2019,23231.69,CALL CHARGES,CALL CHARGES,http://opendatacommunities.org/id/county-council/staffordshire  
Staffordshire County Council,Children 0-5 Serv Prescribed,Midlands Part NHS FT,08/10/2019,782788.00,OTHER HIRED SERVICES,OTHER HIRED SERVICES,http://opendatacommunities.org/id/county-council/staffordshire  
Staffordshire County Council,LTC - Occupational Therapy,Midlands Part NHS FT,08/10/2019,100000.00,OTHER HIRED SERVICES,OTHER HIRED SERVICES,http://opendatacommunities.org/id/county-council/staffordshire  
Staffordshire County Council,LTC - Assess & Case Management,Midlands Part NHS FT,08/10/2019,16667.00,OTHER HIRED SERVICES,OTHER HIRED SERVICES,http://opendatacommunities.org/id/county-council/staffordshire  
Staffordshire County Council,1 STI Test & Treat,Midlands Part NHS FT,08/10/2019,115411.33,OUTWARD PORTABILITY,OUTWARD PORTABILITY,http://opendatacommunities.org/id/county-council/staffordshire  
Staffordshire County Council,MH South,Midlands Part NHS FT,08/10/2019,218333.00,OTHER HIRED SERVICES,OTHER HIRED SERVICES,http://opendatacommunities.org/id/county-council/staffordshire  
Staffordshire County Council,LTC - Reablement,Midlands Part NHS FT,08/10/2019,383000.00,OTHER HIRED SERVICES,OTHER HIRED SERVICES,http://opendatacommunities.org/id/county-council/staffordshire  
Staffordshire County Council,LTC - Assess & Case Management,Midlands Part NHS FT,08/10/2019,1207500.00,OTHER HIRED SERVICES,OTHER HIRED SERVICES,http://opendatacommunities.org/id/county-council/staffordshire  
Staffordshire County Council,LTC - Overheads,Midlands Part NHS FT,08/10/2019,204775.00,OTHER HIRED SERVICES,OTHER HIRED SERVICES,http://opendatacommunities.org/id/county-council/staffordshire  
Staffordshire County Council,LTC - Assess & Case Management,Midlands Part NHS FT,08/10/2019,16667.00,OTHER HIRED SERVICES,OTHER HIRED SERVICES,http://opendatacommunities.org/id/county-council/staffordshire  
Staffordshire County Council,MH South,Midlands Part NHS FT,08/10/2019,218333.00,OTHER HIRED SERVICES,OTHER HIRED SERVICES,http://opendatacommunities.org/id/county-council/staffordshire  
Staffordshire County Council,Statutory Recycling Credits,NEWCASTLE BOROUGH COUNCIL,08/10/2019,79408.00,Recycling Credits,Recycling Credits,http://opendatacommunities.org/id/county-council/staffordshire  
Staffordshire County Council,Cent Cty Psychol Service HQ,NONSTOP CONSULTING LTD,08/10/2019,2640.00,PROFESSIONAL FEES,PROFESSIONAL FEES,http://opendatacommunities.org/id/county-council/staffordshire  
Staffordshire County Council,Newc/Moor Disability Team,NONSTOP CONSULTING LTD,08/10/2019,1266.12,AGENCY STAFF,AGENCY STAFF,http://opendatacommunities.org/id/county-council/staffordshire  
Staffordshire County Council,Newc/Moor Disability Team,NONSTOP CONSULTING LTD,08/10/2019,1561.55,AGENCY STAFF,AGENCY STAFF,http://opendatacommunities.org/id/county-council/staffordshire  
Staffordshire County Council,HR General,,08/10/2019,1500.00,Insurance General Expenditure,Insurance General Expenditure,http://opendatacommunities.org/id/county-council/staffordshire  
Staffordshire County Council,0897 Biddulph Library Tunstall,R A EDWARDS & PARTNERS LTD,08/10/2019,16800.00,Planned Int Wall Door Fixtures,Planned Int Wall Door Fixtures,http://opendatacommunities.org/id/county-council/staffordshire  
Staffordshire County Council,0924 Werrington Library ST9 0J,R A EDWARDS & PARTNERS LTD,08/10/2019,6300.00,Planned Sanitary Services,Planned Sanitary Services,http://opendatacommunities.org/id/county-council/staffordshire  
Staffordshire County Council,Policy & Partnership All,RISING BROOK BAPTIST CHURCH,08/10/2019,1056.00,Premises Services,Premises Services,http://opendatacommunities.org/id/county-council/staffordshire  
Staffordshire County Council,East Staffs Invoice Led Older ,RLS Care Services LTD,08/10/2019,510.30,Practical Care,Practical Care,http://opendatacommunities.org/id/county-council/staffordshire  
Staffordshire County Council,East Staffs Invoice Led Phys D,RLS Care Services LTD,08/10/2019,510.30,Practical Care,Practical Care,http://opendatacommunities.org/id/county-council/staffordshire  
Staffordshire County Council,East Staffs Invoice Led Phys D,RLS Care Services LTD,08/10/2019,510.30,Practical Care,Practical Care,http://opendatacommunities.org/id/county-council/staffordshire  
Staffordshire County Council,Newcastle Invoice Led Older Pe,RLS Care Services LTD,08/10/2019,554.85,Practical Care,Practical Care,http://opendatacommunities.org/id/county-council/staffordshire  
Staffordshire County Council,ASC Funding,Sevacare UK Ltd,08/10/2019,1114.04,OTHER HIRED SERVICES,OTHER HIRED SERVICES,http://opendatacommunities.org/id/county-council/staffordshire  
Staffordshire County Council,ASC Funding,Sevacare UK Ltd,08/10/2019,1932.85,OTHER HIRED SERVICES,OTHER HIRED SERVICES,http://opendatacommunities.org/id/county-council/staffordshire  
Staffordshire County Council,ASC Funding,Sevacare UK Ltd,08/10/2019,1416.69,OTHER HIRED SERVICES,OTHER HIRED SERVICES,http://opendatacommunities.org/id/county-council/staffordshire  
Staffordshire County Council,Central Winter Maintenance Wor,S-O-T Mobile Link Ltd,08/10/2019,670.00,Radios,Radios,http://opendatacommunities.org/id/county-council/staffordshire  
Staffordshire County Council,Statutory Recycling Credits,South Staffs District Council,08/10/2019,93458.00,Recycling Credits,Recycling Credits,http://opendatacommunities.org/id/county-council/staffordshire  
Staffordshire County Council,Statutory Recycling Credits,STAFFORD BOROUGH COUNCIL,08/10/2019,108146.00,Recycling Credits,Recycling Credits,http://opendatacommunities.org/id/county-council/staffordshire  
Staffordshire County Council,Statutory Recycling Credits,STAFFORDSHIRE MOORLANDS DIS CNCL,08/10/2019,88919.00,Recycling Credits,Recycling Credits,http://opendatacommunities.org/id/county-council/staffordshire  
Staffordshire County Council,Statutory Recycling Credits,TAMWORTH BOROUGH COUNCIL,08/10/2019,52317.00,Recycling Credits,Recycling Credits,http://opendatacommunities.org/id/county-council/staffordshire  
Staffordshire County Council,Lot C SIR Contract,Together for Mental Wellbeing,08/10/2019,31314.58,Day Care,Day Care,http://opendatacommunities.org/id/county-council/staffordshire  
Staffordshire County Council,Rawlett Academy Expansion,Tree Heritage Ltd,08/10/2019,1500.00,Construction Works,Construction Works,http://opendatacommunities.org/id/county-council/staffordshire  
Staffordshire County Council,Concessionary Fare Schemes,TRENT MOTOR TRACTION CO LTD,08/10/2019,21264.00,Payments to Bus Operators,Payments to Bus Operators,http://opendatacommunities.org/id/county-council/staffordshire  
Staffordshire County Council,"1081 Greenwood House, Burntwoo",VPS (UK) LTD,08/10/2019,1228.46,Premises Services,Premises Services,http://opendatacommunities.org/id/county-council/staffordshire  
Staffordshire County Council,New School - Land At Pye Green,VPS (UK) LTD,08/10/2019,4630.80,Construction Works,Construction Works,http://opendatacommunities.org/id/county-council/staffordshire  
Staffordshire County Council,Equipment Maintenance SET,WESSEX LIFT CO LTD,08/10/2019,1650.00,Servicing Equipment Purchase,Servicing Equipment Purchase,http://opendatacommunities.org/id/county-council/staffordshire  
Staffordshire County Council,South Staffs,A1 Wolves Taxis,09/10/2019,2040.00,S17 TRANSPORT,S17 TRANSPORT,http://opendatacommunities.org/id/county-council/staffordshire  
Staffordshire County Council,Pupil Premium Grant,ALLEYNES ACADEMY,09/10/2019,500.00,Grants to third parties,Grants to third parties,http://opendatacommunities.org/id/county-council/staffordshire  
Staffordshire County Council,Fuel,ALLSTAR BUSINESS SOLUTIONS LTD,09/10/2019,4154.30,Petrol & Oil,Petrol & Oil,http://opendatacommunities.org/id/county-council/staffordshire  
Staffordshire County Council,Staffordshire Wood Fuel,AMP Clean Energy,09/10/2019,2700.00,Wood Chip,Wood Chip,http://opendatacommunities.org/id/county-council/staffordshire  
Staffordshire County Council,Moorlands Invoice Led Older Pe,Assist DC Ltd TA Choose Your Care,09/10/2019,676.20,Practical Care,Practical Care,http://opendatacommunities.org/id/county-council/staffordshire  
Staffordshire County Council,Moorlands Invoice Led Older Pe,Assist DC Ltd TA Choose Your Care,09/10/2019,661.50,Practical Care,Practical Care,http://opendatacommunities.org/id/county-council/staffordshire  
Staffordshire County Council,Moorlands Invoice Led Older Pe,Assist DC Ltd TA Choose Your Care,09/10/2019,550.00,Practical Care,Practical Care,http://opendatacommunities.org/id/county-council/staffordshire  
Staffordshire County Council,Moorlands Invoice Led Older Pe,Assist DC Ltd TA Choose Your Care,09/10/2019,1323.00,Practical Care,Practical Care,http://opendatacommunities.org/id/county-council/staffordshire  
Staffordshire County Council,Moorlands Invoice Led Older Pe,Assist DC Ltd TA Choose Your Care,09/10/2019,630.00,Practical Care,Practical Care,http://opendatacommunities.org/id/county-council/staffordshire  
Staffordshire County Council,Newcastle Invoice Led Older Pe,Assist DC Ltd TA Choose Your Care,09/10/2019,1100.40,Practical Care,Practical Care,http://opendatacommunities.org/id/county-council/staffordshire  
Staffordshire County Council,Newcastle Invoice Led Older Pe,Assist DC Ltd TA Choose Your Care,09/10/2019,857.50,Practical Care,Practical Care,http://opendatacommunities.org/id/county-council/staffordshire  
Staffordshire County Council,Pupil Premium Grant,BIDDULPH HIGH SCHOOL (ACADEMY),09/10/2019,1000.00,Grants to third parties,Grants to third parties,http://opendatacommunities.org/id/county-council/staffordshire  
Staffordshire County Council,Pupil Premium Grant,BLACKFRIARS ACADEMY,09/10/2019,500.00,Grants to third parties,Grants to third parties,http://opendatacommunities.org/id/county-council/staffordshire  
Staffordshire County Council,Pupil Premium Grant,Blessed Robert Sutton Catholic Academy,09/10/2019,500.00,Grants to third parties,Grants to third parties,http://opendatacommunities.org/id/county-council/staffordshire  
Staffordshire County Council,Pupil Premium Grant,BLESSED WILLIAM HOWARD H SCHOOL,09/10/2019,1000.00,Grants to third parties,Grants to third parties,http://opendatacommunities.org/id/county-council/staffordshire  
Staffordshire County Council,Speed Awareness,BOUNDARY SCHOOL OF MOTORING,09/10/2019,780.00,DRIVING INSTRUCTION,DRIVING INSTRUCTION,http://opendatacommunities.org/id/county-council/staffordshire  
Staffordshire County Council,HRSSC,Busy Bees Benefits Ltd,09/10/2019,43492.82,Extra District Charges Other,Extra District Charges Other,http://opendatacommunities.org/id/county-council/staffordshire  
Staffordshire County Council,Chasewater Dam Management,C M ROWLINSON LTD,09/10/2019,3576.00,General Equipment Repair/Maint,General Equipment Repair/Maint,http://opendatacommunities.org/id/county-council/staffordshire  
Staffordshire County Council,Pupil Premium Grant,CANNOCK CHASE HIGH SCHOOL,09/10/2019,500.00,Grants to third parties,Grants to third parties,http://opendatacommunities.org/id/county-council/staffordshire  
Staffordshire County Council,CAMHS Mental Health Grant,Changes Heath & Wellbeing,09/10/2019,4950.75,Sure Start Project 3,Sure Start Project 3,http://opendatacommunities.org/id/county-council/staffordshire  
Staffordshire County Council,Pupil Premium Grant,Charnwood Primary Academy,09/10/2019,500.00,Grants to third parties,Grants to third parties,http://opendatacommunities.org/id/county-council/staffordshire  
Staffordshire County Council,Pupil Premium Grant,Chase Terrace Technology College,09/10/2019,1500.00,Grants to third parties,Grants to third parties,http://opendatacommunities.org/id/county-council/staffordshire  
Staffordshire County Council,Pupil Premium Grant,Chaselea Alternate Provision Academy,09/10/2019,500.00,Grants to third parties,Grants to third parties,http://opendatacommunities.org/id/county-council/staffordshire  
Staffordshire County Council,Pupil Premium Grant,Cheadle Academy,09/10/2019,1500.00,Grants to third parties,Grants to third parties,http://opendatacommunities.org/id/county-council/staffordshire  
Staffordshire County Council,Pupil Premium Grant,CHESLYN HAY ACADEMY,09/10/2019,1500.00,Grants to third parties,Grants to third parties,http://opendatacommunities.org/id/county-council/staffordshire  
Staffordshire County Council,Pupil Premium Grant,Chesterton Primary School,09/10/2019,500.00,Grants to third parties,Grants to third parties,http://opendatacommunities.org/id/county-council/staffordshire  
Staffordshire County Council,Adoption Support Fund,Childrens Choice Therapy Service,09/10/2019,1816.00,PROFESSIONAL FEES,PROFESSIONAL FEES,http://opendatacommunities.org/id/county-council/staffordshire  
Staffordshire County Council,Pupil Premium Grant,Christ Church C of E First School,09/10/2019,500.00,Grants to third parties,Grants to third parties,http://opendatacommunities.org/id/county-council/staffordshire  
Staffordshire County Council,Pupil Premium Grant,Churchfield C E Primary Academy,09/10/2019,1500.00,Grants to third parties,Grants to third parties,http://opendatacommunities.org/id/county-council/staffordshire  
Staffordshire County Council,Pupil Premium Grant,Codsall Middle School,09/10/2019,500.00,Grants to third parties,Grants to third parties,http://opendatacommunities.org/id/county-council/staffordshire  
Staffordshire County Council,Moorlands Invoice Led Phys Dis,COMPANION FOR CARE SERVICES,09/10/2019,535.11,Practical Care,Practical Care,http://opendatacommunities.org/id/county-council/staffordshire  
Staffordshire County Council,Headquarters - I.S.P,Core Assets Fostering Ltd,09/10/2019,1062.98,Social Services Oth Local Auth,Social Services Oth Local Auth,http://opendatacommunities.org/id/county-council/staffordshire  
Staffordshire County Council,Headquarters - I.S.P,Core Assets Fostering Ltd,09/10/2019,1314.09,Social Services Oth Local Auth,Social Services Oth Local Auth,http://opendatacommunities.org/id/county-council/staffordshire  
Staffordshire County Council,S Staffs LD Team,Craegmoor Bentons Lane 297,09/10/2019,4330.40,Supported Group Care,Supported Group Care,http://opendatacommunities.org/id/county-council/staffordshire  
Staffordshire County Council,S Staffs LD Team,Craegmoor Bentons Lane 297,09/10/2019,4330.40,Extra Care,Extra Care,http://opendatacommunities.org/id/county-council/staffordshire  
Staffordshire County Council,S Staffs LD Team,Craegmoor Bentons Lane 297,09/10/2019,4330.40,Supported Group Care,Supported Group Care,http://opendatacommunities.org/id/county-council/staffordshire  
Staffordshire County Council,S Staffs LD Team,Craegmoor Bentons Lane 297,09/10/2019,4330.40,Supported Group Care,Supported Group Care,http://opendatacommunities.org/id/county-council/staffordshire  
Staffordshire County Council,Pupil Premium Grant,De Ferrers Academy,09/10/2019,500.00,Grants to third parties,Grants to third parties,http://opendatacommunities.org/id/county-council/staffordshire  
Staffordshire County Council,Codsall High Toilet Refurbs,Environmental Essentials,09/10/2019,1188.00,Construction Works,Construction Works,http://opendatacommunities.org/id/county-council/staffordshire  
Staffordshire County Council,Holly Grove Toilet Refurbs,Environmental Essentials,09/10/2019,792.00,Construction Works,Construction Works,http://opendatacommunities.org/id/county-council/staffordshire  
Staffordshire County Council,Pupil Premium Grant,ERASMUS DARWIN ACADEMY,09/10/2019,500.00,Grants to third parties,Grants to third parties,http://opendatacommunities.org/id/county-council/staffordshire  
Staffordshire County Council,Pupil Premium Grant,Featherstone Academy,09/10/2019,500.00,Grants to third parties,Grants to third parties,http://opendatacommunities.org/id/county-council/staffordshire  
Staffordshire County Council,Pupil Premium Grant,Field View Primary School,09/10/2019,500.00,Grants to third parties,Grants to third parties,http://opendatacommunities.org/id/county-council/staffordshire  
Staffordshire County Council,Pupil Premium Grant,Fierte Multi Academy Trust,09/10/2019,1500.00,Grants to third parties,Grants to third parties,http://opendatacommunities.org/id/county-council/staffordshire  
Staffordshire County Council,Speed Awareness,G Ball,09/10/2019,2600.00,DRIVING INSTRUCTION,DRIVING INSTRUCTION,http://opendatacommunities.org/id/county-council/staffordshire  
Staffordshire County Council,Chasewater Visitor Centre,G EVANS (SERVICES) LTD,09/10/2019,1141.87,Day to Day Ext Wall window etc,Day to Day Ext Wall window etc,http://opendatacommunities.org/id/county-council/staffordshire  
Staffordshire County Council,Complaints Team,GALLOWAY TRAINING CONSULTANCY LTD,09/10/2019,3881.36,Independent Investigations,Independent Investigations,http://opendatacommunities.org/id/county-council/staffordshire  
Staffordshire County Council,Staffordshire Wood Fuel,H R J Gould Ltd,09/10/2019,14367.60,Wood Chip,Wood Chip,http://opendatacommunities.org/id/county-council/staffordshire  
Staffordshire County Council,Staffordshire Wood Fuel,H R J Gould Ltd,09/10/2019,6056.70,Wood Chip,Wood Chip,http://opendatacommunities.org/id/county-council/staffordshire  
Staffordshire County Council,Pupil Premium Grant,Hazel Slade Primary Academy,09/10/2019,500.00,Grants to third parties,Grants to third parties,http://opendatacommunities.org/id/county-council/staffordshire  
Staffordshire County Council,Asset Renewal,HEATELECT LIMITED,09/10/2019,14102.14,Construction Works,Construction Works,http://opendatacommunities.org/id/county-council/staffordshire  
Staffordshire County Council,Newc/Moor Disability Team,Helping Angels Ltd,09/10/2019,576.00,S17 FAMILY SUPPORT,S17 FAMILY SUPPORT,http://opendatacommunities.org/id/county-council/staffordshire  
Staffordshire County Council,Pupil Premium Grant,Horninglow Prim De Ferrers Trst Acd,09/10/2019,1000.00,Grants to third parties,Grants to third parties,http://opendatacommunities.org/id/county-council/staffordshire  
Staffordshire County Council,Great Wyrley Day Centre,INTEGRATED WATER SERVICES,09/10/2019,631.78,Special Water Hygiene Service,Special Water Hygiene Service,http://opendatacommunities.org/id/county-council/staffordshire  
Staffordshire County Council,Pupil Premium Grant,James Bateman Middle School,09/10/2019,500.00,Grants to third parties,Grants to third parties,http://opendatacommunities.org/id/county-council/staffordshire  
Staffordshire County Council,Kidsgrove Town Centre Traffic ,JCT CONSULTANCY LTD,09/10/2019,672.00,Ext Fees Construction,Ext Fees Construction,http://opendatacommunities.org/id/county-council/staffordshire  
Staffordshire County Council,Pupil Premium Grant,John of Rolleston Primary School,09/10/2019,1500.00,Grants to third parties,Grants to third parties,http://opendatacommunities.org/id/county-council/staffordshire  
Staffordshire County Council,Newcastle MH Team U65,Jump 2 Independence Ltd,09/10/2019,520.57,Supported Group Care,Supported Group Care,http://opendatacommunities.org/id/county-council/staffordshire  
Staffordshire County Council,Newcastle Invoice Led Physical,Jump 2 Independence Ltd,09/10/2019,564.36,Supported Group Care,Supported Group Care,http://opendatacommunities.org/id/county-council/staffordshire  
Staffordshire County Council,Cent Cty Psychol Service HQ,Karen Stockton,09/10/2019,900.00,PROFESSIONAL FEES,PROFESSIONAL FEES,http://opendatacommunities.org/id/county-council/staffordshire  
Staffordshire County Council,Pupil Premium Grant,LANDAU FORTE ACADEMY QEMS,09/10/2019,1000.00,Grants to third parties,Grants to third parties,http://opendatacommunities.org/id/county-council/staffordshire  
Staffordshire County Council,Workforce Wellbeing Strategy,Lichfield Counselling & Psychotherapy,09/10/2019,1025.00,CONSULTANT FEES,CONSULTANT FEES,http://opendatacommunities.org/id/county-council/staffordshire  
Staffordshire County Council,Newcastle Invoice Led Physical,Lifeways Community Care Ltd,09/10/2019,2239.08,Practical Care,Practical Care,http://opendatacommunities.org/id/county-council/staffordshire  
Staffordshire County Council,Newcastle Invoice Led Physical,Lifeways Community Care Ltd,09/10/2019,2239.08,Practical Care,Practical Care,http://opendatacommunities.org/id/county-council/staffordshire  
Staffordshire County Council,Newcastle Invoice Led Physical,Lifeways Community Care Ltd,09/10/2019,2239.08,Practical Care,Practical Care,http://opendatacommunities.org/id/county-council/staffordshire  
Staffordshire County Council,Newcastle Invoice Led Physical,Lifeways Community Care Ltd,09/10/2019,2239.08,Practical Care,Practical Care,http://opendatacommunities.org/id/county-council/staffordshire  
Staffordshire County Council,Stafford LD Team,LINKAGE COMMUNITY TRUST,09/10/2019,6653.92,RCLS Learning Disability,RCLS Learning Disability,http://opendatacommunities.org/id/county-council/staffordshire  
Staffordshire County Council,Pupil Premium Grant,Littleton Green Community School,09/10/2019,3000.00,Grants to third parties,Grants to third parties,http://opendatacommunities.org/id/county-council/staffordshire  
Staffordshire County Council,SWS MH Team U65,Living Ambitions Ltd,09/10/2019,2065.16,Supported Group Care,Supported Group Care,http://opendatacommunities.org/id/county-council/staffordshire  
Staffordshire County Council,Pupil Premium Grant,Longford Primary School,09/10/2019,500.00,Grants to third parties,Grants to third parties,http://opendatacommunities.org/id/county-council/staffordshire  
Staffordshire County Council,0699 Marmion House Lichfield S,M W CRIPWELL LTD,09/10/2019,1198.50,Day to Day Electrical Services,Day to Day Electrical Services,http://opendatacommunities.org/id/county-council/staffordshire  
Staffordshire County Council,Pupil Premium Grant,Manor Hall Academy Trust,09/10/2019,500.00,Grants to third parties,Grants to third parties,http://opendatacommunities.org/id/county-council/staffordshire  
Staffordshire County Council,Highways Laboratory,Materials Testing Equipment Ltd,09/10/2019,570.00,General Equipment Purchase,General Equipment Purchase,http://opendatacommunities.org/id/county-council/staffordshire  
Staffordshire County Council,Pupil Premium Grant,Meadows School,09/10/2019,1000.00,Grants to third parties,Grants to third parties,http://opendatacommunities.org/id/county-council/staffordshire  
Staffordshire County Council,Home to school transport-main,Midland Classic Ltd,09/10/2019,508.00,Home School Tickets,Home School Tickets,http://opendatacommunities.org/id/county-council/staffordshire  
Staffordshire County Council,Staff Development Ctr,Momentum People Ltd,09/10/2019,1290.00,EXTERNAL TRAINING,EXTERNAL TRAINING,http://opendatacommunities.org/id/county-council/staffordshire  
Staffordshire County Council,Foster Care Recruitment Team,Nick Barwick Consultancy Ltd,09/10/2019,587.76,Training Resources,Training Resources,http://opendatacommunities.org/id/county-council/staffordshire  
Staffordshire County Council,Workforce Wellbeing Strategy,North Staffs Mind,09/10/2019,3460.00,CONSULTANT FEES,CONSULTANT FEES,http://opendatacommunities.org/id/county-council/staffordshire  
Staffordshire County Council,SAP Archiving & Other Costs,O'Neil Software Ltd,09/10/2019,3832.33,SOFTWARE LICENCES,SOFTWARE LICENCES,http://opendatacommunities.org/id/county-council/staffordshire  
Staffordshire County Council,Pupil Premium Grant,Painsley Catholic Academy,09/10/2019,1000.00,Grants to third parties,Grants to third parties,http://opendatacommunities.org/id/county-council/staffordshire  
Staffordshire County Council,Castle House (The Hub),PHS GROUP PLC,09/10/2019,4318.91,Cleaning Materials supplies,Cleaning Materials supplies,http://opendatacommunities.org/id/county-council/staffordshire  
Staffordshire County Council,East Staffs Invoice Led Phys D,Portland College,09/10/2019,2816.10,Supported Group Care,Supported Group Care,http://opendatacommunities.org/id/county-council/staffordshire  
Staffordshire County Council,Stafford Manor Struct. repairs,R A EDWARDS & PARTNERS LTD,09/10/2019,14400.00,Construction Works,Construction Works,http://opendatacommunities.org/id/county-council/staffordshire  
Staffordshire County Council,St Margarets Classroom Refurb,R A EDWARDS & PARTNERS LTD,09/10/2019,6000.00,Construction Works,Construction Works,http://opendatacommunities.org/id/county-council/staffordshire  
Staffordshire County Council,St Margarets Toilet Refurbs,R A EDWARDS & PARTNERS LTD,09/10/2019,2984.40,Construction Works,Construction Works,http://opendatacommunities.org/id/county-council/staffordshire  
Staffordshire County Council,Edge Hill Toilet Refurbs,R A EDWARDS & PARTNERS LTD,09/10/2019,7500.00,Construction Works,Construction Works,http://opendatacommunities.org/id/county-council/staffordshire  
Staffordshire County Council,Bridge PRU (HPCF),R A EDWARDS & PARTNERS LTD,09/10/2019,7200.00,Construction Works,Construction Works,http://opendatacommunities.org/id/county-council/staffordshire  
Staffordshire County Council,Hayes Meadow kitchen refurb,R A EDWARDS & PARTNERS LTD,09/10/2019,21000.00,Construction Works,Construction Works,http://opendatacommunities.org/id/county-council/staffordshire  
Staffordshire County Council,Pupil Premium Grant,Rawlett School,09/10/2019,500.00,Grants to third parties,Grants to third parties,http://opendatacommunities.org/id/county-council/staffordshire  
Staffordshire County Council,DIPS,Remedy Education Ltd,09/10/2019,2880.00, Alternative Education Schemes, Alternative Education Schemes,http://opendatacommunities.org/id/county-council/staffordshire  
Staffordshire County Council,Pupil Premium Grant,Rocklands School,09/10/2019,1000.00,Grants to third parties,Grants to third parties,http://opendatacommunities.org/id/county-council/staffordshire  
Staffordshire County Council,Pupil Premium Grant,Rowley Park Primary Academy,09/10/2019,1500.00,Grants to third parties,Grants to third parties,http://opendatacommunities.org/id/county-council/staffordshire  
Staffordshire County Council,Pupil Premium Grant,SAXON HILL ACADEMY,09/10/2019,1000.00,Grants to third parties,Grants to third parties,http://opendatacommunities.org/id/county-council/staffordshire  
Staffordshire County Council,Pupil Premium Grant,Silkmore Primary Academy,09/10/2019,500.00,Grants to third parties,Grants to third parties,http://opendatacommunities.org/id/county-council/staffordshire  
Staffordshire County Council,Technical Design Architecture,Specialist Computer Centres Ltd,09/10/2019,2700.00,AGENCY STAFF,AGENCY STAFF,http://opendatacommunities.org/id/county-council/staffordshire  
Staffordshire County Council,Pupil Premium Grant,St Edwards C of E Academy,09/10/2019,500.00,Grants to third parties,Grants to third parties,http://opendatacommunities.org/id/county-council/staffordshire  
Staffordshire County Council,Pupil Premium Grant,St John's RC Primary School,09/10/2019,500.00,Grants to third parties,Grants to third parties,http://opendatacommunities.org/id/county-council/staffordshire  
Staffordshire County Council,Pupil Premium Grant,St. Peters C of E School,09/10/2019,500.00,Grants to third parties,Grants to third parties,http://opendatacommunities.org/id/county-council/staffordshire  
Staffordshire County Council,SWS MH Team U65,Supported Homes Ltd,09/10/2019,5084.00,Supported Group Care,Supported Group Care,http://opendatacommunities.org/id/county-council/staffordshire  
Staffordshire County Council,Knutton Enterprise Centre,SV SECURITY SYSTEMS LTD,09/10/2019,2940.00,General Equipment Repair/Maint,General Equipment Repair/Maint,http://opendatacommunities.org/id/county-council/staffordshire  
Staffordshire County Council,Pupil Premium Grant,Tamworth Enterprise College,09/10/2019,500.00,Grants to third parties,Grants to third parties,http://opendatacommunities.org/id/county-council/staffordshire  
Staffordshire County Council,Home to school transport-main,TELE TAXIS,09/10/2019,5779.80,Home School Contract Vehicles,Home School Contract Vehicles,http://opendatacommunities.org/id/county-council/staffordshire  
Staffordshire County Council,Home to school transport-main,TELE TAXIS,09/10/2019,4453.80,Home School Contract Vehicles,Home School Contract Vehicles,http://opendatacommunities.org/id/county-council/staffordshire  
Staffordshire County Council,DAF - Disability Access Fund,The Fountains Primary School,09/10/2019,615.00,Grants Nursery Education Pymnt,Grants Nursery Education Pymnt,http://opendatacommunities.org/id/county-council/staffordshire  
Staffordshire County Council,DAF - Disability Access Fund,The Fountains Primary School,09/10/2019,615.00,Grants Nursery Education Pymnt,Grants Nursery Education Pymnt,http://opendatacommunities.org/id/county-council/staffordshire  
Staffordshire County Council,Pupil Premium Grant,The Key Educational Trust,09/10/2019,500.00,Grants to third parties,Grants to third parties,http://opendatacommunities.org/id/county-council/staffordshire  
Staffordshire County Council,County Fleet Care Purchase Of ,TREKA BUS LTD,09/10/2019,81675.66,Vehicle Purchase,Vehicle Purchase,http://opendatacommunities.org/id/county-council/staffordshire  
Staffordshire County Council,County Fleet Care Purchase Of ,TREKA BUS LTD,09/10/2019,81675.66,Vehicle Purchase,Vehicle Purchase,http://opendatacommunities.org/id/county-council/staffordshire  
Staffordshire County Council,Libraries Live,Tuckey Print Ltd,09/10/2019,2000.00,other services external,other services external,http://opendatacommunities.org/id/county-council/staffordshire  
Staffordshire County Council,Cannock Road Chadsmoor South,Voyage Care Ltd,09/10/2019,12831.00,Supported Group Care,Supported Group Care,http://opendatacommunities.org/id/county-council/staffordshire  
Staffordshire County Council,Pupil Premium Grant,WALTON HALL ACADEMY,09/10/2019,1500.00,Grants to third parties,Grants to third parties,http://opendatacommunities.org/id/county-council/staffordshire  
Staffordshire County Council,Pupil Premium Grant,Walton High School,09/10/2019,500.00,Grants to third parties,Grants to third parties,http://opendatacommunities.org/id/county-council/staffordshire  
Staffordshire County Council,Weston Road Dining Room Ext,WARDELL ARMSTRONG,09/10/2019,10354.80,Construction Works,Construction Works,http://opendatacommunities.org/id/county-council/staffordshire  
Staffordshire County Council,Governance & Improvement,Waterco Ltd,09/10/2019,912.00,legal services,legal services,http://opendatacommunities.org/id/county-council/staffordshire  
Staffordshire County Council,Pupil Premium Grant,WESTON ROAD ACADEMY,09/10/2019,1500.00,Grants to third parties,Grants to third parties,http://opendatacommunities.org/id/county-council/staffordshire  
Staffordshire County Council,Pupil Premium Grant,Wightwick Hall School,09/10/2019,500.00,Grants to third parties,Grants to third parties,http://opendatacommunities.org/id/county-council/staffordshire  
Staffordshire County Council,Pupil Premium Grant,Wilnecote School,09/10/2019,500.00,Grants to third parties,Grants to third parties,http://opendatacommunities.org/id/county-council/staffordshire  
Staffordshire County Council,Pupil Premium Grant,Winshill Village Primary and Nursery Sch,09/10/2019,500.00,Grants to third parties,Grants to third parties,http://opendatacommunities.org/id/county-council/staffordshire  
Staffordshire County Council,SStaffs Invoice Led Older Peop,Wisdom Healthcare Ltd,09/10/2019,535.50,Practical Care,Practical Care,http://opendatacommunities.org/id/county-council/staffordshire  
Staffordshire County Council,Pupil Premium Grant,Woodhouse Academy,09/10/2019,1500.00,Grants to third parties,Grants to third parties,http://opendatacommunities.org/id/county-council/staffordshire  
Staffordshire County Council,New School - Land At Pye Green,YORKSHIRE PURCHASING ORG,09/10/2019,1174.02,Construction Works,Construction Works,http://opendatacommunities.org/id/county-council/staffordshire  
Staffordshire County Council,New School - Land At Pye Green,YORKSHIRE PURCHASING ORG,09/10/2019,1420.44,Construction Works,Construction Works,http://opendatacommunities.org/id/county-council/staffordshire  
Staffordshire County Council,New School - Land At Pye Green,YORKSHIRE PURCHASING ORG,09/10/2019,7250.48,Construction Works,Construction Works,http://opendatacommunities.org/id/county-council/staffordshire  
Staffordshire County Council,Childrens Services,BIBLIOTHECA LTD,10/10/2019,601.78,Library Materials,Library Materials,http://opendatacommunities.org/id/county-council/staffordshire  
Staffordshire County Council,Stafford Invoice Led Older Peo,Caremark,10/10/2019,1431.36,Practical Care,Practical Care,http://opendatacommunities.org/id/county-council/staffordshire  
Staffordshire County Council,C Com Childrens Wellbeing,Centre for Research in Early Childhood,10/10/2019,48000.00,General Grants,General Grants,http://opendatacommunities.org/id/county-council/staffordshire  
Staffordshire County Council,Burton Resource Centre,COMPASS GROUP UK & IRELAND LTD,10/10/2019,862.80,Building Materials,Building Materials,http://opendatacommunities.org/id/county-council/staffordshire  
Staffordshire County Council,Newcastle LD Team,CPK Empowering Families Ltd,10/10/2019,715.00,Practical Care,Practical Care,http://opendatacommunities.org/id/county-council/staffordshire  
Staffordshire County Council,Moorlands MH Team U65,Creative Support Ltd,10/10/2019,776.34,Supported Group Care,Supported Group Care,http://opendatacommunities.org/id/county-council/staffordshire  
Staffordshire County Council,Bikeability,CYCLIST TRAINING LTD,10/10/2019,800.00,CONSULTANT FEES,CONSULTANT FEES,http://opendatacommunities.org/id/county-council/staffordshire  
Staffordshire County Council,Stafford Invoice Led Older Peo,Daycare Domicilliary Services Ltd,10/10/2019,2129.80,Practical Care,Practical Care,http://opendatacommunities.org/id/county-council/staffordshire  
Staffordshire County Council,Inter authority Recoup- Mainst,DERBYSHIRE COUNTY COUNCIL,10/10/2019,3725.00,Extra District Charges Other,Extra District Charges Other,http://opendatacommunities.org/id/county-council/staffordshire  
Staffordshire County Council,P16 top up for Indep Specialis,Derwen College,10/10/2019,15561.07,Events and Competitions,Events and Competitions,http://opendatacommunities.org/id/county-council/staffordshire  
Staffordshire County Council,P16 top up for Indep Specialis,Derwen College,10/10/2019,15963.73,Events and Competitions,Events and Competitions,http://opendatacommunities.org/id/county-council/staffordshire  
Staffordshire County Council,P16 top up for Indep Specialis,Derwen College,10/10/2019,4639.73,Events and Competitions,Events and Competitions,http://opendatacommunities.org/id/county-council/staffordshire  
Staffordshire County Council,MGOV Development Access Superv,E ON UK ENERGY SERVICES LTD,10/10/2019,780.00,Construction Works,Construction Works,http://opendatacommunities.org/id/county-council/staffordshire  
Staffordshire County Council,1517 Wombourne Lib Church Road,Emo Oil Ltd,10/10/2019,1657.42,Heating Oil,Heating Oil,http://opendatacommunities.org/id/county-council/staffordshire  
Staffordshire County Council,Education Commissioning,Entrust Support Services Ltd,10/10/2019,5712.00,Contingency,Contingency,http://opendatacommunities.org/id/county-council/staffordshire  
Staffordshire County Council,Integra,Entrust Support Services Ltd,10/10/2019,1203.60,CONSULTANT FEES,CONSULTANT FEES,http://opendatacommunities.org/id/county-council/staffordshire  
Staffordshire County Council,JVCo - Residual Costs,Entrust Support Services Ltd,10/10/2019,105458.40,Contingency,Contingency,http://opendatacommunities.org/id/county-council/staffordshire  
Staffordshire County Council,Norton Canes Heating,G EVANS (SERVICES) LTD,10/10/2019,30000.00,Construction Works,Construction Works,http://opendatacommunities.org/id/county-council/staffordshire  
Staffordshire County Council,Stafford Manor High Heating,G EVANS (SERVICES) LTD,10/10/2019,42000.00,Construction Works,Construction Works,http://opendatacommunities.org/id/county-council/staffordshire  
Staffordshire County Council,Burntwood SU12,HANDS FREE COMPUTING LTD,10/10/2019,1152.00,Other Employee Expenses,Other Employee Expenses,http://opendatacommunities.org/id/county-council/staffordshire  
Staffordshire County Council,Rising Brook High School,INTEGRATED WATER SERVICES,10/10/2019,705.60,Special Water Hygiene Risk Ass,Special Water Hygiene Risk Ass,http://opendatacommunities.org/id/county-council/staffordshire  
Staffordshire County Council,Cannock Enterprise Centre,J TOMLINSON LTD,10/10/2019,636.00,Service/Test Gas / Oil Boiler,Service/Test Gas / Oil Boiler,http://opendatacommunities.org/id/county-council/staffordshire  
Staffordshire County Council,Corporate Research Team,Lilac Productions Limited,10/10/2019,810.00,Printing General,Printing General,http://opendatacommunities.org/id/county-council/staffordshire  
Staffordshire County Council,SWS MH Team U65,Living Ambitions Ltd,10/10/2019,2581.45,Supported Group Care,Supported Group Care,http://opendatacommunities.org/id/county-council/staffordshire  
Staffordshire County Council,Thomas Russell ceiling/lightin,M W CRIPWELL LTD,10/10/2019,32466.22,Construction Works,Construction Works,http://opendatacommunities.org/id/county-council/staffordshire  
Staffordshire County Council,Thomas Russell Pipework,M W CRIPWELL LTD,10/10/2019,11851.80,Construction Works,Construction Works,http://opendatacommunities.org/id/county-council/staffordshire  
Staffordshire County Council,E Staffs LD Team,Mediline Nurses & Carers Ltd,10/10/2019,5124.00,Supported Group Care,Supported Group Care,http://opendatacommunities.org/id/county-council/staffordshire  
Staffordshire County Council,E Staffs LD Team,Mediline Nurses & Carers Ltd,10/10/2019,5124.00,Supported Group Care,Supported Group Care,http://opendatacommunities.org/id/county-council/staffordshire  
Staffordshire County Council,Physical Regeneration,MIDLAND LANDSCAPING LTD,10/10/2019,1459.20,Contract Grounds Maintenance,Contract Grounds Maintenance,http://opendatacommunities.org/id/county-council/staffordshire  
Staffordshire County Council,Springfield Roof Leak,MIDLAND ROOFING SERVICES DERBY LTD,10/10/2019,2112.00,Construction Works,Construction Works,http://opendatacommunities.org/id/county-council/staffordshire  
Staffordshire County Council,Children 0-5 Serv Prescribed,Midlands Part NHS FT,10/10/2019,782788.00,OTHER HIRED SERVICES,OTHER HIRED SERVICES,http://opendatacommunities.org/id/county-council/staffordshire  
Staffordshire County Council,Through Care Team - Burton/Tam,,10/10/2019,680.87,S17 FAMILY SUPPORT,S17 FAMILY SUPPORT,http://opendatacommunities.org/id/county-council/staffordshire  
Staffordshire County Council,DIPS,NISAI VIRTUAL ACADEMY LTD,10/10/2019,20000.00, Alternative Education Schemes, Alternative Education Schemes,http://opendatacommunities.org/id/county-council/staffordshire  
Staffordshire County Council,St Annes General Office Remode,NOVUS PROPERTY SOLS LTD,10/10/2019,9831.06,Construction Works,Construction Works,http://opendatacommunities.org/id/county-council/staffordshire  
Staffordshire County Council,Sir John Offley Dividing wall,NOVUS PROPERTY SOLS LTD,10/10/2019,15931.74,Construction Works,Construction Works,http://opendatacommunities.org/id/county-council/staffordshire  
Staffordshire County Council,Independent Sch Fees Mainstr'm,Painsley Catholic Academy,10/10/2019,5098.90,Fees to Independent Schools,Fees to Independent Schools,http://opendatacommunities.org/id/county-council/staffordshire  
Staffordshire County Council,Stafford Children's Centres,PENKSIDE COMM CHAMPIONS,10/10/2019,1525.00,Running Cost Reimbursement,Running Cost Reimbursement,http://opendatacommunities.org/id/county-council/staffordshire  
Staffordshire County Council,ROW/Village Green,Penna Plc,10/10/2019,4952.48,OTHER HIRED SERVICES,OTHER HIRED SERVICES,http://opendatacommunities.org/id/county-council/staffordshire  
Staffordshire County Council,Growing Places Fund,Perfect Circle JV Ltd,10/10/2019,17550.44,CONSULTANT FEES,CONSULTANT FEES,http://opendatacommunities.org/id/county-council/staffordshire  
Staffordshire County Council,Workforce Wellbeing Strategy,Psylutions Ltd,10/10/2019,1605.00,CONSULTANT FEES,CONSULTANT FEES,http://opendatacommunities.org/id/county-council/staffordshire  
Staffordshire County Council,Community Learning Trust,Pulse for Music Staffordshire CIC,10/10/2019,1863.00,Courses,Courses,http://opendatacommunities.org/id/county-council/staffordshire  
Staffordshire County Council,DIPS,Reflective School Support,10/10/2019,3549.60, Alternative Education Schemes, Alternative Education Schemes,http://opendatacommunities.org/id/county-council/staffordshire  
Staffordshire County Council,"Server, Storage and DBA",Riello UPS Ltd,10/10/2019,678.00,Computer Support Charges,Computer Support Charges,http://opendatacommunities.org/id/county-council/staffordshire  
Staffordshire County Council,7191 Charnwood Childrens Cent ,ROY DYKE ELECTRICAL LTD,10/10/2019,516.47,Service/Test Fixed Electrical,Service/Test Fixed Electrical,http://opendatacommunities.org/id/county-council/staffordshire  
Staffordshire County Council,Vol. Org. Support,S C V Y S,10/10/2019,2101.00,Grants To Clubs,Grants To Clubs,http://opendatacommunities.org/id/county-council/staffordshire  
Staffordshire County Council,0822 County Records Eastgate S,SCHNEIDER ELECTRIC LTD,10/10/2019,2250.00,Service/Test Air-conditioning,Service/Test Air-conditioning,http://opendatacommunities.org/id/county-council/staffordshire  
Staffordshire County Council,MCA / DoLs / AMHP,Shamrock Care Ltd,10/10/2019,1100.75,Independent Investigations,Independent Investigations,http://opendatacommunities.org/id/county-council/staffordshire  
Staffordshire County Council,ICT Service Management,Specialist Computer Centres Ltd,10/10/2019,4110.00,AGENCY STAFF,AGENCY STAFF,http://opendatacommunities.org/id/county-council/staffordshire  
Staffordshire County Council,Community Learning Trust,STAFFORDSHIRE VENTURE LTD,10/10/2019,1950.00,Courses,Courses,http://opendatacommunities.org/id/county-council/staffordshire  
Staffordshire County Council,Education Commissioning,Step up Support Services Limited,10/10/2019,2000.00,OTHER HIRED SERVICES,OTHER HIRED SERVICES,http://opendatacommunities.org/id/county-council/staffordshire  
Staffordshire County Council,Street Sweeping-Cannock Chase,SUEZ RECYCLING & RECOVERY UK LTD,10/10/2019,2970.78,Waste Treatment,Waste Treatment,http://opendatacommunities.org/id/county-council/staffordshire  
Staffordshire County Council,Street Sweeping - Newcastle,SUEZ RECYCLING & RECOVERY UK LTD,10/10/2019,7821.31,Waste Treatment,Waste Treatment,http://opendatacommunities.org/id/county-council/staffordshire  
Staffordshire County Council,County Fleet Care Purchase Of ,TREKA BUS LTD,10/10/2019,81675.66,Vehicle Purchase,Vehicle Purchase,http://opendatacommunities.org/id/county-council/staffordshire  
Staffordshire County Council,DIPS,WALSALL MET BOROUGH COUNCIL,10/10/2019,3031.71, Alternative Education Schemes, Alternative Education Schemes,http://opendatacommunities.org/id/county-council/staffordshire  
Staffordshire County Council,DIPS,WALSALL MET BOROUGH COUNCIL,10/10/2019,3336.28, Alternative Education Schemes, Alternative Education Schemes,http://opendatacommunities.org/id/county-council/staffordshire  
Staffordshire County Council,DIPS,WALSALL MET BOROUGH COUNCIL,10/10/2019,4302.05, Alternative Education Schemes, Alternative Education Schemes,http://opendatacommunities.org/id/county-council/staffordshire  
Staffordshire County Council,DIPS,WALSALL MET BOROUGH COUNCIL,10/10/2019,3731.34, Alternative Education Schemes, Alternative Education Schemes,http://opendatacommunities.org/id/county-council/staffordshire  
Staffordshire County Council,Marches Network Region,Warwickshire County Council,10/10/2019,6562.00,Project Activities,Project Activities,http://opendatacommunities.org/id/county-council/staffordshire  
Staffordshire County Council,0952 Tamworth Lib CorporationS,WATER PLUS,10/10/2019,610.82,Water Charges Metered,Water Charges Metered,http://opendatacommunities.org/id/county-council/staffordshire  
Staffordshire County Council,0952 Tamworth Lib CorporationS,WATER PLUS,10/10/2019,624.72,Water Charges Metered,Water Charges Metered,http://opendatacommunities.org/id/county-council/staffordshire  
Staffordshire County Council,DIPS,Wolverhampton City Council,10/10/2019,11855.00, Alternative Education Schemes, Alternative Education Schemes,http://opendatacommunities.org/id/county-council/staffordshire  
Staffordshire County Council,Greenhall Comm. Special School,A1 Wolves Taxis,11/10/2019,3770.62,Home School Contract Vehicles,Home School Contract Vehicles,http://opendatacommunities.org/id/county-council/staffordshire  
Staffordshire County Council,Stafford Invoice Led Phys Disa,Affexa Care Services,11/10/2019,728.70,Practical Care,Practical Care,http://opendatacommunities.org/id/county-council/staffordshire  
Staffordshire County Council,Stafford Invoice Led Older Peo,AMG NURSING & CARE SERVICES,11/10/2019,974.96,Practical Care,Practical Care,http://opendatacommunities.org/id/county-council/staffordshire  
Staffordshire County Council,Moorlands Invoice Led Older Pe,AMG NURSING & CARE SERVICES,11/10/2019,887.39,Practical Care,Practical Care,http://opendatacommunities.org/id/county-council/staffordshire  
Staffordshire County Council,Moorlands Invoice Led Older Pe,AMG NURSING & CARE SERVICES,11/10/2019,974.96,Practical Care,Practical Care,http://opendatacommunities.org/id/county-council/staffordshire  
Staffordshire County Council,Moorlands Invoice Led Older Pe,AMG NURSING & CARE SERVICES,11/10/2019,1014.16,Practical Care,Practical Care,http://opendatacommunities.org/id/county-council/staffordshire  
Staffordshire County Council,Moorlands Invoice Led Older Pe,AMG NURSING & CARE SERVICES,11/10/2019,507.08,Practical Care,Practical Care,http://opendatacommunities.org/id/county-council/staffordshire  
Staffordshire County Council,Moorlands Invoice Led Older Pe,AMG NURSING & CARE SERVICES,11/10/2019,974.96,Practical Care,Practical Care,http://opendatacommunities.org/id/county-council/staffordshire  
Staffordshire County Council,Moorlands Invoice Led Older Pe,AMG NURSING & CARE SERVICES,11/10/2019,696.40,Practical Care,Practical Care,http://opendatacommunities.org/id/county-council/staffordshire  
Staffordshire County Council,Moorlands Invoice Led Older Pe,AMG NURSING & CARE SERVICES,11/10/2019,974.96,Practical Care,Practical Care,http://opendatacommunities.org/id/county-council/staffordshire  
Staffordshire County Council,East Staffs Invoice Led Older ,AMG NURSING & CARE SERVICES,11/10/2019,974.96,Practical Care,Practical Care,http://opendatacommunities.org/id/county-council/staffordshire  
Staffordshire County Council,East Staffs Invoice Led Older ,AMG NURSING & CARE SERVICES,11/10/2019,731.22,Practical Care,Practical Care,http://opendatacommunities.org/id/county-council/staffordshire  
Staffordshire County Council,Stafford Invoice Led Older Peo,AMG NURSING & CARE SERVICES,11/10/2019,974.96,Practical Care,Practical Care,http://opendatacommunities.org/id/county-council/staffordshire  
Staffordshire County Council,Stafford Invoice Led Older Peo,AMG NURSING & CARE SERVICES,11/10/2019,974.96,Practical Care,Practical Care,http://opendatacommunities.org/id/county-council/staffordshire  
Staffordshire County Council,Graham Balfour Expand PFI sch,Apex Ecology Ltd,11/10/2019,535.20,Construction Works,Construction Works,http://opendatacommunities.org/id/county-council/staffordshire  
Staffordshire County Council,Redhill Employment Park,Apex Ecology Ltd,11/10/2019,10500.00,Construction Works,Construction Works,http://opendatacommunities.org/id/county-council/staffordshire  
Staffordshire County Council,Tamworth LD Team,Bayliss and Wilcox Community Support Ltd,11/10/2019,1268.96,Supported Group Care,Supported Group Care,http://opendatacommunities.org/id/county-council/staffordshire  
Staffordshire County Council,Lymedale West Business Centre,BID,11/10/2019,691.20,Repair and Maint Buildings NPS,Repair and Maint Buildings NPS,http://opendatacommunities.org/id/county-council/staffordshire  
Staffordshire County Council,KCOM - Wholesale Line Rental,BT Plc,11/10/2019,784.72,CALL CHARGES,CALL CHARGES,http://opendatacommunities.org/id/county-council/staffordshire  
Staffordshire County Council,Growth Hub ERDF 2019-2022,Caja Ltd,11/10/2019,1898.17,Grants Other,Grants Other,http://opendatacommunities.org/id/county-council/staffordshire  
Staffordshire County Council,Stafford Invoice Led Older Peo,Caremark,11/10/2019,1435.54,Practical Care,Practical Care,http://opendatacommunities.org/id/county-council/staffordshire  
Staffordshire County Council,Lichfield Children's Centre,Charnwood Primary Academy,11/10/2019,3788.40,Running Cost Reimbursement,Running Cost Reimbursement,http://opendatacommunities.org/id/county-council/staffordshire  
Staffordshire County Council,Lichfield LD Team,CHERRY ORCHARD GARDEN SERVICES,11/10/2019,595.00,Day Care,Day Care,http://opendatacommunities.org/id/county-council/staffordshire  
Staffordshire County Council,Lichfield LD Team,CHERRY ORCHARD GARDEN SERVICES,11/10/2019,1020.00,Day Care,Day Care,http://opendatacommunities.org/id/county-council/staffordshire  
Staffordshire County Council,Central Winter Maintenance Wor,COMPASS MINERALS UK LTD,11/10/2019,907.43,Winter Salt Purchases,Winter Salt Purchases,http://opendatacommunities.org/id/county-council/staffordshire  
Staffordshire County Council,Central Winter Maintenance Wor,COMPASS MINERALS UK LTD,11/10/2019,1796.29,Winter Salt Purchases,Winter Salt Purchases,http://opendatacommunities.org/id/county-council/staffordshire  
Staffordshire County Council,Central Winter Maintenance Wor,COMPASS MINERALS UK LTD,11/10/2019,1812.07,Winter Salt Purchases,Winter Salt Purchases,http://opendatacommunities.org/id/county-council/staffordshire  
Staffordshire County Council,Central Winter Maintenance Wor,COMPASS MINERALS UK LTD,11/10/2019,2643.42,Winter Salt Purchases,Winter Salt Purchases,http://opendatacommunities.org/id/county-council/staffordshire  
Staffordshire County Council,Central Winter Maintenance Wor,COMPASS MINERALS UK LTD,11/10/2019,901.86,Winter Salt Purchases,Winter Salt Purchases,http://opendatacommunities.org/id/county-council/staffordshire  
Staffordshire County Council,E Staffs LD Team,Craegmoor Priory Group,11/10/2019,1831.80,Supported Group Care,Supported Group Care,http://opendatacommunities.org/id/county-council/staffordshire  
Staffordshire County Council,S Staffs LD Team,Craegmoor Priory Group,11/10/2019,4050.00,Supported Group Care,Supported Group Care,http://opendatacommunities.org/id/county-council/staffordshire  
Staffordshire County Council,S Staffs LD Team,Craegmoor Priory Group,11/10/2019,5447.14,Supported Group Care,Supported Group Care,http://opendatacommunities.org/id/county-council/staffordshire  
Staffordshire County Council,S Staffs LD Team,Craegmoor Priory Group,11/10/2019,585.00,Supported Group Care,Supported Group Care,http://opendatacommunities.org/id/county-council/staffordshire  
Staffordshire County Council,E Staffs LD Team,D E Healthcare,11/10/2019,4667.88,Supported Group Care,Supported Group Care,http://opendatacommunities.org/id/county-council/staffordshire  
Staffordshire County Council,Stafford LD Team,D E Healthcare,11/10/2019,7118.68,Supported Group Care,Supported Group Care,http://opendatacommunities.org/id/county-council/staffordshire  
Staffordshire County Council,Newcastle LD Team,D E Healthcare,11/10/2019,5026.68,Supported Group Care,Supported Group Care,http://opendatacommunities.org/id/county-council/staffordshire  
Staffordshire County Council,Stafford LD Team,D E Healthcare,11/10/2019,3599.12,Supported Group Care,Supported Group Care,http://opendatacommunities.org/id/county-council/staffordshire  
Staffordshire County Council,E Staffs LD Team,D E Healthcare,11/10/2019,2462.92,Supported Group Care,Supported Group Care,http://opendatacommunities.org/id/county-council/staffordshire  
Staffordshire County Council,E Staffs LD Team,D E Healthcare,11/10/2019,3054.68,Supported Group Care,Supported Group Care,http://opendatacommunities.org/id/county-council/staffordshire  
Staffordshire County Council,E Staffs LD Team,D E Healthcare,11/10/2019,4242.07,Supported Group Care,Supported Group Care,http://opendatacommunities.org/id/county-council/staffordshire  
Staffordshire County Council,E Staffs LD Team,D E Healthcare,11/10/2019,3580.38,Supported Group Care,Supported Group Care,http://opendatacommunities.org/id/county-council/staffordshire  
Staffordshire County Council,E Staffs LD Team,D E Healthcare,11/10/2019,2418.07,Supported Group Care,Supported Group Care,http://opendatacommunities.org/id/county-council/staffordshire  
Staffordshire County Council,Stafford LD Team,D E Healthcare,11/10/2019,2462.92,Supported Group Care,Supported Group Care,http://opendatacommunities.org/id/county-council/staffordshire  
Staffordshire County Council,LEP Core,,11/10/2019,15000.00,Advertising,Advertising,http://opendatacommunities.org/id/county-council/staffordshire  
Staffordshire County Council,2 Contraception,Dr Sellens & Partners,11/10/2019,682.80,other services external,other services external,http://opendatacommunities.org/id/county-council/staffordshire  
Staffordshire County Council,1 STI Test & Treat,DUDLEY GROUP OF HOSPITALS NHS TRUST,11/10/2019,15059.00,other services internal,other services internal,http://opendatacommunities.org/id/county-council/staffordshire  
Staffordshire County Council,A5189 St Peter'S Bridge (B1798,E ON UK ENERGY SERVICES LTD,11/10/2019,8009.71,Ext Fees Construction,Ext Fees Construction,http://opendatacommunities.org/id/county-council/staffordshire  
Staffordshire County Council,Traffic Signal Refurbishment,E ON UK ENERGY SERVICES LTD,11/10/2019,1223.90,Construction Works,Construction Works,http://opendatacommunities.org/id/county-council/staffordshire  
Staffordshire County Council,"Hilderstone Road, Meir Heath P",E ON UK ENERGY SERVICES LTD,11/10/2019,8805.75,Ext Fees Construction,Ext Fees Construction,http://opendatacommunities.org/id/county-council/staffordshire  
Staffordshire County Council,County,Fleet Factors Ltd,11/10/2019,4434.78,CFC Purchase of Stock,CFC Purchase of Stock,http://opendatacommunities.org/id/county-council/staffordshire  
Staffordshire County Council,Stafford Invoice Led Phys Disa,Freedom Support Limited,11/10/2019,10080.00,Practical Care,Practical Care,http://opendatacommunities.org/id/county-council/staffordshire  
Staffordshire County Council,Moorlands LD Team,Freespirits Day Care Ltd,11/10/2019,1707.50,Day Care,Day Care,http://opendatacommunities.org/id/county-council/staffordshire  
Staffordshire County Council,Moorlands LD Team,Freespirits Day Care Ltd,11/10/2019,2284.00,Day Care,Day Care,http://opendatacommunities.org/id/county-council/staffordshire  
Staffordshire County Council,Richard Heathcote Roofing,G EVANS (SERVICES) LTD,11/10/2019,27947.04,Construction Works,Construction Works,http://opendatacommunities.org/id/county-council/staffordshire  
Staffordshire County Council,Staffordshire Wood Fuel,GELLATLY STAFFORD LTD,11/10/2019,10179.00,Wood Chip,Wood Chip,http://opendatacommunities.org/id/county-council/staffordshire  
Staffordshire County Council,Staffordshire Wood Fuel,GELLATLY STAFFORD LTD,11/10/2019,1080.00,Equipment Rent and Hire,Equipment Rent and Hire,http://opendatacommunities.org/id/county-council/staffordshire  
Staffordshire County Council,Rights Of Way,GREENAWAY TIMBER PRODUCTS,11/10/2019,2448.00,General Equipment Purchase,General Equipment Purchase,http://opendatacommunities.org/id/county-council/staffordshire  
Staffordshire County Council,2 Contraception,HAZELDENE HOUSE SURGERY,11/10/2019,764.32,other services external,other services external,http://opendatacommunities.org/id/county-council/staffordshire  
Staffordshire County Council,E Staffs LD Team,HILL LODGE,11/10/2019,2600.00,Supported Group Care,Supported Group Care,http://opendatacommunities.org/id/county-council/staffordshire  
Staffordshire County Council,Tamworth Invoice Led Older Peo,Hills Angels Homecare,11/10/2019,507.15,Practical Care,Practical Care,http://opendatacommunities.org/id/county-council/staffordshire  
Staffordshire County Council,Independent School Fee Special,Horizon Care Ltd,11/10/2019,12350.00,Fees to Independent Schools,Fees to Independent Schools,http://opendatacommunities.org/id/county-council/staffordshire  
Staffordshire County Council,Destination Management Partner,IAN WEIGHTMAN MEDIA SERVICES,11/10/2019,1156.80,AGENCY STAFF,AGENCY STAFF,http://opendatacommunities.org/id/county-council/staffordshire  
Staffordshire County Council,Newcastle LD Team,Independent Support,11/10/2019,5621.60,Supported Group Care,Supported Group Care,http://opendatacommunities.org/id/county-council/staffordshire  
Staffordshire County Council,KCOM - Core Network,KCom Group PLC,11/10/2019,6195.13,Purchase of Hardware,Purchase of Hardware,http://opendatacommunities.org/id/county-council/staffordshire  
Staffordshire County Council,0822 County Records Eastgate S,LANTERN FIRE & SECURITY LTD,11/10/2019,521.48,Day to Day Electrical Services,Day to Day Electrical Services,http://opendatacommunities.org/id/county-council/staffordshire  
Staffordshire County Council,S Staffs LD Team,Living Ambitions Ltd,11/10/2019,7200.20,Supported Group Care,Supported Group Care,http://opendatacommunities.org/id/county-council/staffordshire  
Staffordshire County Council,Growth Hub ERDF 2019-2022,Logic Resourcing Ltd,11/10/2019,1200.00,Grants Other,Grants Other,http://opendatacommunities.org/id/county-council/staffordshire  
Staffordshire County Council,Burton PRU CCTV,M W CRIPWELL LTD,11/10/2019,47931.60,Construction Works,Construction Works,http://opendatacommunities.org/id/county-council/staffordshire  
Staffordshire County Council,2 Contraception,MANSION HOUSE SURGERY,11/10/2019,605.00,other services external,other services external,http://opendatacommunities.org/id/county-council/staffordshire  
Staffordshire County Council,Virtual School - Pupil Premium,NATIONAL TEACHING ADVISORY SERVI,11/10/2019,1482.00,OTHER ALLOWANCES,OTHER ALLOWANCES,http://opendatacommunities.org/id/county-council/staffordshire  
Staffordshire County Council,Virtual School - Pupil Premium,NATIONAL TEACHING ADVISORY SERVI,11/10/2019,2145.00,OTHER ALLOWANCES,OTHER ALLOWANCES,http://opendatacommunities.org/id/county-council/staffordshire  
Staffordshire County Council,Virtual School - Pupil Premium,NATIONAL TEACHING ADVISORY SERVI,11/10/2019,2340.00,OTHER ALLOWANCES,OTHER ALLOWANCES,http://opendatacommunities.org/id/county-council/staffordshire  
Staffordshire County Council,Lichfield Southern Bypass 13/1,NETWORK RAIL INFRASTRUCTURE LTD,11/10/2019,6822.82,Network Rail Fees,Network Rail Fees,http://opendatacommunities.org/id/county-council/staffordshire  
Staffordshire County Council,Lichfield Southern Bypass 13/1,NETWORK RAIL INFRASTRUCTURE LTD,11/10/2019,14177.48,Network Rail Fees,Network Rail Fees,http://opendatacommunities.org/id/county-council/staffordshire  
Staffordshire County Council,MCA / DoLs / AMHP,NW Social Work Ltd,11/10/2019,900.00,Independent Investigations,Independent Investigations,http://opendatacommunities.org/id/county-council/staffordshire  
Staffordshire County Council,Rights Of Way Improvement Plan,PEAK DISTRICT NATIONAL PARK AUTH,11/10/2019,1509.73,Construction Works,Construction Works,http://opendatacommunities.org/id/county-council/staffordshire  
Staffordshire County Council,Asset Renewal - Emergency Work,PEAK DISTRICT NATIONAL PARK AUTH,11/10/2019,590.42,Construction Works,Construction Works,http://opendatacommunities.org/id/county-council/staffordshire  
Staffordshire County Council,Rights Of Way Maintenance,PEAK DISTRICT NATIONAL PARK AUTH,11/10/2019,633.70,Construction Works,Construction Works,http://opendatacommunities.org/id/county-council/staffordshire  
Staffordshire County Council,Rights Of Way Maintenance,PEAK DISTRICT NATIONAL PARK AUTH,11/10/2019,1109.72,Construction Works,Construction Works,http://opendatacommunities.org/id/county-council/staffordshire  
Staffordshire County Council,2 Contraception,Penkridge Medical Practice,11/10/2019,1015.00,other services external,other services external,http://opendatacommunities.org/id/county-council/staffordshire  
Staffordshire County Council,Organisational Development,Premier Partnership,11/10/2019,660.00,EXTERNAL TRAINING,EXTERNAL TRAINING,http://opendatacommunities.org/id/county-council/staffordshire  
Staffordshire County Council,Chadsmoor External Brickwork,R A EDWARDS & PARTNERS LTD,11/10/2019,17968.62,Construction Works,Construction Works,http://opendatacommunities.org/id/county-council/staffordshire  
Staffordshire County Council,Holly Grove Toilet Refurbs,R A EDWARDS & PARTNERS LTD,11/10/2019,27600.00,Construction Works,Construction Works,http://opendatacommunities.org/id/county-council/staffordshire  
Staffordshire County Council,Speed Awareness,R BROWN,11/10/2019,1560.00,DRIVING INSTRUCTION,DRIVING INSTRUCTION,http://opendatacommunities.org/id/county-council/staffordshire  
Staffordshire County Council,Speed Awareness,R JOHNSON,11/10/2019,1300.00,DRIVING INSTRUCTION,DRIVING INSTRUCTION,http://opendatacommunities.org/id/county-council/staffordshire  
Staffordshire County Council,Other Corporate Items,RAIL SETTLEMENT PLAN LTD,11/10/2019,5598.60,Public Transport Other,Public Transport Other,http://opendatacommunities.org/id/county-council/staffordshire  
Staffordshire County Council,MCA / DoLs / AMHP,RKJ Contracts Ltd,11/10/2019,1100.00,Independent Investigations,Independent Investigations,http://opendatacommunities.org/id/county-council/staffordshire  
Staffordshire County Council,MCA / DoLs / AMHP,RKJ Contracts Ltd,11/10/2019,1100.00,Independent Investigations,Independent Investigations,http://opendatacommunities.org/id/county-council/staffordshire  
Staffordshire County Council,Vol. Org. Support,S C V Y S,11/10/2019,9995.00,Grants To Clubs,Grants To Clubs,http://opendatacommunities.org/id/county-council/staffordshire  
Staffordshire County Council,ERDF Low Carbon Bus Evol Prog,SCC Sundry BACS  1 Company,11/10/2019,7170.00,Grants to third parties,Grants to third parties,http://opendatacommunities.org/id/county-council/staffordshire  
Staffordshire County Council,Improvements Contracts,Snowflake Software Ltd,11/10/2019,3894.89,SOFTWARE LICENCES,SOFTWARE LICENCES,http://opendatacommunities.org/id/county-council/staffordshire  
Staffordshire County Council,SBC Civic Offices 4th Floor,STAFFORD BOROUGH COUNCIL,11/10/2019,161427.20,Rent / Lease Of Premises,Rent / Lease Of Premises,http://opendatacommunities.org/id/county-council/staffordshire  
Staffordshire County Council,Training,Steven Talbot Consultancy,11/10/2019,1400.00,Courses,Courses,http://opendatacommunities.org/id/county-council/staffordshire  
Staffordshire County Council,Street Sweeping - Lichfield,SUEZ RECYCLING & RECOVERY UK LTD,11/10/2019,4372.15,Waste Treatment,Waste Treatment,http://opendatacommunities.org/id/county-council/staffordshire  
Staffordshire County Council,Street Sweeping - Stafford,SUEZ RECYCLING & RECOVERY UK LTD,11/10/2019,5038.67,Waste Treatment,Waste Treatment,http://opendatacommunities.org/id/county-council/staffordshire  
Staffordshire County Council,Street Sweeping - Staffs Moor,SUEZ RECYCLING & RECOVERY UK LTD,11/10/2019,4197.68,Waste Treatment,Waste Treatment,http://opendatacommunities.org/id/county-council/staffordshire  
Staffordshire County Council,Street Sweeping - South Staffs,SUEZ RECYCLING & RECOVERY UK LTD,11/10/2019,5592.62,Waste Treatment,Waste Treatment,http://opendatacommunities.org/id/county-council/staffordshire  
Staffordshire County Council,Castle House (The Hub),Taybar Limited,11/10/2019,926.10,Premises Services,Premises Services,http://opendatacommunities.org/id/county-council/staffordshire  
Staffordshire County Council,BRFC - EA,Train To Equip Sue Rastall Ltd,11/10/2019,2755.20,EXTERNAL TRAINING,EXTERNAL TRAINING,http://opendatacommunities.org/id/county-council/staffordshire  
Staffordshire County Council,S Staffs LD Team,TRINITY SKILLS FOR LIFE LTD,11/10/2019,1206.62,Day Care,Day Care,http://opendatacommunities.org/id/county-council/staffordshire  
Staffordshire County Council,KCOM - Mobile Network,VIRGIN MEDIA BUSINESS,11/10/2019,50545.15,MOBILE PHONES,MOBILE PHONES,http://opendatacommunities.org/id/county-council/staffordshire  
Staffordshire County Council,Cannock Invoice Led Phys Disab,Voyage Ltd,11/10/2019,3089.12,Supported Group Care,Supported Group Care,http://opendatacommunities.org/id/county-council/staffordshire  
Staffordshire County Council,Four Ashes - ERF,Walsall Metropolitan B C,11/10/2019,413433.88,Waste Treatment,Waste Treatment,http://opendatacommunities.org/id/county-council/staffordshire  
Staffordshire County Council,Silverdale Enterprise Centre,WATER PLUS,11/10/2019,2133.05,Water Charges Metered,Water Charges Metered,http://opendatacommunities.org/id/county-council/staffordshire  
Staffordshire County Council,Equipment Maintenance SET,WESSEX LIFT CO LTD,11/10/2019,1650.00,Servicing Equipment Purchase,Servicing Equipment Purchase,http://opendatacommunities.org/id/county-council/staffordshire  
Staffordshire County Council,Community Learning Trust,WEST CHADSMOOR FAMILY CENTRE,11/10/2019,1200.00,Courses,Courses,http://opendatacommunities.org/id/county-council/staffordshire  
Staffordshire County Council,Lichfield Invoice Led Physi Di,Wynters Care Group Limited,11/10/2019,565.80,Practical Care,Practical Care,http://opendatacommunities.org/id/county-council/staffordshire  
Staffordshire County Council,New School - Land At Pye Green,YORKSHIRE PURCHASING ORG,11/10/2019,3847.68,Construction Works,Construction Works,http://opendatacommunities.org/id/county-council/staffordshire  
Staffordshire County Council,New School - Land At Pye Green,YORKSHIRE PURCHASING ORG,11/10/2019,2283.36,Construction Works,Construction Works,http://opendatacommunities.org/id/county-council/staffordshire  
Staffordshire County Council,New School - Land At Pye Green,YORKSHIRE PURCHASING ORG,11/10/2019,928.20,Construction Works,Construction Works,http://opendatacommunities.org/id/county-council/staffordshire  
Staffordshire County Council,New School - Land At Pye Green,YORKSHIRE PURCHASING ORG,11/10/2019,1079.57,Construction Works,Construction Works,http://opendatacommunities.org/id/county-council/staffordshire  
Staffordshire County Council,Various,COMENSURA,11/10/2019,160363.36,AGENCY STAFF,AGENCY STAFF,http://opendatacommunities.org/id/county-council/staffordshire  
Staffordshire County Council,Nursery Education Grant,A DAVIES-HILL,14/10/2019,632.23,Grants Nursery Education Pymnt,Grants Nursery Education Pymnt,http://opendatacommunities.org/id/county-council/staffordshire  
Staffordshire County Council,Nursery Education Grant,A Ratcliffe,14/10/2019,1571.63,Grants Nursery Education Pymnt,Grants Nursery Education Pymnt,http://opendatacommunities.org/id/county-council/staffordshire  
Staffordshire County Council,Nursery Education Grant,A SCOTT,14/10/2019,1875.84,Grants Nursery Education Pymnt,Grants Nursery Education Pymnt,http://opendatacommunities.org/id/county-council/staffordshire  
Staffordshire County Council,Think 2 Project,A SHAW-MATTHEWS,14/10/2019,533.40,Awards Funded Childcare Places,Awards Funded Childcare Places,http://opendatacommunities.org/id/county-council/staffordshire  
Staffordshire County Council,Nursery Education Grant,A SHAW-MATTHEWS,14/10/2019,554.62,Grants Nursery Education Pymnt,Grants Nursery Education Pymnt,http://opendatacommunities.org/id/county-council/staffordshire  
Staffordshire County Council,Nursery Education Grant,A STERN,14/10/2019,656.78,Grants Nursery Education Pymnt,Grants Nursery Education Pymnt,http://opendatacommunities.org/id/county-council/staffordshire  
Staffordshire County Council,Think 2 Project,ABACUS NURSERY,14/10/2019,2667.00,Awards Funded Childcare Places,Awards Funded Childcare Places,http://opendatacommunities.org/id/county-council/staffordshire  
Staffordshire County Council,Nursery Education Grant,ABACUS NURSERY,14/10/2019,5127.30,Grants Nursery Education Pymnt,Grants Nursery Education Pymnt,http://opendatacommunities.org/id/county-council/staffordshire  
Staffordshire County Council,Think 2 Project,ABC Early Learning & Childcare Cent,14/10/2019,853.44,Awards Funded Childcare Places,Awards Funded Childcare Places,http://opendatacommunities.org/id/county-council/staffordshire  
Staffordshire County Council,Nursery Education Grant,ABC Early Learning & Childcare Cent,14/10/2019,609.24,Grants Nursery Education Pymnt,Grants Nursery Education Pymnt,http://opendatacommunities.org/id/county-council/staffordshire  
Staffordshire County Council,Think 2 Project,ACADEMY EARLY YEARS CHILDCARE LTD,14/10/2019,2656.84,Awards Funded Childcare Places,Awards Funded Childcare Places,http://opendatacommunities.org/id/county-council/staffordshire  
Staffordshire County Council,Nursery Education Grant,ACADEMY EARLY YEARS CHILDCARE LTD,14/10/2019,3446.20,Grants Nursery Education Pymnt,Grants Nursery Education Pymnt,http://opendatacommunities.org/id/county-council/staffordshire  
Staffordshire County Council,Headquarters - I.S.P,ACORN FOSTERING SERVICES LTD,14/10/2019,2914.72,Social Services Oth Local Auth,Social Services Oth Local Auth,http://opendatacommunities.org/id/county-council/staffordshire  
Staffordshire County Council,Cannock Invoice Led Older Peop,ADVANCE HEALTHCARE UK LTD,14/10/2019,2261.70,Practical Care,Practical Care,http://opendatacommunities.org/id/county-council/staffordshire  
Staffordshire County Council,Moorlands LD Team,Affinity Trust Ltd,14/10/2019,8286.50,Supported Group Care,Supported Group Care,http://opendatacommunities.org/id/county-council/staffordshire  
Staffordshire County Council,Cannock Chase LD Team,Affinity Trust Ltd,14/10/2019,1319.22,Supported Group Care,Supported Group Care,http://opendatacommunities.org/id/county-council/staffordshire  
Staffordshire County Council,S Staffs LD Team,Affinity Trust Ltd,14/10/2019,3128.78,Supported Group Care,Supported Group Care,http://opendatacommunities.org/id/county-council/staffordshire  
Staffordshire County Council,Tamworth LD Team,Affinity Trust Ltd,14/10/2019,1448.45,Supported Group Care,Supported Group Care,http://opendatacommunities.org/id/county-council/staffordshire  
Staffordshire County Council,Tamworth LD Team,Affinity Trust Ltd,14/10/2019,1498.09,Supported Group Care,Supported Group Care,http://opendatacommunities.org/id/county-council/staffordshire  
Staffordshire County Council,S Staffs LD Team,Affinity Trust Ltd,14/10/2019,3143.64,Supported Group Care,Supported Group Care,http://opendatacommunities.org/id/county-council/staffordshire  
Staffordshire County Council,Cannock Chase LD Team,Affinity Trust Ltd,14/10/2019,1455.06,Supported Group Care,Supported Group Care,http://opendatacommunities.org/id/county-council/staffordshire  
Staffordshire County Council,Stafford Invoice Led Older Peo,AGE CONCERN STAFFORD & DIST,14/10/2019,24892.56,Day Care,Day Care,http://opendatacommunities.org/id/county-council/staffordshire  
Staffordshire County Council,Nursery Education Grant,All Saints' CE (A) First Sch,14/10/2019,9921.11,Grants Nursery Education Pymnt,Grants Nursery Education Pymnt,http://opendatacommunities.org/id/county-council/staffordshire  
Staffordshire County Council,Nursery Education Grant,ALL SAINTS KIDS CLUB,14/10/2019,842.87,Grants Nursery Education Pymnt,Grants Nursery Education Pymnt,http://opendatacommunities.org/id/county-council/staffordshire  
Staffordshire County Council,IGU Records Centre,AMVAR HANDLING SOLS LTD,14/10/2019,606.58,General Equipment Repair/Maint,General Equipment Repair/Maint,http://opendatacommunities.org/id/county-council/staffordshire  
Staffordshire County Council,Nursery Education Grant,Angelina Emery,14/10/2019,653.10,Grants Nursery Education Pymnt,Grants Nursery Education Pymnt,http://opendatacommunities.org/id/county-council/staffordshire  
Staffordshire County Council,Think 2 Project,ARGYLE PRE SCHOOL NURSERY,14/10/2019,2933.70,Awards Funded Childcare Places,Awards Funded Childcare Places,http://opendatacommunities.org/id/county-council/staffordshire  
Staffordshire County Council,Nursery Education Grant,ARGYLE PRE SCHOOL NURSERY,14/10/2019,6332.91,Grants Nursery Education Pymnt,Grants Nursery Education Pymnt,http://opendatacommunities.org/id/county-council/staffordshire  
Staffordshire County Council,Nursery Education Grant,ARMITAGE PRE SCHOOL,14/10/2019,1361.75,Grants Nursery Education Pymnt,Grants Nursery Education Pymnt,http://opendatacommunities.org/id/county-council/staffordshire  
Staffordshire County Council,Environmental Advice Team,Ashmead Price,14/10/2019,918.90,CONSULTANT FEES,CONSULTANT FEES,http://opendatacommunities.org/id/county-council/staffordshire  
Staffordshire County Council,Concessionary Fare Schemes,B P BROWN TRAVEL LTD,14/10/2019,14214.00,Payments to Bus Operators,Payments to Bus Operators,http://opendatacommunities.org/id/county-council/staffordshire  
Staffordshire County Council,2 Contraception,BALANCE STREET PRACTICE,14/10/2019,2147.32,other services external,other services external,http://opendatacommunities.org/id/county-council/staffordshire  
Staffordshire County Council,Nursery Education Grant,BAMBINO'S PRIVATE DAY NURSERY LTD,14/10/2019,512.13,Grants Nursery Education Pymnt,Grants Nursery Education Pymnt,http://opendatacommunities.org/id/county-council/staffordshire  
Staffordshire County Council,Think 2 Project,Barney Bears Nursery,14/10/2019,533.40,Awards Funded Childcare Places,Awards Funded Childcare Places,http://opendatacommunities.org/id/county-council/staffordshire  
Staffordshire County Council,Nursery Education Grant,Barney Bears Nursery,14/10/2019,10157.36,Grants Nursery Education Pymnt,Grants Nursery Education Pymnt,http://opendatacommunities.org/id/county-council/staffordshire  
Staffordshire County Council,Nursery Education Grant,Birches First School,14/10/2019,11157.91,Grants Nursery Education Pymnt,Grants Nursery Education Pymnt,http://opendatacommunities.org/id/county-council/staffordshire  
Staffordshire County Council,Think 2 Project,Birchwood Private Day Nursery,14/10/2019,1333.50,Awards Funded Childcare Places,Awards Funded Childcare Places,http://opendatacommunities.org/id/county-council/staffordshire  
Staffordshire County Council,Nursery Education Grant,Birchwood Private Day Nursery,14/10/2019,3721.75,Grants Nursery Education Pymnt,Grants Nursery Education Pymnt,http://opendatacommunities.org/id/county-council/staffordshire  
Staffordshire County Council,Nursery Education Grant,Blackshaw Moor CofE First School,14/10/2019,2917.97,Grants Nursery Education Pymnt,Grants Nursery Education Pymnt,http://opendatacommunities.org/id/county-council/staffordshire  
Staffordshire County Council,Virtual School - Pupil Premium,BLESSED WILLIAM HOWARD H SCHOOL,14/10/2019,945.00,OTHER ALLOWANCES,OTHER ALLOWANCES,http://opendatacommunities.org/id/county-council/staffordshire  
Staffordshire County Council,Nursery Education Grant,BOLEY PARK PRE-SCHOOL,14/10/2019,1945.34,Grants Nursery Education Pymnt,Grants Nursery Education Pymnt,http://opendatacommunities.org/id/county-council/staffordshire  
Staffordshire County Council,Speed Awareness,BOUNDARY SCHOOL OF MOTORING,14/10/2019,1040.00,DRIVING INSTRUCTION,DRIVING INSTRUCTION,http://opendatacommunities.org/id/county-council/staffordshire  
Staffordshire County Council,Think 2 Project,BRIGHT BEGINNINGS DAY NURSERY,14/10/2019,510.54,Awards Funded Childcare Places,Awards Funded Childcare Places,http://opendatacommunities.org/id/county-council/staffordshire  
Staffordshire County Council,Nursery Education Grant,BRIGHT BEGINNINGS DAY NURSERY,14/10/2019,7598.69,Grants Nursery Education Pymnt,Grants Nursery Education Pymnt,http://opendatacommunities.org/id/county-council/staffordshire  
Staffordshire County Council,Think 2 Project,BROWN EDGE BUSY BEES,14/10/2019,1226.82,Awards Funded Childcare Places,Awards Funded Childcare Places,http://opendatacommunities.org/id/county-council/staffordshire  
Staffordshire County Council,Nursery Education Grant,BROWN EDGE BUSY BEES,14/10/2019,2501.15,Grants Nursery Education Pymnt,Grants Nursery Education Pymnt,http://opendatacommunities.org/id/county-council/staffordshire  
Staffordshire County Council,Think 2 Project,BROWNSHORE PRE-SCHOOL PLAYGROUP,14/10/2019,533.40,Awards Funded Childcare Places,Awards Funded Childcare Places,http://opendatacommunities.org/id/county-council/staffordshire  
Staffordshire County Council,Nursery Education Grant,BROWNSHORE PRE-SCHOOL PLAYGROUP,14/10/2019,1496.26,Grants Nursery Education Pymnt,Grants Nursery Education Pymnt,http://opendatacommunities.org/id/county-council/staffordshire  
Staffordshire County Council,Think 2 Project,Busy Bees Day Nursery,14/10/2019,1981.20,Awards Funded Childcare Places,Awards Funded Childcare Places,http://opendatacommunities.org/id/county-council/staffordshire  
Staffordshire County Council,Nursery Education Grant,Busy Bees Day Nursery,14/10/2019,4396.43,Grants Nursery Education Pymnt,Grants Nursery Education Pymnt,http://opendatacommunities.org/id/county-council/staffordshire  
Staffordshire County Council,Think 2 Project,BUSYDAYS CHILDCARE,14/10/2019,1066.80,Awards Funded Childcare Places,Awards Funded Childcare Places,http://opendatacommunities.org/id/county-council/staffordshire  
Staffordshire County Council,Think 2 Project,BUTTERFLIES DAY CARE,14/10/2019,762.00,Awards Funded Childcare Places,Awards Funded Childcare Places,http://opendatacommunities.org/id/county-council/staffordshire  
Staffordshire County Council,Think 2 Project,Butterflies Nursery,14/10/2019,800.10,Awards Funded Childcare Places,Awards Funded Childcare Places,http://opendatacommunities.org/id/county-council/staffordshire  
Staffordshire County Council,Nursery Education Grant,Butterflies Nursery,14/10/2019,653.10,Grants Nursery Education Pymnt,Grants Nursery Education Pymnt,http://opendatacommunities.org/id/county-council/staffordshire  
Staffordshire County Council,Stafford LD Team,Caretech Community Service Ltd,14/10/2019,2220.40,Supported Group Care,Supported Group Care,http://opendatacommunities.org/id/county-council/staffordshire  
Staffordshire County Council,Stafford LD Team,Caretech Community Service Ltd,14/10/2019,2929.50,Supported Group Care,Supported Group Care,http://opendatacommunities.org/id/county-council/staffordshire  
Staffordshire County Council,Stafford LD Team,Caretech Community Service Ltd,14/10/2019,2702.70,Supported Group Care,Supported Group Care,http://opendatacommunities.org/id/county-council/staffordshire  
Staffordshire County Council,Nursery Education Grant,Castle Primary School,14/10/2019,1709.10,Grants Nursery Education Pymnt,Grants Nursery Education Pymnt,http://opendatacommunities.org/id/county-council/staffordshire  
Staffordshire County Council,2 Contraception,CASTLEFIELDS MEDICAL PRACTICE,14/10/2019,1201.24,other services external,other services external,http://opendatacommunities.org/id/county-council/staffordshire  
Staffordshire County Council,Technical Design Architecture,Cetus Solutions Limited,14/10/2019,7107.00,CONSULTANT FEES,CONSULTANT FEES,http://opendatacommunities.org/id/county-council/staffordshire  
Staffordshire County Council,Nursery Education Grant,Chase Grammar School.,14/10/2019,1251.00,Grants Nursery Education Pymnt,Grants Nursery Education Pymnt,http://opendatacommunities.org/id/county-council/staffordshire  
Staffordshire County Council,Think 2 Project,CHEEKY MONKEYS DAY NURSERY,14/10/2019,2400.30,Awards Funded Childcare Places,Awards Funded Childcare Places,http://opendatacommunities.org/id/county-council/staffordshire  
Staffordshire County Council,Nursery Education Grant,CHEEKY MONKEYS DAY NURSERY,14/10/2019,10492.96,Grants Nursery Education Pymnt,Grants Nursery Education Pymnt,http://opendatacommunities.org/id/county-council/staffordshire  
Staffordshire County Council,Nursery Education Grant,CHESTERTON ACADEMY TRUST,14/10/2019,5961.51,Grants Nursery Education Pymnt,Grants Nursery Education Pymnt,http://opendatacommunities.org/id/county-council/staffordshire  
Staffordshire County Council,Think 2 Project,Chesterton Primary School,14/10/2019,1066.80,Awards Funded Childcare Places,Awards Funded Childcare Places,http://opendatacommunities.org/id/county-council/staffordshire  
Staffordshire County Council,Nursery Education Grant,Chesterton Primary School,14/10/2019,5378.65,Grants Nursery Education Pymnt,Grants Nursery Education Pymnt,http://opendatacommunities.org/id/county-council/staffordshire  
Staffordshire County Council,Adoption Support Fund,Childrens Choice Therapy Service,14/10/2019,1792.00,PROFESSIONAL FEES,PROFESSIONAL FEES,http://opendatacommunities.org/id/county-council/staffordshire  
Staffordshire County Council,Nursery Education Grant,Christ The King T/A St Mary's CPS,14/10/2019,12889.36,Grants Nursery Education Pymnt,Grants Nursery Education Pymnt,http://opendatacommunities.org/id/county-council/staffordshire  
Staffordshire County Council,Think 2 Project,Churchfield C E Primary Academy,14/10/2019,1066.80,Awards Funded Childcare Places,Awards Funded Childcare Places,http://opendatacommunities.org/id/county-council/staffordshire  
Staffordshire County Council,Nursery Education Grant,Churchfield C E Primary Academy,14/10/2019,6842.37,Grants Nursery Education Pymnt,Grants Nursery Education Pymnt,http://opendatacommunities.org/id/county-council/staffordshire  
Staffordshire County Council,Nursery Education Grant,CHURCHFIELDS PRIM SCHOOL,14/10/2019,7397.83,Grants Nursery Education Pymnt,Grants Nursery Education Pymnt,http://opendatacommunities.org/id/county-council/staffordshire  
Staffordshire County Council,Moorlands Invoice Led Phys Dis,COMPANION FOR CARE SERVICES,14/10/2019,535.11,Practical Care,Practical Care,http://opendatacommunities.org/id/county-council/staffordshire  
Staffordshire County Council,Headquarters - I.S.P,Compass Fostering West,14/10/2019,4624.23,Social Services Oth Local Auth,Social Services Oth Local Auth,http://opendatacommunities.org/id/county-council/staffordshire  
Staffordshire County Council,Headquarters - I.S.P,Compass Fostering West,14/10/2019,3085.71,Social Services Oth Local Auth,Social Services Oth Local Auth,http://opendatacommunities.org/id/county-council/staffordshire  
Staffordshire County Council,Headquarters - I.S.P,Compass Fostering West,14/10/2019,3175.71,Social Services Oth Local Auth,Social Services Oth Local Auth,http://opendatacommunities.org/id/county-council/staffordshire  
Staffordshire County Council,Headquarters - I.S.P,Compass Fostering West,14/10/2019,8567.99,Social Services Oth Local Auth,Social Services Oth Local Auth,http://opendatacommunities.org/id/county-council/staffordshire  
Staffordshire County Council,Headquarters - I.S.P,COMPASS Services For Children LTD,14/10/2019,2876.40,Social Services Oth Local Auth,Social Services Oth Local Auth,http://opendatacommunities.org/id/county-council/staffordshire  
Staffordshire County Council,Headquarters - I.S.P,COMPASS Services For Children LTD,14/10/2019,5053.50,Social Services Oth Local Auth,Social Services Oth Local Auth,http://opendatacommunities.org/id/county-council/staffordshire  
Staffordshire County Council,Asylum Seekers,COMPASS Services For Children LTD,14/10/2019,3010.63,Social Services Oth Local Auth,Social Services Oth Local Auth,http://opendatacommunities.org/id/county-council/staffordshire  
Staffordshire County Council,Headquarters - I.S.P,COMPASS Services For Children LTD,14/10/2019,2818.46,Social Services Oth Local Auth,Social Services Oth Local Auth,http://opendatacommunities.org/id/county-council/staffordshire  
Staffordshire County Council,Headquarters - I.S.P,COMPASS Services For Children LTD,14/10/2019,7915.88,Social Services Oth Local Auth,Social Services Oth Local Auth,http://opendatacommunities.org/id/county-council/staffordshire  
Staffordshire County Council,Nursery Education Grant,COOGEE NURSERY SCHOOL,14/10/2019,2938.81,Grants Nursery Education Pymnt,Grants Nursery Education Pymnt,http://opendatacommunities.org/id/county-council/staffordshire  
Staffordshire County Council,Headquarters - I.S.P,Core Assets Fostering Ltd,14/10/2019,536.00,Social Services Oth Local Auth,Social Services Oth Local Auth,http://opendatacommunities.org/id/county-council/staffordshire  
Staffordshire County Council,Headquarters - I.S.P,Core Assets Fostering Ltd,14/10/2019,3371.96,Social Services Oth Local Auth,Social Services Oth Local Auth,http://opendatacommunities.org/id/county-council/staffordshire  
Staffordshire County Council,Headquarters - I.S.P,Core Assets Fostering Ltd,14/10/2019,2507.08,Social Services Oth Local Auth,Social Services Oth Local Auth,http://opendatacommunities.org/id/county-council/staffordshire  
Staffordshire County Council,Think 2 Project,Coton Green Church Preschool,14/10/2019,533.40,Awards Funded Childcare Places,Awards Funded Childcare Places,http://opendatacommunities.org/id/county-council/staffordshire  
Staffordshire County Council,Nursery Education Grant,Coton Green Church Preschool,14/10/2019,6600.21,Grants Nursery Education Pymnt,Grants Nursery Education Pymnt,http://opendatacommunities.org/id/county-council/staffordshire  
Staffordshire County Council,Tamworth LD Team,Creative Choices CIC,14/10/2019,550.00,Day Care,Day Care,http://opendatacommunities.org/id/county-council/staffordshire  
Staffordshire County Council,Tamworth LD Team,Creative Choices CIC,14/10/2019,550.00,Day Care,Day Care,http://opendatacommunities.org/id/county-council/staffordshire  
Staffordshire County Council,Tamworth LD Team,Creative Choices CIC,14/10/2019,550.00,Day Care,Day Care,http://opendatacommunities.org/id/county-council/staffordshire  
Staffordshire County Council,Moorlands LD Team,Creative Support Ltd,14/10/2019,1600.08,Supported Group Care,Supported Group Care,http://opendatacommunities.org/id/county-council/staffordshire  
Staffordshire County Council,Moorlands LD Team,Creative Support Ltd,14/10/2019,1798.30,Supported Group Care,Supported Group Care,http://opendatacommunities.org/id/county-council/staffordshire  
Staffordshire County Council,Moorlands LD Team,Creative Support Ltd,14/10/2019,3362.08,Supported Group Care,Supported Group Care,http://opendatacommunities.org/id/county-council/staffordshire  
Staffordshire County Council,Moorlands LD Team,Creative Support Ltd,14/10/2019,2128.96,Supported Group Care,Supported Group Care,http://opendatacommunities.org/id/county-council/staffordshire  
Staffordshire County Council,Moorlands LD Team,Creative Support Ltd,14/10/2019,3834.30,Supported Group Care,Supported Group Care,http://opendatacommunities.org/id/county-council/staffordshire  
Staffordshire County Council,Cannock Chase LD Team,Creative Support Ltd,14/10/2019,1767.00,Supported Group Care,Supported Group Care,http://opendatacommunities.org/id/county-council/staffordshire  
Staffordshire County Council,Cannock Chase LD Team,Creative Support Ltd,14/10/2019,1967.32,Supported Group Care,Supported Group Care,http://opendatacommunities.org/id/county-council/staffordshire  
Staffordshire County Council,Moorlands LD Team,Creative Support Ltd,14/10/2019,1359.36,Supported Group Care,Supported Group Care,http://opendatacommunities.org/id/county-council/staffordshire  
Staffordshire County Council,Cannock Chase LD Team,Creative Support Ltd,14/10/2019,2008.92,Supported Group Care,Supported Group Care,http://opendatacommunities.org/id/county-council/staffordshire  
Staffordshire County Council,S Staffs LD Team,Creative Support Ltd,14/10/2019,4054.22,Supported Group Care,Supported Group Care,http://opendatacommunities.org/id/county-council/staffordshire  
Staffordshire County Council,Cannock Chase LD Team,Creative Support Ltd,14/10/2019,1990.92,Supported Group Care,Supported Group Care,http://opendatacommunities.org/id/county-council/staffordshire  
Staffordshire County Council,Think 2 Project,CROFT DAY NURSERY SCHOOL,14/10/2019,533.40,Awards Funded Childcare Places,Awards Funded Childcare Places,http://opendatacommunities.org/id/county-council/staffordshire  
Staffordshire County Council,Nursery Education Grant,CROFT DAY NURSERY SCHOOL,14/10/2019,6348.87,Grants Nursery Education Pymnt,Grants Nursery Education Pymnt,http://opendatacommunities.org/id/county-council/staffordshire  
Staffordshire County Council,Stafford Invoice Led Older Peo,CSPC Healthcare Ltd,14/10/2019,1260.00,Practical Care,Practical Care,http://opendatacommunities.org/id/county-council/staffordshire  
Staffordshire County Council,Workforce Wellbeing Strategy,CTC PHYSIOTHERAPY,14/10/2019,4158.50,CONSULTANT FEES,CONSULTANT FEES,http://opendatacommunities.org/id/county-council/staffordshire  
Staffordshire County Council,Newcastle LD Team,D E Healthcare,14/10/2019,1644.22,Supported Group Care,Supported Group Care,http://opendatacommunities.org/id/county-council/staffordshire  
Staffordshire County Council,E Staffs LD Team,D E Healthcare,14/10/2019,1356.64,Supported Group Care,Supported Group Care,http://opendatacommunities.org/id/county-council/staffordshire  
Staffordshire County Council,Nursery Education Grant,D Wood,14/10/2019,1278.38,Grants Nursery Education Pymnt,Grants Nursery Education Pymnt,http://opendatacommunities.org/id/county-council/staffordshire  
Staffordshire County Council,Care Proceedings team (East),,14/10/2019,557.48,S17 FAMILY SUPPORT,S17 FAMILY SUPPORT,http://opendatacommunities.org/id/county-council/staffordshire  
Staffordshire County Council,Stafford Invoice Led Phys Disa,Deafblind Uk,14/10/2019,579.00,INTERPRETERS SERVICE,INTERPRETERS SERVICE,http://opendatacommunities.org/id/county-council/staffordshire  
Staffordshire County Council,Newcastle Invoice Led Physical,Deafblind Uk,14/10/2019,974.65,INTERPRETERS SERVICE,INTERPRETERS SERVICE,http://opendatacommunities.org/id/county-council/staffordshire  
Staffordshire County Council,Cannock Invoice Led Older Peop,Deafblind Uk,14/10/2019,849.20,INTERPRETERS SERVICE,INTERPRETERS SERVICE,http://opendatacommunities.org/id/county-council/staffordshire  
Staffordshire County Council,Newcastle Invoice Led Physical,Deafblind Uk,14/10/2019,714.10,INTERPRETERS SERVICE,INTERPRETERS SERVICE,http://opendatacommunities.org/id/county-council/staffordshire  
Staffordshire County Council,Stafford LD Team,Dimensions UK,14/10/2019,1871.26,Supported Group Care,Supported Group Care,http://opendatacommunities.org/id/county-council/staffordshire  
Staffordshire County Council,Stafford LD Team,Dimensions UK,14/10/2019,988.40,Supported Group Care,Supported Group Care,http://opendatacommunities.org/id/county-council/staffordshire  
Staffordshire County Council,Stafford LD Team,Dimensions UK,14/10/2019,1733.25,Supported Group Care,Supported Group Care,http://opendatacommunities.org/id/county-council/staffordshire  
Staffordshire County Council,Stafford LD Team,Dimensions UK,14/10/2019,1842.34,Supported Group Care,Supported Group Care,http://opendatacommunities.org/id/county-council/staffordshire  
Staffordshire County Council,Stafford LD Team,Dimensions UK,14/10/2019,1006.33,Supported Group Care,Supported Group Care,http://opendatacommunities.org/id/county-council/staffordshire  
Staffordshire County Council,Nursery Education Grant,DOLLY MIXTURES DAY NURSERY,14/10/2019,4293.59,Grants Nursery Education Pymnt,Grants Nursery Education Pymnt,http://opendatacommunities.org/id/county-council/staffordshire  
Staffordshire County Council,Think 2 Project,DOSTHILL PARK PRE SCHOOL P GRP,14/10/2019,1297.94,Awards Funded Childcare Places,Awards Funded Childcare Places,http://opendatacommunities.org/id/county-council/staffordshire  
Staffordshire County Council,Nursery Education Grant,DOSTHILL PARK PRE SCHOOL P GRP,14/10/2019,4078.28,Grants Nursery Education Pymnt,Grants Nursery Education Pymnt,http://opendatacommunities.org/id/county-council/staffordshire  
Staffordshire County Council,Nursery Education Grant,Dosthill Primary Academy,14/10/2019,14701.16,Grants Nursery Education Pymnt,Grants Nursery Education Pymnt,http://opendatacommunities.org/id/county-council/staffordshire  
Staffordshire County Council,Lighting & Signals Works,DYNNIQ UK LTD,14/10/2019,665.02,Traffic Sigs non Routine Maint,Traffic Sigs non Routine Maint,http://opendatacommunities.org/id/county-council/staffordshire  
Staffordshire County Council,Nursery Education Grant,Edenhurst Nursery In The Westlands,14/10/2019,595.50,Grants Nursery Education Pymnt,Grants Nursery Education Pymnt,http://opendatacommunities.org/id/county-council/staffordshire  
Staffordshire County Council,Nursery Education Grant,ELMHURST HOUSE PRE SCHOOL,14/10/2019,4961.42,Grants Nursery Education Pymnt,Grants Nursery Education Pymnt,http://opendatacommunities.org/id/county-council/staffordshire  
Staffordshire County Council,Think 2 Project,ELMHURST HOUSE PRE SCHOOL,14/10/2019,1821.18,Awards Funded Childcare Places,Awards Funded Childcare Places,http://opendatacommunities.org/id/county-council/staffordshire  
Staffordshire County Council,Nursery Education Grant,ELMHURST HOUSE PRE SCHOOL,14/10/2019,13002.37,Grants Nursery Education Pymnt,Grants Nursery Education Pymnt,http://opendatacommunities.org/id/county-council/staffordshire  
Staffordshire County Council,SStaffs Invoice Led Older Peop,ELR Homecare,14/10/2019,680.63,Practical Care,Practical Care,http://opendatacommunities.org/id/county-council/staffordshire  
Staffordshire County Council,SStaffs Invoice Led Older Peop,ELR Homecare,14/10/2019,1010.63,Practical Care,Practical Care,http://opendatacommunities.org/id/county-council/staffordshire  
Staffordshire County Council,SStaffs Invoice Led Older Peop,ELR Homecare,14/10/2019,808.50,Practical Care,Practical Care,http://opendatacommunities.org/id/county-council/staffordshire  
Staffordshire County Council,SStaffs Invoice Led Older Peop,ELR Homecare,14/10/2019,1518.00,Practical Care,Practical Care,http://opendatacommunities.org/id/county-council/staffordshire  
Staffordshire County Council,Think 2 Project,Emma Clarke,14/10/2019,533.40,Awards Funded Childcare Places,Awards Funded Childcare Places,http://opendatacommunities.org/id/county-council/staffordshire  
Staffordshire County Council,Virtual School - Pupil Premium,Endeavour Learning Trust,14/10/2019,500.00,OTHER ALLOWANCES,OTHER ALLOWANCES,http://opendatacommunities.org/id/county-council/staffordshire  
